Workbook

Sheet Inicio
C2: Planilla de cálculos de intereses de acuerdo a las pautas de la sentencia ‘Seren’ (S. 128/23) de la Sala Laboral del TSJ.
C4: Planilla de cálculo versión: | D4: V.6 - 07/08/2025 | F4: Última actualización índice tasa pasiva BCRA: | H4: =MAX(Tabla1[Fecha]) -> 2025-08-07
C6: La finalidad perseguida con esta planilla es: -Permitir una carga más dinámica de los rubros y montos. -Permitir guardar parcialmente el avance en la carga de los rubros y montos. -Permitir editar los valores ingresados. -Descargar el archivo para su trabajo individual. -Ahorrar tiempo en la reformulación o corrección de planillas de intereses. IMPORTANTE: Ya que el cálculo de la tasa de interés se realiza de acuerdo a la actualización del índice que publica diariamente el BCRA debe tenerse la precaución de corroborar se cuente con el índice correspondiente hasta la fecha en que se quiera efectuar la liquidación. En caso de que no se haya actualizado el índice, Ud. podrá hacer click sobre el botón "actualizar tasa pasiva BCRA" o incorporarlo manualmente para que la planilla realice el cálculo hasta la fecha deseada. Aclaraciones: La planilla permite introducir los montos de los principales rubros de una liquidación final de un contrato de trabajo, haberes adeudados o diferencia de haberes, como también introducir conceptos libres. La forma de cálculo de los principales rubros que integran la liquidación final están explicitados en la columna de referencia respectiva. Se toma como referencia la MRMNH introducida en el campo correspondiente. No obstante, cualquier valor de la planilla de carga puede ser modificado manualmente. Se automatiza el cálculo de la fecha de mora para determinados conceptos: a)En relación a los conceptos de liquidación final, la fecha de mora está predeterminada por el valor que se indique en el espacio de ‘fecha de distracto’ b)En relación a los valores que se introduzcan en el espacio de haberes o diferencia de haberes, la fecha de mora se establece predeterminadamente como el cuarto día hábil posterior al vencimiento de cada mes (cf. art. 128 de la LCT) y toma en cuenta los feriados establecidos para el año 2025. Para los conceptos libres, no se predetermina ninguna fecha de mora en particular. Sin perjuicio de ello, todas las fechas de mora pueden ser editadas manualmente desde la planilla de cálculo. La planilla generada permite ser exportada en formato pdf para su impresión o agregación al expediente.

Sheet Planilla de carga
C2: Planilla de cálculos de intereses de acuerdo a las pautas de la sentencia ‘Seren’ (S. 128/23) de la Sala Laboral del TSJ.
C3: Planilla de cálculo versión: | E3: =Inicio!D4 -> V.6 - 07/08/2025
C4: Última actualización índice tasa pasiva BCRA: | E4: =MAX(Tabla1[Fecha]) -> 2025-08-07
C5: Tasa diaria equivalente a interés mensual del 2% | E5: 0.06575342394
C6: Tasa diaria equivalente a interés mensual del 3% | E6: 0.09863013591
C9: Autos
C10: introducir carátula aquí
C11: N° de expediente: | E11: introducir aquí el n° de sac
C12: Fecha de ingreso:
C13: Fecha del distracto:
C14: Fecha de liquidación:
C15: MRMNH:
C16: Última remuneración (opcional): | F16: 1
C17: Mayor remuneración del semestre (opcional):
C18: LIQUIDACIÓN FINAL, INDEMNIZACIONES Y MULTAS
C19: Total liquidación final | E19: =SUM(D21:D36) -> 0
C20: Rubros | D20: Importe | E20: Referencia
C21: Días trabajados del mes de distracto: | D21: =IFERROR(IF(IF(E16="",(E15/DAY(EOMONTH(E13,0)))*D43,(E16/DAY(EOMONTH(E13,0)))*D43)=0,"",IF(E16="",(E15/DAY(EOMONTH(E13,0)))*D43,(E16/DAY(EOMONTH(E13,0)))*D43)),"") ->  | E21: Forma de cálculo: última remuneración (o MRMNH en su defecto) dividido cantidad de días del mes en que se produce el distracto, multiplicado por la cantidad de días trabajados en el mes de distracto.
C22: Proporcional vacaciones no gozadas: | D22: =IFERROR(IF(D50*D52=0,"",D50*D52),"") ->  | E22: Forma de cálculo: "Cantidad de días de vacaciones proporcionales no gozadas" multiplicado" por "Valor día de vacaciones"
C23: Proporcional SAC: | D23: =IFERROR(IF(D44>D45,D54,D53),"") ->  | E23: =IF(D44>D45,E54,E53) -> Forma de cálculo: mayor remuneración del semestre (o MRMNH en su defecto) multiplicado por 0,5 multiplicado por el cociente entre los "Días trabajados en el primer semestre del último año trabajado" y la "Cantidad de días del primer semestre del último año trabajado"
C24: Indemnización por antigüedad: | D24: =IFERROR(IF(E15*D42=0,"",E15*D42),"") ->  | E24: Forma de cálculo: MRMNH multiplicado por la "Antigüedad en años o fracción mayor o igual a 3 meses"
C25: Preaviso: | D25: =IFERROR(IF(IF(E16="",E15*D55,E16*D55)=0,"",IF(E16="",E15*D55,E16*D55)),"") ->  | E25: Forma de cálculo: última remuneración (o MRMNH en su defecto) multiplicado por la "Cantidad de meses de preaviso de acuerdo a la antigüedad"
C26: Integración mes de despido: | D26: =IFERROR(IF(IF(E16="",E15/DAY(EOMONTH(E13,0))*DATEDIF(Fecha_distracto,E56,"D"),E16/DAY(EOMONTH(E13,0))*DATEDIF(Fecha_distracto,E56,"D"))=0,"",IF(E16="",E15/DAY(EOMONTH(E13,0))*DATEDIF(Fecha_distracto,E56,"D"),E16/DAY(EOMONTH(E13,0))*DATEDIF(Fecha_distracto,E56,"D"))),"") ->  | E26: Forma de cálculo: diferencia entre la última remuneración (o MRMNH en su defecto) y el monto correspondiente al rubro "Días trabajados del mes de distracto"
C27: art. 1 Ley 25.323 | D27: =D24 ->  | E27: Forma de cálculo: equivale al monto correspondiente al rubro "Indemnización por antigüedad"
C28: art. 2 Ley 25.323 | D28: =IFERROR((D24+D25+D26)*0.5,"") ->  | E28: Forma de cálculo: equivale al 50% de la sumatoria de los montos correspondientes a los rubros "Indemnización por antigüedad", "Preaviso" e "Integración del mes de despido"
C29: art. 8 Ley 24.013
C30: art. 9 Ley 24.013
C31: art. 10 Ley 24.013
C32: art. 15 Ley 24.013 | D32: =IFERROR(D24+D25+D26,"") ->  | E32: Forma de cálculo: equivale al 100% de la sumatoria de los montos correspondientes a los rubros "Indemnización por antigüedad", "Preaviso" e "Integración del mes de despido"
C33: art. 80 LCT | D33: =IF(E15="","",E15*3) ->  | E33: Forma de cálculo: equivale a tres veces la MRMNH
C34: Otros:
C38: CÁLCULOS ANEXOS
C40: Rubros | D40: Importe | E40: Referencia
C41: Antigüedad en años, meses y días | D41: =IF(Fecha_distracto="","",DATEDIF(Fecha_ingreso,Fecha_distracto+1,"Y") & " años, " & DATEDIF(Fecha_ingreso,(Fecha_distracto+1),"YM") & " meses, " & DATEDIF(Fecha_ingreso,Fecha_distracto+1,"MD") & " días") -> 
C42: Antigüedad en años o fracción mayor o igual a 3 meses | D42: =IF(Fecha_distracto="","",DATEDIF(Fecha_ingreso,Fecha_distracto+1,"Y")+(IF(DATEDIF(Fecha_ingreso,Fecha_distracto+1,"YM")>2,1,0))) -> 
C43: Días trabajados en el mes de distracto | D43: =IF(Fecha_distracto="","",DATEDIF(D56,E13,"D")+1) -> 
C44: Días trabajados en el último año | D44: =IF(Fecha_distracto="","",IF(Fecha_ingreso<Inicio_1er_semestre,DATEDIF(Inicio_1er_semestre,Fecha_distracto,"d")+1,(DATEDIF(Fecha_ingreso,Fecha_distracto,"d")+1))) -> 
C45: Días trabajados en el primer semestre del último año trabajado | D45: =IFERROR(IF(Fecha_distracto<Inicio_2do_semestre,DATEDIF(MAX(Fecha_ingreso,Inicio_1er_semestre),Fecha_distracto,"d")+1,DATEDIF(MAX(Fecha_ingreso,Inicio_1er_semestre),Inicio_2do_semestre,"d")),"") -> 
C46: Días trabajados en el segundo semestre del último año trabajado | D46: =IF(Fecha_distracto="","",IF(Fecha_distracto<Inicio_2do_semestre,0,DATEDIF(MAX(Fecha_ingreso,Inicio_2do_semestre),Fecha_distracto,"d")+1)) -> 
C47: Cantidad de días del último año trabajado | D47: =IF(Fecha_distracto="","",DATEDIF(D57,(DATE((YEAR(D57)),12,31)),"d")+1) -> 
C48: Cantidad de días del primer semestre del último año trabajado | D48: =IF(Fecha_distracto="","",DATEDIF(D57,(DATE((YEAR(D57)),6,30)),"d")+1) -> 
C49: Cantidad de días del segundo semestre del último año trabajado | D49: =IF(Fecha_distracto="","",184) -> 
C50: Valor día de vacaciones | D50: =IF(IF(E16="",E15/25,E16/25)=0,"",IF(E16="",E15/25,E16/25)) ->  | E50: Forma de cálculo: última remuneración (o MRMNH en su defecto) dividido 25
C51: Cantidad de días de vacaciones según antigüedad | D51: =IF(Fecha_distracto="","",IF((DATEDIF(Fecha_ingreso,Fecha_distracto,"Y") < 5), 14, IF((DATEDIF(Fecha_ingreso,Fecha_distracto,"Y")) < 10, 21, IF((DATEDIF(Fecha_ingreso,Fecha_distracto,"Y")) < 20, 28, 35)))) ->  | E51: Forma de cálculo: Antigüedad menor a 5 años: 14 días Antigüedad mayor a 5 años y menor a 10 años: 21 días Antigüedad mayor a 10 años y menor a 20 años: 28 días Antigüedad mayor a 20 años: 35 días
C52: Cantidad de días de vacaciones proporcionales no gozadas | D52: =IFERROR(D44/D47*D51,"") ->  | E52: Forma de cálculo: "Días trabajados en el último año" dividido "Cantidad de días del último año trabajado multiplicado" por la "Cantidad de días de vacaciones según antigüedad"
C53: Valor SAC proporcional 1er sem. | D53: =IFERROR(IF(E17="",(E15/2)*(D45/D48),(E17/2)*(D45/D48)),"") ->  | E53: Forma de cálculo: mayor remuneración del semestre (o MRMNH en su defecto) multiplicado por 0,5 multiplicado por el cociente entre los "Días trabajados en el primer semestre del último año trabajado" y la "Cantidad de días del primer semestre del último año trabajado"
C54: Valor SAC proporcional 2do sem. | D54: =IFERROR(IF(E17="",(E15/2)*(D46/D49),(E17/2)*(D46/D49)),"") ->  | E54: Forma de cálculo: mayor remuneración del semestre (o MRMNH en su defecto) multiplicado por 0,5 multiplicado por el cociente entre los "Días trabajados en el segundo semestre del último año trabajado" y la "Cantidad de días del segundo semestre del último año trabajado"
C55: Cantidad de meses de preaviso de acuerdo a la antigüedad | D55: =IF(Fecha_distracto="","",IF(DATEDIF(Fecha_ingreso,Fecha_distracto,"m")<3,0.5,(IF(DATEDIF(Fecha_ingreso,Fecha_distracto,"y")<5,1,2)))) ->  | E55: Forma de cálculo: Antigüedad menor a 3 meses: 15 días Antigüedad mayor a 3 meses y menor a 5 años: 1mes Antigüedad mayor a 5 años: 2 meses
C56: Inicio /Fin del último mes trabajado | D56: =IF(Fecha_distracto=0,"",DATE(YEAR(E13),MONTH(E13),1)) ->  | E56: =IF(Fecha_distracto=0,"",DATE(YEAR(E13),MONTH(E13),DAY(EOMONTH(E13, 0)))) -> 
C57: Inicio del último año trabajado | D57: =IF(Fecha_distracto="","",DATE(YEAR(E13),1,1)) -> 
C58: Inicio del segundo semestre | D58: =IF(Fecha_distracto="","",DATE(YEAR(E13),7,1)) -> 
C60: CONCEPTOS VARIOS
C61: Total conceptos varios | E61: =SUM(E63:E68) -> 0
C62: Rubros | D62: Fecha de mora | E62: Importe
C70: HABERES - DIFERENCIA DE HABERES - HORAS EXTRAORDINARIAS - SAC ADEUDADOS
C71: Total haberes - diferencia de haberes - horas extraordinarios - SAC adeudados | E71: =SUM(D73:D140) -> 0
C72: Año/Mes | D72: Monto | E72: Referencia

Sheet Planilla de cálculo intereses
D2: Planilla de cálculos de intereses de acuerdo a las pautas de la sentencia ‘Seren’ (S. 128/23) de la Sala Laboral del TSJ.
H4: Última actualización índice tasa pasiva BCRA: | K4: =MAX(Tabla1[Fecha]) -> 2025-08-07
D6: Autos: | E6: ='Planilla de carga'!C10 -> introducir carátula aquí | N6: Sac n°: | O6: ='Planilla de carga'!E11 -> introducir aquí el n° de sac
H8: TOTALES
H9: CAPITAL | J9: =SUM(Tabla2[Monto total])+E15+SUM(E19:E24) -> 0
H10: INTERESES | J10: =SUM(Tabla2[Total intereses])+N15+SUM(N19:N24) -> 0
H11: CAPITAL E INTERESES | J11: =SUM(Tabla2[Capital e intereses])+O15+SUM(O19:O24) -> 0
D13: Liquidación final, indemnizaciones y multas:
D14: Concepto | E14: Monto total | F14: Fecha mora | G14: Indice Tasa Pasiva desde | H14: Indice Tasa Pasiva hasta | I14: Monto Tasa pasiva | J14: Cantidad de días al 2% mensual | K14: Cantidad de días al 3% mensual | L14: Interés 2% | M14: Interés 3% | N14: Total intereses | O14: Capital e intereses
D15: N/A | E15: ='Planilla de carga'!E19 -> 0 | F15: =IF('Planilla de carga'!E13="","-",VLOOKUP(Fecha_distracto,'4to. Hábil'!J:L,3,"falso")) -> - | G15: =IFERROR(VLOOKUP((F15-1),'Índices Tasa Pasiva BCRA'!C:D,2,FALSE),"-") -> - | H15: =IFERROR(VLOOKUP('Planilla de carga'!$E$14,'Índices Tasa Pasiva BCRA'!C:D,2,FALSE),"-") -> - | I15: =IFERROR(E15*((100 + H15) / (100 + G15)-1),0) -> 0 | J15: =IFERROR(DATEDIF(F15,"01/01/2023","d"),"-") -> - | K15: =IFERROR(DATEDIF(MAX("01/01/2023",F15),'Planilla de carga'!$E$14,"d"),0) -> 0 | L15: =IFERROR((E15*'Planilla de carga'!$E$5*J15)/100,0) -> 0 | M15: =IFERROR((E15*K15*'Planilla de carga'!$E$6)/100,0) -> 0 | N15: =+I15+L15+M15 -> 0 | O15: =+N15+E15 -> 0
D17: Conceptos varios:
D18: Concepto | E18: Monto total | F18: Fecha mora | G18: Indice Tasa Pasiva desde | H18: Indice Tasa Pasiva hasta | I18: Monto Tasa pasiva | J18: Cantidad de días al 2% mensual | K18: Cantidad de días al 3% mensual | L18: Interés 2% | M18: Interés 3% | N18: Total intereses | O18: Capital e intereses
D19: =+'Planilla de carga'!C63 -> 0 | E19: =+'Planilla de carga'!E63 -> 0 | F19: =IF('Planilla de carga'!D63="","-",'Planilla de carga'!D63) -> - | G19: =IFERROR(VLOOKUP((F19-1),'Índices Tasa Pasiva BCRA'!C:D,2,FALSE),"-") -> - | H19: =IFERROR(VLOOKUP('Planilla de carga'!$E$14,'Índices Tasa Pasiva BCRA'!C:D,2,FALSE),"-") -> - | I19: =IFERROR(E19*((100 + H19) / (100 + G19)-1),0) -> 0 | J19: =IFERROR(DATEDIF(F19,"01/01/2023","d"),"-") -> - | K19: =IFERROR(DATEDIF(MAX("01/01/2023",F19),'Planilla de carga'!$E$14,"d"),0) -> 0 | L19: =IFERROR((E19*'Planilla de carga'!$E$5*J19)/100,0) -> 0 | M19: =IFERROR((E19*K19*'Planilla de carga'!$E$6)/100,0) -> 0 | N19: =+I19+L19+M19 -> 0 | O19: =+N19+E19 -> 0
D20: =+'Planilla de carga'!C64 -> 0 | E20: =+'Planilla de carga'!E64 -> 0 | F20: =IF('Planilla de carga'!D64="","-",'Planilla de carga'!D64) -> - | G20: =IFERROR(VLOOKUP((F20-1),'Índices Tasa Pasiva BCRA'!C:D,2,FALSE),"-") -> - | H20: =IFERROR(VLOOKUP('Planilla de carga'!$E$14,'Índices Tasa Pasiva BCRA'!C:D,2,FALSE),"-") -> - | I20: 0 | J20: =IFERROR(DATEDIF(F20,"01/01/2023","d"),"-") -> - | K20: =IFERROR(DATEDIF(MAX("01/01/2023",F20),'Planilla de carga'!$E$14,"d"),0) -> 0 | L20: =IFERROR((E20*'Planilla de carga'!$E$5*J20)/100,0) -> 0 | M20: =IFERROR((E20*K20*'Planilla de carga'!$E$6)/100,0) -> 0 | N20: =+I20+L20+M20 -> 0 | O20: =+N20+E20 -> 0
D21: =+'Planilla de carga'!C65 -> 0 | E21: =+'Planilla de carga'!E65 -> 0 | F21: =IF('Planilla de carga'!D65="","-",'Planilla de carga'!D65) -> - | G21: =IFERROR(VLOOKUP((F21-1),'Índices Tasa Pasiva BCRA'!C:D,2,FALSE),"-") -> - | H21: =IFERROR(VLOOKUP('Planilla de carga'!$E$14,'Índices Tasa Pasiva BCRA'!C:D,2,FALSE),"-") -> - | I21: 0 | J21: - | K21: =IFERROR(DATEDIF(MAX("01/01/2023",F21),'Planilla de carga'!$E$14,"d"),0) -> 0 | L21: =IFERROR((E21*'Planilla de carga'!$E$5*J21)/100,0) -> 0 | M21: =IFERROR((E21*K21*'Planilla de carga'!$E$6)/100,0) -> 0 | N21: 0 | O21: 0
D22: =+'Planilla de carga'!C66 -> 0 | E22: =+'Planilla de carga'!E66 -> 0 | F22: =IF('Planilla de carga'!D66="","-",'Planilla de carga'!D66) -> - | G22: =IFERROR(VLOOKUP((F22-1),'Índices Tasa Pasiva BCRA'!C:D,2,FALSE),"-") -> - | H22: =IFERROR(VLOOKUP('Planilla de carga'!$E$14,'Índices Tasa Pasiva BCRA'!C:D,2,FALSE),"-") -> - | I22: 0 | J22: - | K22: =IFERROR(DATEDIF(MAX("01/01/2023",F22),'Planilla de carga'!$E$14,"d"),0) -> 0 | L22: =IFERROR((E22*'Planilla de carga'!$E$5*J22)/100,0) -> 0 | M22: =IFERROR((E22*K22*'Planilla de carga'!$E$6)/100,0) -> 0 | N22: 0 | O22: 0
D23: =+'Planilla de carga'!C67 -> 0 | E23: =+'Planilla de carga'!E67 -> 0 | F23: =IF('Planilla de carga'!D67="","-",'Planilla de carga'!D67) -> - | G23: =IFERROR(VLOOKUP((F23-1),'Índices Tasa Pasiva BCRA'!C:D,2,FALSE),"-") -> - | H23: =IFERROR(VLOOKUP('Planilla de carga'!$E$14,'Índices Tasa Pasiva BCRA'!C:D,2,FALSE),"-") -> - | I23: 0 | J23: - | K23: =IFERROR(DATEDIF(MAX("01/01/2023",F23),'Planilla de carga'!$E$14,"d"),0) -> 0 | L23: =IFERROR((E23*'Planilla de carga'!$E$5*J23)/100,0) -> 0 | M23: =IFERROR((E23*K23*'Planilla de carga'!$E$6)/100,0) -> 0 | N23: 0 | O23: 0
D24: =+'Planilla de carga'!C68 -> 0 | E24: =+'Planilla de carga'!E68 -> 0 | F24: =IF('Planilla de carga'!D68="","-",'Planilla de carga'!D68) -> - | G24: =IFERROR(VLOOKUP((F24-1),'Índices Tasa Pasiva BCRA'!C:D,2,FALSE),"-") -> - | H24: =IFERROR(VLOOKUP('Planilla de carga'!$E$14,'Índices Tasa Pasiva BCRA'!C:D,2,FALSE),"-") -> - | I24: 0 | J24: - | K24: =IFERROR(DATEDIF(MAX("01/01/2023",F24),'Planilla de carga'!$E$14,"d"),0) -> 0 | L24: =IFERROR((E24*'Planilla de carga'!$E$5*J24)/100,0) -> 0 | M24: =IFERROR((E24*K24*'Planilla de carga'!$E$6)/100,0) -> 0 | N24: 0 | O24: 0
D26: Haberes - diferencia de haberes - horas extraordinarias - SAC adeudados:
D27: Mes concepto | E27: Monto total | F27: Fecha mora | G27: Indice Tasa Pasiva desde | H27: Indice Tasa Pasiva hasta | I27: Monto Tasa pasiva | J27: Cantidad de días al 2% mensual | K27: Cantidad de días al 3% mensual | L27: Interés 2% | M27: Interés 3% | N27: Total intereses | O27: Capital e intereses | P27: Mes con imputación
D28: 2010 - enero | E28: =SUMIF(Tabla4[Año/Mes],Tabla2[[#This Row],[Mes concepto ]],Tabla4[Monto]) -> 0 | F28: 2010-02-04 | G28: =IFERROR(VLOOKUP((F28-1),'Índices Tasa Pasiva BCRA'!C:D,2,FALSE),"-") -> 391.3677 | H28: =IFERROR(VLOOKUP('Planilla de carga'!$E$14,'Índices Tasa Pasiva BCRA'!C:D,2,FALSE),"-") -> - | I28: =IFERROR(E28*((100 + H28) / (100 + G28)-1),0) -> 0 | J28: =IFERROR(DATEDIF(F28,"01/01/2023","d"),"-") -> 4714 | K28: =IFERROR(DATEDIF(MAX("01/01/2023",Tabla2[[#This Row],[Fecha mora]]),'Planilla de carga'!$E$14,"d"),"-") -> - | L28: =IFERROR((E28*'Planilla de carga'!$E$5*J28)/100,0) -> 0 | M28: =IFERROR((E28*K28*'Planilla de carga'!$E$6)/100,0) -> 0 | N28: =+I28+L28+M28 -> 0 | O28: =+N28+E28 -> 0 | P28: =IF(Tabla2[[#This Row],[Monto total]]=0,"no","si") -> no
D29: 2010 - febrero | E29: =SUMIF(Tabla4[Año/Mes],Tabla2[[#This Row],[Mes concepto ]],Tabla4[Monto]) -> 0 | F29: 2010-03-04 | G29: =IFERROR(VLOOKUP((F29-1),'Índices Tasa Pasiva BCRA'!C:D,2,FALSE),"-") -> 393.8977 | H29: =IFERROR(VLOOKUP('Planilla de carga'!$E$14,'Índices Tasa Pasiva BCRA'!C:D,2,FALSE),"-") -> - | I29: 0 | J29: =IFERROR(DATEDIF(F29,"01/01/2023","d"),"-") -> 4686 | K29: =IFERROR(DATEDIF(MAX("01/01/2023",Tabla2[[#This Row],[Fecha mora]]),'Planilla de carga'!$E$14,"d"),"-") -> - | L29: =IFERROR((E29*'Planilla de carga'!$E$5*J29)/100,0) -> 0 | M29: =IFERROR((E29*K29*'Planilla de carga'!$E$6)/100,0) -> 0 | N29: =+I29+L29+M29 -> 0 | O29: 0 | P29: =IF(Tabla2[[#This Row],[Monto total]]=0,"no","si") -> no
D30: 2010 - marzo | E30: =SUMIF(Tabla4[Año/Mes],Tabla2[[#This Row],[Mes concepto ]],Tabla4[Monto]) -> 0 | F30: 2010-04-07 | G30: =IFERROR(VLOOKUP((F30-1),'Índices Tasa Pasiva BCRA'!C:D,2,FALSE),"-") -> 397.1189 | H30: =IFERROR(VLOOKUP('Planilla de carga'!$E$14,'Índices Tasa Pasiva BCRA'!C:D,2,FALSE),"-") -> - | I30: 0 | J30: =IFERROR(DATEDIF(F30,"01/01/2023","d"),"-") -> 4652 | K30: =IFERROR(DATEDIF(MAX("01/01/2023",Tabla2[[#This Row],[Fecha mora]]),'Planilla de carga'!$E$14,"d"),"-") -> - | L30: =IFERROR((E30*'Planilla de carga'!$E$5*J30)/100,0) -> 0 | M30: =IFERROR((E30*K30*'Planilla de carga'!$E$6)/100,0) -> 0 | N30: 0 | O30: 0 | P30: =IF(Tabla2[[#This Row],[Monto total]]=0,"no","si") -> no
D31: 2010 - abril | E31: =SUMIF(Tabla4[Año/Mes],Tabla2[[#This Row],[Mes concepto ]],Tabla4[Monto]) -> 0 | F31: 2010-05-06 | G31: =IFERROR(VLOOKUP((F31-1),'Índices Tasa Pasiva BCRA'!C:D,2,FALSE),"-") -> 399.8561 | H31: =IFERROR(VLOOKUP('Planilla de carga'!$E$14,'Índices Tasa Pasiva BCRA'!C:D,2,FALSE),"-") -> - | I31: 0 | J31: 4623 | K31: =IFERROR(DATEDIF(MAX("01/01/2023",Tabla2[[#This Row],[Fecha mora]]),'Planilla de carga'!$E$14,"d"),"-") -> - | L31: =IFERROR((E31*'Planilla de carga'!$E$5*J31)/100,0) -> 0 | M31: =IFERROR((E31*K31*'Planilla de carga'!$E$6)/100,0) -> 0 | N31: 0 | O31: 0 | P31: =IF(Tabla2[[#This Row],[Monto total]]=0,"no","si") -> no
D32: 2010 - mayo | E32: =SUMIF(Tabla4[Año/Mes],Tabla2[[#This Row],[Mes concepto ]],Tabla4[Monto]) -> 0 | F32: 2010-06-04 | G32: =IFERROR(VLOOKUP((F32-1),'Índices Tasa Pasiva BCRA'!C:D,2,FALSE),"-") -> 402.8465 | H32: =IFERROR(VLOOKUP('Planilla de carga'!$E$14,'Índices Tasa Pasiva BCRA'!C:D,2,FALSE),"-") -> - | I32: 0 | J32: 4594 | K32: =IFERROR(DATEDIF(MAX("01/01/2023",Tabla2[[#This Row],[Fecha mora]]),'Planilla de carga'!$E$14,"d"),"-") -> - | L32: =IFERROR((E32*'Planilla de carga'!$E$5*J32)/100,0) -> 0 | M32: =IFERROR((E32*K32*'Planilla de carga'!$E$6)/100,0) -> 0 | N32: 0 | O32: 0 | P32: =IF(Tabla2[[#This Row],[Monto total]]=0,"no","si") -> no
D33: 2010 - junio | E33: =SUMIF(Tabla4[Año/Mes],Tabla2[[#This Row],[Mes concepto ]],Tabla4[Monto]) -> 0 | F33: 2010-07-06 | G33: =IFERROR(VLOOKUP((F33-1),'Índices Tasa Pasiva BCRA'!C:D,2,FALSE),"-") -> 406.1625 | H33: =IFERROR(VLOOKUP('Planilla de carga'!$E$14,'Índices Tasa Pasiva BCRA'!C:D,2,FALSE),"-") -> - | I33: 0 | J33: 4562 | K33: =IFERROR(DATEDIF(MAX("01/01/2023",Tabla2[[#This Row],[Fecha mora]]),'Planilla de carga'!$E$14,"d"),"-") -> - | L33: =IFERROR((E33*'Planilla de carga'!$E$5*J33)/100,0) -> 0 | M33: =IFERROR((E33*K33*'Planilla de carga'!$E$6)/100,0) -> 0 | N33: 0 | O33: 0 | P33: =IF(Tabla2[[#This Row],[Monto total]]=0,"no","si") -> no
D34: 2010 - julio | E34: =SUMIF(Tabla4[Año/Mes],Tabla2[[#This Row],[Mes concepto ]],Tabla4[Monto]) -> 0 | F34: 2010-08-05 | G34: =IFERROR(VLOOKUP((F34-1),'Índices Tasa Pasiva BCRA'!C:D,2,FALSE),"-") -> 409.1977 | H34: =IFERROR(VLOOKUP('Planilla de carga'!$E$14,'Índices Tasa Pasiva BCRA'!C:D,2,FALSE),"-") -> - | I34: 0 | J34: 4532 | K34: =IFERROR(DATEDIF(MAX("01/01/2023",Tabla2[[#This Row],[Fecha mora]]),'Planilla de carga'!$E$14,"d"),"-") -> - | L34: =IFERROR((E34*'Planilla de carga'!$E$5*J34)/100,0) -> 0 | M34: =IFERROR((E34*K34*'Planilla de carga'!$E$6)/100,0) -> 0 | N34: 0 | O34: 0 | P34: =IF(Tabla2[[#This Row],[Monto total]]=0,"no","si") -> no
D35: 2010 - agosto | E35: =SUMIF(Tabla4[Año/Mes],Tabla2[[#This Row],[Mes concepto ]],Tabla4[Monto]) -> 0 | F35: 2010-09-06 | G35: =IFERROR(VLOOKUP((F35-1),'Índices Tasa Pasiva BCRA'!C:D,2,FALSE),"-") -> 412.5218 | H35: =IFERROR(VLOOKUP('Planilla de carga'!$E$14,'Índices Tasa Pasiva BCRA'!C:D,2,FALSE),"-") -> - | I35: 0 | J35: 4500 | K35: =IFERROR(DATEDIF(MAX("01/01/2023",Tabla2[[#This Row],[Fecha mora]]),'Planilla de carga'!$E$14,"d"),"-") -> - | L35: =IFERROR((E35*'Planilla de carga'!$E$5*J35)/100,0) -> 0 | M35: =IFERROR((E35*K35*'Planilla de carga'!$E$6)/100,0) -> 0 | N35: 0 | O35: 0 | P35: =IF(Tabla2[[#This Row],[Monto total]]=0,"no","si") -> no
D36: 2010 - septiembre | E36: =SUMIF(Tabla4[Año/Mes],Tabla2[[#This Row],[Mes concepto ]],Tabla4[Monto]) -> 0 | F36: 2010-10-06 | G36: =IFERROR(VLOOKUP((F36-1),'Índices Tasa Pasiva BCRA'!C:D,2,FALSE),"-") -> 415.501 | H36: =IFERROR(VLOOKUP('Planilla de carga'!$E$14,'Índices Tasa Pasiva BCRA'!C:D,2,FALSE),"-") -> - | I36: 0 | J36: 4470 | K36: =IFERROR(DATEDIF(MAX("01/01/2023",Tabla2[[#This Row],[Fecha mora]]),'Planilla de carga'!$E$14,"d"),"-") -> - | L36: =IFERROR((E36*'Planilla de carga'!$E$5*J36)/100,0) -> 0 | M36: =IFERROR((E36*K36*'Planilla de carga'!$E$6)/100,0) -> 0 | N36: 0 | O36: 0 | P36: =IF(Tabla2[[#This Row],[Monto total]]=0,"no","si") -> no
D37: 2010 - octubre | E37: =SUMIF(Tabla4[Año/Mes],Tabla2[[#This Row],[Mes concepto ]],Tabla4[Monto]) -> 0 | F37: 2010-11-04 | G37: =IFERROR(VLOOKUP((F37-1),'Índices Tasa Pasiva BCRA'!C:D,2,FALSE),"-") -> 418.4717 | H37: =IFERROR(VLOOKUP('Planilla de carga'!$E$14,'Índices Tasa Pasiva BCRA'!C:D,2,FALSE),"-") -> - | I37: 0 | J37: 4441 | K37: =IFERROR(DATEDIF(MAX("01/01/2023",Tabla2[[#This Row],[Fecha mora]]),'Planilla de carga'!$E$14,"d"),"-") -> - | L37: =IFERROR((E37*'Planilla de carga'!$E$5*J37)/100,0) -> 0 | M37: =IFERROR((E37*K37*'Planilla de carga'!$E$6)/100,0) -> 0 | N37: 0 | O37: 0 | P37: =IF(Tabla2[[#This Row],[Monto total]]=0,"no","si") -> no
D38: 2010 - noviembre | E38: =SUMIF(Tabla4[Año/Mes],Tabla2[[#This Row],[Mes concepto ]],Tabla4[Monto]) -> 0 | F38: 2010-12-06 | G38: =IFERROR(VLOOKUP((F38-1),'Índices Tasa Pasiva BCRA'!C:D,2,FALSE),"-") -> 421.7512 | H38: =IFERROR(VLOOKUP('Planilla de carga'!$E$14,'Índices Tasa Pasiva BCRA'!C:D,2,FALSE),"-") -> - | I38: 0 | J38: 4409 | K38: =IFERROR(DATEDIF(MAX("01/01/2023",Tabla2[[#This Row],[Fecha mora]]),'Planilla de carga'!$E$14,"d"),"-") -> - | L38: =IFERROR((E38*'Planilla de carga'!$E$5*J38)/100,0) -> 0 | M38: =IFERROR((E38*K38*'Planilla de carga'!$E$6)/100,0) -> 0 | N38: 0 | O38: 0 | P38: =IF(Tabla2[[#This Row],[Monto total]]=0,"no","si") -> no
D39: 2010 - diciembre | E39: =SUMIF(Tabla4[Año/Mes],Tabla2[[#This Row],[Mes concepto ]],Tabla4[Monto]) -> 0 | F39: 2011-01-06 | G39: =IFERROR(VLOOKUP((F39-1),'Índices Tasa Pasiva BCRA'!C:D,2,FALSE),"-") -> 425.1325 | H39: =IFERROR(VLOOKUP('Planilla de carga'!$E$14,'Índices Tasa Pasiva BCRA'!C:D,2,FALSE),"-") -> - | I39: 0 | J39: 4378 | K39: =IFERROR(DATEDIF(MAX("01/01/2023",Tabla2[[#This Row],[Fecha mora]]),'Planilla de carga'!$E$14,"d"),"-") -> - | L39: =IFERROR((E39*'Planilla de carga'!$E$5*J39)/100,0) -> 0 | M39: =IFERROR((E39*K39*'Planilla de carga'!$E$6)/100,0) -> 0 | N39: 0 | O39: 0 | P39: =IF(Tabla2[[#This Row],[Monto total]]=0,"no","si") -> no
D40: 2011 - enero | E40: =SUMIF(Tabla4[Año/Mes],Tabla2[[#This Row],[Mes concepto ]],Tabla4[Monto]) -> 0 | F40: 2011-02-04 | G40: =IFERROR(VLOOKUP((F40-1),'Índices Tasa Pasiva BCRA'!C:D,2,FALSE),"-") -> 428.1379 | H40: =IFERROR(VLOOKUP('Planilla de carga'!$E$14,'Índices Tasa Pasiva BCRA'!C:D,2,FALSE),"-") -> - | I40: 0 | J40: 4349 | K40: =IFERROR(DATEDIF(MAX("01/01/2023",Tabla2[[#This Row],[Fecha mora]]),'Planilla de carga'!$E$14,"d"),"-") -> - | L40: =IFERROR((E40*'Planilla de carga'!$E$5*J40)/100,0) -> 0 | M40: =IFERROR((E40*K40*'Planilla de carga'!$E$6)/100,0) -> 0 | N40: 0 | O40: 0 | P40: =IF(Tabla2[[#This Row],[Monto total]]=0,"no","si") -> no
D41: 2011 - febrero | E41: =SUMIF(Tabla4[Año/Mes],Tabla2[[#This Row],[Mes concepto ]],Tabla4[Monto]) -> 0 | F41: 2011-03-04 | G41: =IFERROR(VLOOKUP((F41-1),'Índices Tasa Pasiva BCRA'!C:D,2,FALSE),"-") -> 431.1179 | H41: =IFERROR(VLOOKUP('Planilla de carga'!$E$14,'Índices Tasa Pasiva BCRA'!C:D,2,FALSE),"-") -> - | I41: 0 | J41: 4321 | K41: =IFERROR(DATEDIF(MAX("01/01/2023",Tabla2[[#This Row],[Fecha mora]]),'Planilla de carga'!$E$14,"d"),"-") -> - | L41: =IFERROR((E41*'Planilla de carga'!$E$5*J41)/100,0) -> 0 | M41: =IFERROR((E41*K41*'Planilla de carga'!$E$6)/100,0) -> 0 | N41: 0 | O41: 0 | P41: =IF(Tabla2[[#This Row],[Monto total]]=0,"no","si") -> no
D42: 2011 - marzo | E42: =SUMIF(Tabla4[Año/Mes],Tabla2[[#This Row],[Mes concepto ]],Tabla4[Monto]) -> 0 | F42: 2011-04-06 | G42: =IFERROR(VLOOKUP((F42-1),'Índices Tasa Pasiva BCRA'!C:D,2,FALSE),"-") -> 434.789 | H42: =IFERROR(VLOOKUP('Planilla de carga'!$E$14,'Índices Tasa Pasiva BCRA'!C:D,2,FALSE),"-") -> - | I42: 0 | J42: 4288 | K42: =IFERROR(DATEDIF(MAX("01/01/2023",Tabla2[[#This Row],[Fecha mora]]),'Planilla de carga'!$E$14,"d"),"-") -> - | L42: =IFERROR((E42*'Planilla de carga'!$E$5*J42)/100,0) -> 0 | M42: =IFERROR((E42*K42*'Planilla de carga'!$E$6)/100,0) -> 0 | N42: 0 | O42: 0 | P42: =IF(Tabla2[[#This Row],[Monto total]]=0,"no","si") -> no
D43: 2011 - abril | E43: =SUMIF(Tabla4[Año/Mes],Tabla2[[#This Row],[Mes concepto ]],Tabla4[Monto]) -> 0 | F43: 2011-05-05 | G43: =IFERROR(VLOOKUP((F43-1),'Índices Tasa Pasiva BCRA'!C:D,2,FALSE),"-") -> 438.0133 | H43: =IFERROR(VLOOKUP('Planilla de carga'!$E$14,'Índices Tasa Pasiva BCRA'!C:D,2,FALSE),"-") -> - | I43: 0 | J43: 4259 | K43: =IFERROR(DATEDIF(MAX("01/01/2023",Tabla2[[#This Row],[Fecha mora]]),'Planilla de carga'!$E$14,"d"),"-") -> - | L43: =IFERROR((E43*'Planilla de carga'!$E$5*J43)/100,0) -> 0 | M43: =IFERROR((E43*K43*'Planilla de carga'!$E$6)/100,0) -> 0 | N43: 0 | O43: 0 | P43: =IF(Tabla2[[#This Row],[Monto total]]=0,"no","si") -> no
D44: 2011 - mayo | E44: =SUMIF(Tabla4[Año/Mes],Tabla2[[#This Row],[Mes concepto ]],Tabla4[Monto]) -> 0 | F44: 2011-06-06 | G44: =IFERROR(VLOOKUP((F44-1),'Índices Tasa Pasiva BCRA'!C:D,2,FALSE),"-") -> 441.5665 | H44: =IFERROR(VLOOKUP('Planilla de carga'!$E$14,'Índices Tasa Pasiva BCRA'!C:D,2,FALSE),"-") -> - | I44: 0 | J44: 4227 | K44: =IFERROR(DATEDIF(MAX("01/01/2023",Tabla2[[#This Row],[Fecha mora]]),'Planilla de carga'!$E$14,"d"),"-") -> - | L44: =IFERROR((E44*'Planilla de carga'!$E$5*J44)/100,0) -> 0 | M44: =IFERROR((E44*K44*'Planilla de carga'!$E$6)/100,0) -> 0 | N44: 0 | O44: 0 | P44: =IF(Tabla2[[#This Row],[Monto total]]=0,"no","si") -> no
D45: 2011 - junio | E45: =SUMIF(Tabla4[Año/Mes],Tabla2[[#This Row],[Mes concepto ]],Tabla4[Monto]) -> 0 | F45: 2011-07-06 | G45: =IFERROR(VLOOKUP((F45-1),'Índices Tasa Pasiva BCRA'!C:D,2,FALSE),"-") -> 444.8484 | H45: =IFERROR(VLOOKUP('Planilla de carga'!$E$14,'Índices Tasa Pasiva BCRA'!C:D,2,FALSE),"-") -> - | I45: 0 | J45: 4197 | K45: =IFERROR(DATEDIF(MAX("01/01/2023",Tabla2[[#This Row],[Fecha mora]]),'Planilla de carga'!$E$14,"d"),"-") -> - | L45: =IFERROR((E45*'Planilla de carga'!$E$5*J45)/100,0) -> 0 | M45: =IFERROR((E45*K45*'Planilla de carga'!$E$6)/100,0) -> 0 | N45: 0 | O45: 0 | P45: =IF(Tabla2[[#This Row],[Monto total]]=0,"no","si") -> no
D46: 2011 - julio | E46: =SUMIF(Tabla4[Año/Mes],Tabla2[[#This Row],[Mes concepto ]],Tabla4[Monto]) -> 0 | F46: 2011-08-04 | G46: =IFERROR(VLOOKUP((F46-1),'Índices Tasa Pasiva BCRA'!C:D,2,FALSE),"-") -> 448.0046 | H46: =IFERROR(VLOOKUP('Planilla de carga'!$E$14,'Índices Tasa Pasiva BCRA'!C:D,2,FALSE),"-") -> - | I46: 0 | J46: 4168 | K46: =IFERROR(DATEDIF(MAX("01/01/2023",Tabla2[[#This Row],[Fecha mora]]),'Planilla de carga'!$E$14,"d"),"-") -> - | L46: =IFERROR((E46*'Planilla de carga'!$E$5*J46)/100,0) -> 0 | M46: =IFERROR((E46*K46*'Planilla de carga'!$E$6)/100,0) -> 0 | N46: 0 | O46: 0 | P46: =IF(Tabla2[[#This Row],[Monto total]]=0,"no","si") -> no
D47: 2011 - agosto | E47: =SUMIF(Tabla4[Año/Mes],Tabla2[[#This Row],[Mes concepto ]],Tabla4[Monto]) -> 0 | F47: 2011-09-06 | G47: =IFERROR(VLOOKUP((F47-1),'Índices Tasa Pasiva BCRA'!C:D,2,FALSE),"-") -> 451.8511 | H47: =IFERROR(VLOOKUP('Planilla de carga'!$E$14,'Índices Tasa Pasiva BCRA'!C:D,2,FALSE),"-") -> - | I47: 0 | J47: 4135 | K47: =IFERROR(DATEDIF(MAX("01/01/2023",Tabla2[[#This Row],[Fecha mora]]),'Planilla de carga'!$E$14,"d"),"-") -> - | L47: =IFERROR((E47*'Planilla de carga'!$E$5*J47)/100,0) -> 0 | M47: =IFERROR((E47*K47*'Planilla de carga'!$E$6)/100,0) -> 0 | N47: 0 | O47: 0 | P47: =IF(Tabla2[[#This Row],[Monto total]]=0,"no","si") -> no
D48: 2011 - septiembre | E48: =SUMIF(Tabla4[Año/Mes],Tabla2[[#This Row],[Mes concepto ]],Tabla4[Monto]) -> 0 | F48: 2011-10-06 | G48: =IFERROR(VLOOKUP((F48-1),'Índices Tasa Pasiva BCRA'!C:D,2,FALSE),"-") -> 455.5009 | H48: =IFERROR(VLOOKUP('Planilla de carga'!$E$14,'Índices Tasa Pasiva BCRA'!C:D,2,FALSE),"-") -> - | I48: 0 | J48: 4105 | K48: =IFERROR(DATEDIF(MAX("01/01/2023",Tabla2[[#This Row],[Fecha mora]]),'Planilla de carga'!$E$14,"d"),"-") -> - | L48: =IFERROR((E48*'Planilla de carga'!$E$5*J48)/100,0) -> 0 | M48: =IFERROR((E48*K48*'Planilla de carga'!$E$6)/100,0) -> 0 | N48: 0 | O48: 0 | P48: =IF(Tabla2[[#This Row],[Monto total]]=0,"no","si") -> no
D49: 2011 - octubre | E49: =SUMIF(Tabla4[Año/Mes],Tabla2[[#This Row],[Mes concepto ]],Tabla4[Monto]) -> 0 | F49: 2011-11-04 | G49: =IFERROR(VLOOKUP((F49-1),'Índices Tasa Pasiva BCRA'!C:D,2,FALSE),"-") -> 459.6661 | H49: =IFERROR(VLOOKUP('Planilla de carga'!$E$14,'Índices Tasa Pasiva BCRA'!C:D,2,FALSE),"-") -> - | I49: 0 | J49: 4076 | K49: =IFERROR(DATEDIF(MAX("01/01/2023",Tabla2[[#This Row],[Fecha mora]]),'Planilla de carga'!$E$14,"d"),"-") -> - | L49: =IFERROR((E49*'Planilla de carga'!$E$5*J49)/100,0) -> 0 | M49: =IFERROR((E49*K49*'Planilla de carga'!$E$6)/100,0) -> 0 | N49: 0 | O49: 0 | P49: =IF(Tabla2[[#This Row],[Monto total]]=0,"no","si") -> no
D50: 2011 - noviembre | E50: =SUMIF(Tabla4[Año/Mes],Tabla2[[#This Row],[Mes concepto ]],Tabla4[Monto]) -> 0 | F50: 2011-12-06 | G50: =IFERROR(VLOOKUP((F50-1),'Índices Tasa Pasiva BCRA'!C:D,2,FALSE),"-") -> 465.1709 | H50: =IFERROR(VLOOKUP('Planilla de carga'!$E$14,'Índices Tasa Pasiva BCRA'!C:D,2,FALSE),"-") -> - | I50: 0 | J50: 4044 | K50: =IFERROR(DATEDIF(MAX("01/01/2023",Tabla2[[#This Row],[Fecha mora]]),'Planilla de carga'!$E$14,"d"),"-") -> - | L50: =IFERROR((E50*'Planilla de carga'!$E$5*J50)/100,0) -> 0 | M50: =IFERROR((E50*K50*'Planilla de carga'!$E$6)/100,0) -> 0 | N50: 0 | O50: 0 | P50: =IF(Tabla2[[#This Row],[Monto total]]=0,"no","si") -> no
D51: 2011 - diciembre | E51: =SUMIF(Tabla4[Año/Mes],Tabla2[[#This Row],[Mes concepto ]],Tabla4[Monto]) -> 0 | F51: 2012-01-05 | G51: =IFERROR(VLOOKUP((F51-1),'Índices Tasa Pasiva BCRA'!C:D,2,FALSE),"-") -> 470.5115 | H51: =IFERROR(VLOOKUP('Planilla de carga'!$E$14,'Índices Tasa Pasiva BCRA'!C:D,2,FALSE),"-") -> - | I51: 0 | J51: 4014 | K51: =IFERROR(DATEDIF(MAX("01/01/2023",Tabla2[[#This Row],[Fecha mora]]),'Planilla de carga'!$E$14,"d"),"-") -> - | L51: =IFERROR((E51*'Planilla de carga'!$E$5*J51)/100,0) -> 0 | M51: =IFERROR((E51*K51*'Planilla de carga'!$E$6)/100,0) -> 0 | N51: 0 | O51: 0 | P51: =IF(Tabla2[[#This Row],[Monto total]]=0,"no","si") -> no
D52: 2012 - enero | E52: =SUMIF(Tabla4[Año/Mes],Tabla2[[#This Row],[Mes concepto ]],Tabla4[Monto]) -> 0 | F52: 2012-02-06 | G52: =IFERROR(VLOOKUP((F52-1),'Índices Tasa Pasiva BCRA'!C:D,2,FALSE),"-") -> 475.4074 | H52: =IFERROR(VLOOKUP('Planilla de carga'!$E$14,'Índices Tasa Pasiva BCRA'!C:D,2,FALSE),"-") -> - | I52: 0 | J52: 3982 | K52: =IFERROR(DATEDIF(MAX("01/01/2023",Tabla2[[#This Row],[Fecha mora]]),'Planilla de carga'!$E$14,"d"),"-") -> - | L52: =IFERROR((E52*'Planilla de carga'!$E$5*J52)/100,0) -> 0 | M52: =IFERROR((E52*K52*'Planilla de carga'!$E$6)/100,0) -> 0 | N52: 0 | O52: 0 | P52: =IF(Tabla2[[#This Row],[Monto total]]=0,"no","si") -> no
D53: 2012 - febrero | E53: =SUMIF(Tabla4[Año/Mes],Tabla2[[#This Row],[Mes concepto ]],Tabla4[Monto]) -> 0 | F53: 2012-03-06 | G53: =IFERROR(VLOOKUP((F53-1),'Índices Tasa Pasiva BCRA'!C:D,2,FALSE),"-") -> 479.7321 | H53: =IFERROR(VLOOKUP('Planilla de carga'!$E$14,'Índices Tasa Pasiva BCRA'!C:D,2,FALSE),"-") -> - | I53: 0 | J53: 3953 | K53: =IFERROR(DATEDIF(MAX("01/01/2023",Tabla2[[#This Row],[Fecha mora]]),'Planilla de carga'!$E$14,"d"),"-") -> - | L53: =IFERROR((E53*'Planilla de carga'!$E$5*J53)/100,0) -> 0 | M53: =IFERROR((E53*K53*'Planilla de carga'!$E$6)/100,0) -> 0 | N53: 0 | O53: 0 | P53: =IF(Tabla2[[#This Row],[Monto total]]=0,"no","si") -> no
D54: 2012 - marzo | E54: =SUMIF(Tabla4[Año/Mes],Tabla2[[#This Row],[Mes concepto ]],Tabla4[Monto]) -> 0 | F54: 2012-04-09 | G54: =IFERROR(VLOOKUP((F54-1),'Índices Tasa Pasiva BCRA'!C:D,2,FALSE),"-") -> 484.6776 | H54: =IFERROR(VLOOKUP('Planilla de carga'!$E$14,'Índices Tasa Pasiva BCRA'!C:D,2,FALSE),"-") -> - | I54: 0 | J54: 3919 | K54: =IFERROR(DATEDIF(MAX("01/01/2023",Tabla2[[#This Row],[Fecha mora]]),'Planilla de carga'!$E$14,"d"),"-") -> - | L54: =IFERROR((E54*'Planilla de carga'!$E$5*J54)/100,0) -> 0 | M54: =IFERROR((E54*K54*'Planilla de carga'!$E$6)/100,0) -> 0 | N54: 0 | O54: 0 | P54: =IF(Tabla2[[#This Row],[Monto total]]=0,"no","si") -> no
D55: 2012 - abril | E55: =SUMIF(Tabla4[Año/Mes],Tabla2[[#This Row],[Mes concepto ]],Tabla4[Monto]) -> 0 | F55: 2012-05-07 | G55: =IFERROR(VLOOKUP((F55-1),'Índices Tasa Pasiva BCRA'!C:D,2,FALSE),"-") -> 488.6329 | H55: =IFERROR(VLOOKUP('Planilla de carga'!$E$14,'Índices Tasa Pasiva BCRA'!C:D,2,FALSE),"-") -> - | I55: 0 | J55: 3891 | K55: =IFERROR(DATEDIF(MAX("01/01/2023",Tabla2[[#This Row],[Fecha mora]]),'Planilla de carga'!$E$14,"d"),"-") -> - | L55: =IFERROR((E55*'Planilla de carga'!$E$5*J55)/100,0) -> 0 | M55: =IFERROR((E55*K55*'Planilla de carga'!$E$6)/100,0) -> 0 | N55: 0 | O55: 0 | P55: =IF(Tabla2[[#This Row],[Monto total]]=0,"no","si") -> no
D56: 2012 - mayo | E56: =SUMIF(Tabla4[Año/Mes],Tabla2[[#This Row],[Mes concepto ]],Tabla4[Monto]) -> 0 | F56: 2012-06-06 | G56: =IFERROR(VLOOKUP((F56-1),'Índices Tasa Pasiva BCRA'!C:D,2,FALSE),"-") -> 492.8063 | H56: =IFERROR(VLOOKUP('Planilla de carga'!$E$14,'Índices Tasa Pasiva BCRA'!C:D,2,FALSE),"-") -> - | I56: 0 | J56: 3861 | K56: =IFERROR(DATEDIF(MAX("01/01/2023",Tabla2[[#This Row],[Fecha mora]]),'Planilla de carga'!$E$14,"d"),"-") -> - | L56: =IFERROR((E56*'Planilla de carga'!$E$5*J56)/100,0) -> 0 | M56: =IFERROR((E56*K56*'Planilla de carga'!$E$6)/100,0) -> 0 | N56: 0 | O56: 0 | P56: =IF(Tabla2[[#This Row],[Monto total]]=0,"no","si") -> no
D57: 2012 - junio | E57: =SUMIF(Tabla4[Año/Mes],Tabla2[[#This Row],[Mes concepto ]],Tabla4[Monto]) -> 0 | F57: 2012-07-05 | G57: =IFERROR(VLOOKUP((F57-1),'Índices Tasa Pasiva BCRA'!C:D,2,FALSE),"-") -> 496.8861 | H57: =IFERROR(VLOOKUP('Planilla de carga'!$E$14,'Índices Tasa Pasiva BCRA'!C:D,2,FALSE),"-") -> - | I57: 0 | J57: 3832 | K57: =IFERROR(DATEDIF(MAX("01/01/2023",Tabla2[[#This Row],[Fecha mora]]),'Planilla de carga'!$E$14,"d"),"-") -> - | L57: =IFERROR((E57*'Planilla de carga'!$E$5*J57)/100,0) -> 0 | M57: =IFERROR((E57*K57*'Planilla de carga'!$E$6)/100,0) -> 0 | N57: 0 | O57: 0 | P57: =IF(Tabla2[[#This Row],[Monto total]]=0,"no","si") -> no
D58: 2012 - julio | E58: =SUMIF(Tabla4[Año/Mes],Tabla2[[#This Row],[Mes concepto ]],Tabla4[Monto]) -> 0 | F58: 2012-08-06 | G58: =IFERROR(VLOOKUP((F58-1),'Índices Tasa Pasiva BCRA'!C:D,2,FALSE),"-") -> 501.6007 | H58: =IFERROR(VLOOKUP('Planilla de carga'!$E$14,'Índices Tasa Pasiva BCRA'!C:D,2,FALSE),"-") -> - | I58: 0 | J58: 3800 | K58: =IFERROR(DATEDIF(MAX("01/01/2023",Tabla2[[#This Row],[Fecha mora]]),'Planilla de carga'!$E$14,"d"),"-") -> - | L58: =IFERROR((E58*'Planilla de carga'!$E$5*J58)/100,0) -> 0 | M58: =IFERROR((E58*K58*'Planilla de carga'!$E$6)/100,0) -> 0 | N58: 0 | O58: 0 | P58: =IF(Tabla2[[#This Row],[Monto total]]=0,"no","si") -> no
D59: 2012 - agosto | E59: =SUMIF(Tabla4[Año/Mes],Tabla2[[#This Row],[Mes concepto ]],Tabla4[Monto]) -> 0 | F59: 2012-09-06 | G59: =IFERROR(VLOOKUP((F59-1),'Índices Tasa Pasiva BCRA'!C:D,2,FALSE),"-") -> 506.4522 | H59: =IFERROR(VLOOKUP('Planilla de carga'!$E$14,'Índices Tasa Pasiva BCRA'!C:D,2,FALSE),"-") -> - | I59: 0 | J59: 3769 | K59: =IFERROR(DATEDIF(MAX("01/01/2023",Tabla2[[#This Row],[Fecha mora]]),'Planilla de carga'!$E$14,"d"),"-") -> - | L59: =IFERROR((E59*'Planilla de carga'!$E$5*J59)/100,0) -> 0 | M59: =IFERROR((E59*K59*'Planilla de carga'!$E$6)/100,0) -> 0 | N59: 0 | O59: 0 | P59: =IF(Tabla2[[#This Row],[Monto total]]=0,"no","si") -> no
D60: 2012 - septiembre | E60: =SUMIF(Tabla4[Año/Mes],Tabla2[[#This Row],[Mes concepto ]],Tabla4[Monto]) -> 0 | F60: 2012-10-04 | G60: =IFERROR(VLOOKUP((F60-1),'Índices Tasa Pasiva BCRA'!C:D,2,FALSE),"-") -> 510.8617 | H60: =IFERROR(VLOOKUP('Planilla de carga'!$E$14,'Índices Tasa Pasiva BCRA'!C:D,2,FALSE),"-") -> - | I60: 0 | J60: 3741 | K60: =IFERROR(DATEDIF(MAX("01/01/2023",Tabla2[[#This Row],[Fecha mora]]),'Planilla de carga'!$E$14,"d"),"-") -> - | L60: =IFERROR((E60*'Planilla de carga'!$E$5*J60)/100,0) -> 0 | M60: =IFERROR((E60*K60*'Planilla de carga'!$E$6)/100,0) -> 0 | N60: 0 | O60: 0 | P60: =IF(Tabla2[[#This Row],[Monto total]]=0,"no","si") -> no
D61: 2012 - octubre | E61: =SUMIF(Tabla4[Año/Mes],Tabla2[[#This Row],[Mes concepto ]],Tabla4[Monto]) -> 0 | F61: 2012-11-06 | G61: =IFERROR(VLOOKUP((F61-1),'Índices Tasa Pasiva BCRA'!C:D,2,FALSE),"-") -> 516.3982 | H61: =IFERROR(VLOOKUP('Planilla de carga'!$E$14,'Índices Tasa Pasiva BCRA'!C:D,2,FALSE),"-") -> - | I61: 0 | J61: 3708 | K61: =IFERROR(DATEDIF(MAX("01/01/2023",Tabla2[[#This Row],[Fecha mora]]),'Planilla de carga'!$E$14,"d"),"-") -> - | L61: =IFERROR((E61*'Planilla de carga'!$E$5*J61)/100,0) -> 0 | M61: =IFERROR((E61*K61*'Planilla de carga'!$E$6)/100,0) -> 0 | N61: 0 | O61: 0 | P61: =IF(Tabla2[[#This Row],[Monto total]]=0,"no","si") -> no
D62: 2012 - noviembre | E62: =SUMIF(Tabla4[Año/Mes],Tabla2[[#This Row],[Mes concepto ]],Tabla4[Monto]) -> 0 | F62: 2012-12-06 | G62: =IFERROR(VLOOKUP((F62-1),'Índices Tasa Pasiva BCRA'!C:D,2,FALSE),"-") -> 521.6847 | H62: =IFERROR(VLOOKUP('Planilla de carga'!$E$14,'Índices Tasa Pasiva BCRA'!C:D,2,FALSE),"-") -> - | I62: 0 | J62: 3678 | K62: =IFERROR(DATEDIF(MAX("01/01/2023",Tabla2[[#This Row],[Fecha mora]]),'Planilla de carga'!$E$14,"d"),"-") -> - | L62: =IFERROR((E62*'Planilla de carga'!$E$5*J62)/100,0) -> 0 | M62: =IFERROR((E62*K62*'Planilla de carga'!$E$6)/100,0) -> 0 | N62: 0 | O62: 0 | P62: =IF(Tabla2[[#This Row],[Monto total]]=0,"no","si") -> no
D63: 2012 - diciembre | E63: =SUMIF(Tabla4[Año/Mes],Tabla2[[#This Row],[Mes concepto ]],Tabla4[Monto]) -> 0 | F63: 2013-01-07 | G63: =IFERROR(VLOOKUP((F63-1),'Índices Tasa Pasiva BCRA'!C:D,2,FALSE),"-") -> 527.6192 | H63: =IFERROR(VLOOKUP('Planilla de carga'!$E$14,'Índices Tasa Pasiva BCRA'!C:D,2,FALSE),"-") -> - | I63: 0 | J63: 3646 | K63: =IFERROR(DATEDIF(MAX("01/01/2023",Tabla2[[#This Row],[Fecha mora]]),'Planilla de carga'!$E$14,"d"),"-") -> - | L63: =IFERROR((E63*'Planilla de carga'!$E$5*J63)/100,0) -> 0 | M63: =IFERROR((E63*K63*'Planilla de carga'!$E$6)/100,0) -> 0 | N63: 0 | O63: 0 | P63: =IF(Tabla2[[#This Row],[Monto total]]=0,"no","si") -> no
D64: 2013 - enero | E64: =SUMIF(Tabla4[Año/Mes],Tabla2[[#This Row],[Mes concepto ]],Tabla4[Monto]) -> 0 | F64: 2013-02-06 | G64: =IFERROR(VLOOKUP((F64-1),'Índices Tasa Pasiva BCRA'!C:D,2,FALSE),"-") -> 532.9495 | H64: =IFERROR(VLOOKUP('Planilla de carga'!$E$14,'Índices Tasa Pasiva BCRA'!C:D,2,FALSE),"-") -> - | I64: 0 | J64: 3616 | K64: =IFERROR(DATEDIF(MAX("01/01/2023",Tabla2[[#This Row],[Fecha mora]]),'Planilla de carga'!$E$14,"d"),"-") -> - | L64: =IFERROR((E64*'Planilla de carga'!$E$5*J64)/100,0) -> 0 | M64: =IFERROR((E64*K64*'Planilla de carga'!$E$6)/100,0) -> 0 | N64: 0 | O64: 0 | P64: =IF(Tabla2[[#This Row],[Monto total]]=0,"no","si") -> no
D65: 2013 - febrero | E65: =SUMIF(Tabla4[Año/Mes],Tabla2[[#This Row],[Mes concepto ]],Tabla4[Monto]) -> 0 | F65: 2013-03-06 | G65: =IFERROR(VLOOKUP((F65-1),'Índices Tasa Pasiva BCRA'!C:D,2,FALSE),"-") -> 538.1297 | H65: =IFERROR(VLOOKUP('Planilla de carga'!$E$14,'Índices Tasa Pasiva BCRA'!C:D,2,FALSE),"-") -> - | I65: 0 | J65: 3588 | K65: =IFERROR(DATEDIF(MAX("01/01/2023",Tabla2[[#This Row],[Fecha mora]]),'Planilla de carga'!$E$14,"d"),"-") -> - | L65: =IFERROR((E65*'Planilla de carga'!$E$5*J65)/100,0) -> 0 | M65: =IFERROR((E65*K65*'Planilla de carga'!$E$6)/100,0) -> 0 | N65: 0 | O65: 0 | P65: =IF(Tabla2[[#This Row],[Monto total]]=0,"no","si") -> no
D66: 2013 - marzo | E66: =SUMIF(Tabla4[Año/Mes],Tabla2[[#This Row],[Mes concepto ]],Tabla4[Monto]) -> 0 | F66: 2013-04-08 | G66: =IFERROR(VLOOKUP((F66-1),'Índices Tasa Pasiva BCRA'!C:D,2,FALSE),"-") -> 544.3266 | H66: =IFERROR(VLOOKUP('Planilla de carga'!$E$14,'Índices Tasa Pasiva BCRA'!C:D,2,FALSE),"-") -> - | I66: 0 | J66: 3555 | K66: =IFERROR(DATEDIF(MAX("01/01/2023",Tabla2[[#This Row],[Fecha mora]]),'Planilla de carga'!$E$14,"d"),"-") -> - | L66: =IFERROR((E66*'Planilla de carga'!$E$5*J66)/100,0) -> 0 | M66: =IFERROR((E66*K66*'Planilla de carga'!$E$6)/100,0) -> 0 | N66: 0 | O66: 0 | P66: =IF(Tabla2[[#This Row],[Monto total]]=0,"no","si") -> no
D67: 2013 - abril | E67: =SUMIF(Tabla4[Año/Mes],Tabla2[[#This Row],[Mes concepto ]],Tabla4[Monto]) -> 0 | F67: 2013-05-07 | G67: =IFERROR(VLOOKUP((F67-1),'Índices Tasa Pasiva BCRA'!C:D,2,FALSE),"-") -> 549.7853 | H67: =IFERROR(VLOOKUP('Planilla de carga'!$E$14,'Índices Tasa Pasiva BCRA'!C:D,2,FALSE),"-") -> - | I67: 0 | J67: 3526 | K67: =IFERROR(DATEDIF(MAX("01/01/2023",Tabla2[[#This Row],[Fecha mora]]),'Planilla de carga'!$E$14,"d"),"-") -> - | L67: =IFERROR((E67*'Planilla de carga'!$E$5*J67)/100,0) -> 0 | M67: =IFERROR((E67*K67*'Planilla de carga'!$E$6)/100,0) -> 0 | N67: 0 | O67: 0 | P67: =IF(Tabla2[[#This Row],[Monto total]]=0,"no","si") -> no
D68: 2013 - mayo | E68: =SUMIF(Tabla4[Año/Mes],Tabla2[[#This Row],[Mes concepto ]],Tabla4[Monto]) -> 0 | F68: 2013-06-06 | G68: =IFERROR(VLOOKUP((F68-1),'Índices Tasa Pasiva BCRA'!C:D,2,FALSE),"-") -> 555.6527 | H68: =IFERROR(VLOOKUP('Planilla de carga'!$E$14,'Índices Tasa Pasiva BCRA'!C:D,2,FALSE),"-") -> - | I68: 0 | J68: 3496 | K68: =IFERROR(DATEDIF(MAX("01/01/2023",Tabla2[[#This Row],[Fecha mora]]),'Planilla de carga'!$E$14,"d"),"-") -> - | L68: =IFERROR((E68*'Planilla de carga'!$E$5*J68)/100,0) -> 0 | M68: =IFERROR((E68*K68*'Planilla de carga'!$E$6)/100,0) -> 0 | N68: 0 | O68: 0 | P68: =IF(Tabla2[[#This Row],[Monto total]]=0,"no","si") -> no
D69: 2013 - junio | E69: =SUMIF(Tabla4[Año/Mes],Tabla2[[#This Row],[Mes concepto ]],Tabla4[Monto]) -> 0 | F69: 2013-07-04 | G69: =IFERROR(VLOOKUP((F69-1),'Índices Tasa Pasiva BCRA'!C:D,2,FALSE),"-") -> 561.3504 | H69: =IFERROR(VLOOKUP('Planilla de carga'!$E$14,'Índices Tasa Pasiva BCRA'!C:D,2,FALSE),"-") -> - | I69: 0 | J69: 3468 | K69: =IFERROR(DATEDIF(MAX("01/01/2023",Tabla2[[#This Row],[Fecha mora]]),'Planilla de carga'!$E$14,"d"),"-") -> - | L69: =IFERROR((E69*'Planilla de carga'!$E$5*J69)/100,0) -> 0 | M69: =IFERROR((E69*K69*'Planilla de carga'!$E$6)/100,0) -> 0 | N69: 0 | O69: 0 | P69: =IF(Tabla2[[#This Row],[Monto total]]=0,"no","si") -> no
D70: 2013 - julio | E70: =SUMIF(Tabla4[Año/Mes],Tabla2[[#This Row],[Mes concepto ]],Tabla4[Monto]) -> 0 | F70: 2013-08-06 | G70: =IFERROR(VLOOKUP((F70-1),'Índices Tasa Pasiva BCRA'!C:D,2,FALSE),"-") -> 568.2734 | H70: =IFERROR(VLOOKUP('Planilla de carga'!$E$14,'Índices Tasa Pasiva BCRA'!C:D,2,FALSE),"-") -> - | I70: 0 | J70: 3435 | K70: =IFERROR(DATEDIF(MAX("01/01/2023",Tabla2[[#This Row],[Fecha mora]]),'Planilla de carga'!$E$14,"d"),"-") -> - | L70: =IFERROR((E70*'Planilla de carga'!$E$5*J70)/100,0) -> 0 | M70: =IFERROR((E70*K70*'Planilla de carga'!$E$6)/100,0) -> 0 | N70: 0 | O70: 0 | P70: =IF(Tabla2[[#This Row],[Monto total]]=0,"no","si") -> no
D71: 2013 - agosto | E71: =SUMIF(Tabla4[Año/Mes],Tabla2[[#This Row],[Mes concepto ]],Tabla4[Monto]) -> 0 | F71: 2013-09-05 | G71: =IFERROR(VLOOKUP((F71-1),'Índices Tasa Pasiva BCRA'!C:D,2,FALSE),"-") -> 574.7534 | H71: =IFERROR(VLOOKUP('Planilla de carga'!$E$14,'Índices Tasa Pasiva BCRA'!C:D,2,FALSE),"-") -> - | I71: 0 | J71: 3405 | K71: =IFERROR(DATEDIF(MAX("01/01/2023",Tabla2[[#This Row],[Fecha mora]]),'Planilla de carga'!$E$14,"d"),"-") -> - | L71: =IFERROR((E71*'Planilla de carga'!$E$5*J71)/100,0) -> 0 | M71: =IFERROR((E71*K71*'Planilla de carga'!$E$6)/100,0) -> 0 | N71: 0 | O71: 0 | P71: =IF(Tabla2[[#This Row],[Monto total]]=0,"no","si") -> no
D72: 2013 - septiembre | E72: =SUMIF(Tabla4[Año/Mes],Tabla2[[#This Row],[Mes concepto ]],Tabla4[Monto]) -> 0 | F72: 2013-10-04 | G72: =IFERROR(VLOOKUP((F72-1),'Índices Tasa Pasiva BCRA'!C:D,2,FALSE),"-") -> 581.205 | H72: =IFERROR(VLOOKUP('Planilla de carga'!$E$14,'Índices Tasa Pasiva BCRA'!C:D,2,FALSE),"-") -> - | I72: 0 | J72: 3376 | K72: =IFERROR(DATEDIF(MAX("01/01/2023",Tabla2[[#This Row],[Fecha mora]]),'Planilla de carga'!$E$14,"d"),"-") -> - | L72: =IFERROR((E72*'Planilla de carga'!$E$5*J72)/100,0) -> 0 | M72: =IFERROR((E72*K72*'Planilla de carga'!$E$6)/100,0) -> 0 | N72: 0 | O72: 0 | P72: =IF(Tabla2[[#This Row],[Monto total]]=0,"no","si") -> no
D73: 2013 - octubre | E73: =SUMIF(Tabla4[Año/Mes],Tabla2[[#This Row],[Mes concepto ]],Tabla4[Monto]) -> 0 | F73: 2013-11-06 | G73: =IFERROR(VLOOKUP((F73-1),'Índices Tasa Pasiva BCRA'!C:D,2,FALSE),"-") -> 589.1112 | H73: =IFERROR(VLOOKUP('Planilla de carga'!$E$14,'Índices Tasa Pasiva BCRA'!C:D,2,FALSE),"-") -> - | I73: 0 | J73: 3343 | K73: =IFERROR(DATEDIF(MAX("01/01/2023",Tabla2[[#This Row],[Fecha mora]]),'Planilla de carga'!$E$14,"d"),"-") -> - | L73: =IFERROR((E73*'Planilla de carga'!$E$5*J73)/100,0) -> 0 | M73: =IFERROR((E73*K73*'Planilla de carga'!$E$6)/100,0) -> 0 | N73: 0 | O73: 0 | P73: =IF(Tabla2[[#This Row],[Monto total]]=0,"no","si") -> no
D74: 2013 - noviembre | E74: =SUMIF(Tabla4[Año/Mes],Tabla2[[#This Row],[Mes concepto ]],Tabla4[Monto]) -> 0 | F74: 2013-12-05 | G74: =IFERROR(VLOOKUP((F74-1),'Índices Tasa Pasiva BCRA'!C:D,2,FALSE),"-") -> 596.4168 | H74: =IFERROR(VLOOKUP('Planilla de carga'!$E$14,'Índices Tasa Pasiva BCRA'!C:D,2,FALSE),"-") -> - | I74: 0 | J74: 3314 | K74: =IFERROR(DATEDIF(MAX("01/01/2023",Tabla2[[#This Row],[Fecha mora]]),'Planilla de carga'!$E$14,"d"),"-") -> - | L74: =IFERROR((E74*'Planilla de carga'!$E$5*J74)/100,0) -> 0 | M74: =IFERROR((E74*K74*'Planilla de carga'!$E$6)/100,0) -> 0 | N74: 0 | O74: 0 | P74: =IF(Tabla2[[#This Row],[Monto total]]=0,"no","si") -> no
D75: 2013 - diciembre | E75: =SUMIF(Tabla4[Año/Mes],Tabla2[[#This Row],[Mes concepto ]],Tabla4[Monto]) -> 0 | F75: 2014-01-07 | G75: =IFERROR(VLOOKUP((F75-1),'Índices Tasa Pasiva BCRA'!C:D,2,FALSE),"-") -> 605.273 | H75: =IFERROR(VLOOKUP('Planilla de carga'!$E$14,'Índices Tasa Pasiva BCRA'!C:D,2,FALSE),"-") -> - | I75: 0 | J75: 3281 | K75: =IFERROR(DATEDIF(MAX("01/01/2023",Tabla2[[#This Row],[Fecha mora]]),'Planilla de carga'!$E$14,"d"),"-") -> - | L75: =IFERROR((E75*'Planilla de carga'!$E$5*J75)/100,0) -> 0 | M75: =IFERROR((E75*K75*'Planilla de carga'!$E$6)/100,0) -> 0 | N75: 0 | O75: 0 | P75: =IF(Tabla2[[#This Row],[Monto total]]=0,"no","si") -> no
D76: 2014 - enero | E76: =SUMIF(Tabla4[Año/Mes],Tabla2[[#This Row],[Mes concepto ]],Tabla4[Monto]) -> 0 | F76: 2014-02-06 | G76: =IFERROR(VLOOKUP((F76-1),'Índices Tasa Pasiva BCRA'!C:D,2,FALSE),"-") -> 613.4724 | H76: =IFERROR(VLOOKUP('Planilla de carga'!$E$14,'Índices Tasa Pasiva BCRA'!C:D,2,FALSE),"-") -> - | I76: 0 | J76: 3251 | K76: =IFERROR(DATEDIF(MAX("01/01/2023",Tabla2[[#This Row],[Fecha mora]]),'Planilla de carga'!$E$14,"d"),"-") -> - | L76: =IFERROR((E76*'Planilla de carga'!$E$5*J76)/100,0) -> 0 | M76: =IFERROR((E76*K76*'Planilla de carga'!$E$6)/100,0) -> 0 | N76: 0 | O76: 0 | P76: =IF(Tabla2[[#This Row],[Monto total]]=0,"no","si") -> no
D77: 2014 - febrero | E77: =SUMIF(Tabla4[Año/Mes],Tabla2[[#This Row],[Mes concepto ]],Tabla4[Monto]) -> 0 | F77: 2014-03-10 | G77: =IFERROR(VLOOKUP((F77-1),'Índices Tasa Pasiva BCRA'!C:D,2,FALSE),"-") -> 624.4052 | H77: =IFERROR(VLOOKUP('Planilla de carga'!$E$14,'Índices Tasa Pasiva BCRA'!C:D,2,FALSE),"-") -> - | I77: 0 | J77: 3219 | K77: =IFERROR(DATEDIF(MAX("01/01/2023",Tabla2[[#This Row],[Fecha mora]]),'Planilla de carga'!$E$14,"d"),"-") -> - | L77: =IFERROR((E77*'Planilla de carga'!$E$5*J77)/100,0) -> 0 | M77: =IFERROR((E77*K77*'Planilla de carga'!$E$6)/100,0) -> 0 | N77: 0 | O77: 0 | P77: =IF(Tabla2[[#This Row],[Monto total]]=0,"no","si") -> no
D78: 2014 - marzo | E78: =SUMIF(Tabla4[Año/Mes],Tabla2[[#This Row],[Mes concepto ]],Tabla4[Monto]) -> 0 | F78: 2014-04-07 | G78: =IFERROR(VLOOKUP((F78-1),'Índices Tasa Pasiva BCRA'!C:D,2,FALSE),"-") -> 634.8744 | H78: =IFERROR(VLOOKUP('Planilla de carga'!$E$14,'Índices Tasa Pasiva BCRA'!C:D,2,FALSE),"-") -> - | I78: 0 | J78: 3191 | K78: =IFERROR(DATEDIF(MAX("01/01/2023",Tabla2[[#This Row],[Fecha mora]]),'Planilla de carga'!$E$14,"d"),"-") -> - | L78: =IFERROR((E78*'Planilla de carga'!$E$5*J78)/100,0) -> 0 | M78: =IFERROR((E78*K78*'Planilla de carga'!$E$6)/100,0) -> 0 | N78: 0 | O78: 0 | P78: =IF(Tabla2[[#This Row],[Monto total]]=0,"no","si") -> no
D79: 2014 - abril | E79: =SUMIF(Tabla4[Año/Mes],Tabla2[[#This Row],[Mes concepto ]],Tabla4[Monto]) -> 0 | F79: 2014-05-08 | G79: =IFERROR(VLOOKUP((F79-1),'Índices Tasa Pasiva BCRA'!C:D,2,FALSE),"-") -> 646.6788 | H79: =IFERROR(VLOOKUP('Planilla de carga'!$E$14,'Índices Tasa Pasiva BCRA'!C:D,2,FALSE),"-") -> - | I79: 0 | J79: 3160 | K79: =IFERROR(DATEDIF(MAX("01/01/2023",Tabla2[[#This Row],[Fecha mora]]),'Planilla de carga'!$E$14,"d"),"-") -> - | L79: =IFERROR((E79*'Planilla de carga'!$E$5*J79)/100,0) -> 0 | M79: =IFERROR((E79*K79*'Planilla de carga'!$E$6)/100,0) -> 0 | N79: 0 | O79: 0 | P79: =IF(Tabla2[[#This Row],[Monto total]]=0,"no","si") -> no
D80: 2014 - mayo | E80: =SUMIF(Tabla4[Año/Mes],Tabla2[[#This Row],[Mes concepto ]],Tabla4[Monto]) -> 0 | F80: 2014-06-05 | G80: =IFERROR(VLOOKUP((F80-1),'Índices Tasa Pasiva BCRA'!C:D,2,FALSE),"-") -> 656.5945 | H80: =IFERROR(VLOOKUP('Planilla de carga'!$E$14,'Índices Tasa Pasiva BCRA'!C:D,2,FALSE),"-") -> - | I80: 0 | J80: 3132 | K80: =IFERROR(DATEDIF(MAX("01/01/2023",Tabla2[[#This Row],[Fecha mora]]),'Planilla de carga'!$E$14,"d"),"-") -> - | L80: =IFERROR((E80*'Planilla de carga'!$E$5*J80)/100,0) -> 0 | M80: =IFERROR((E80*K80*'Planilla de carga'!$E$6)/100,0) -> 0 | N80: 0 | O80: 0 | P80: =IF(Tabla2[[#This Row],[Monto total]]=0,"no","si") -> no
D81: 2014 - junio | E81: =SUMIF(Tabla4[Año/Mes],Tabla2[[#This Row],[Mes concepto ]],Tabla4[Monto]) -> 0 | F81: 2014-07-04 | G81: =IFERROR(VLOOKUP((F81-1),'Índices Tasa Pasiva BCRA'!C:D,2,FALSE),"-") -> 666.314 | H81: =IFERROR(VLOOKUP('Planilla de carga'!$E$14,'Índices Tasa Pasiva BCRA'!C:D,2,FALSE),"-") -> - | I81: 0 | J81: 3103 | K81: =IFERROR(DATEDIF(MAX("01/01/2023",Tabla2[[#This Row],[Fecha mora]]),'Planilla de carga'!$E$14,"d"),"-") -> - | L81: =IFERROR((E81*'Planilla de carga'!$E$5*J81)/100,0) -> 0 | M81: =IFERROR((E81*K81*'Planilla de carga'!$E$6)/100,0) -> 0 | N81: 0 | O81: 0 | P81: =IF(Tabla2[[#This Row],[Monto total]]=0,"no","si") -> no
D82: 2014 - julio | E82: =SUMIF(Tabla4[Año/Mes],Tabla2[[#This Row],[Mes concepto ]],Tabla4[Monto]) -> 0 | F82: 2014-08-06 | G82: =IFERROR(VLOOKUP((F82-1),'Índices Tasa Pasiva BCRA'!C:D,2,FALSE),"-") -> 676.9492 | H82: =IFERROR(VLOOKUP('Planilla de carga'!$E$14,'Índices Tasa Pasiva BCRA'!C:D,2,FALSE),"-") -> - | I82: 0 | J82: 3070 | K82: =IFERROR(DATEDIF(MAX("01/01/2023",Tabla2[[#This Row],[Fecha mora]]),'Planilla de carga'!$E$14,"d"),"-") -> - | L82: =IFERROR((E82*'Planilla de carga'!$E$5*J82)/100,0) -> 0 | M82: =IFERROR((E82*K82*'Planilla de carga'!$E$6)/100,0) -> 0 | N82: 0 | O82: 0 | P82: =IF(Tabla2[[#This Row],[Monto total]]=0,"no","si") -> no
D83: 2014 - agosto | E83: =SUMIF(Tabla4[Año/Mes],Tabla2[[#This Row],[Mes concepto ]],Tabla4[Monto]) -> 0 | F83: 2014-09-04 | G83: =IFERROR(VLOOKUP((F83-1),'Índices Tasa Pasiva BCRA'!C:D,2,FALSE),"-") -> 686.0087 | H83: =IFERROR(VLOOKUP('Planilla de carga'!$E$14,'Índices Tasa Pasiva BCRA'!C:D,2,FALSE),"-") -> - | I83: 0 | J83: 3041 | K83: =IFERROR(DATEDIF(MAX("01/01/2023",Tabla2[[#This Row],[Fecha mora]]),'Planilla de carga'!$E$14,"d"),"-") -> - | L83: =IFERROR((E83*'Planilla de carga'!$E$5*J83)/100,0) -> 0 | M83: =IFERROR((E83*K83*'Planilla de carga'!$E$6)/100,0) -> 0 | N83: 0 | O83: 0 | P83: =IF(Tabla2[[#This Row],[Monto total]]=0,"no","si") -> no
D84: 2014 - septiembre | E84: =SUMIF(Tabla4[Año/Mes],Tabla2[[#This Row],[Mes concepto ]],Tabla4[Monto]) -> 0 | F84: 2014-10-06 | G84: =IFERROR(VLOOKUP((F84-1),'Índices Tasa Pasiva BCRA'!C:D,2,FALSE),"-") -> 696.0577 | H84: =IFERROR(VLOOKUP('Planilla de carga'!$E$14,'Índices Tasa Pasiva BCRA'!C:D,2,FALSE),"-") -> - | I84: 0 | J84: 3009 | K84: =IFERROR(DATEDIF(MAX("01/01/2023",Tabla2[[#This Row],[Fecha mora]]),'Planilla de carga'!$E$14,"d"),"-") -> - | L84: =IFERROR((E84*'Planilla de carga'!$E$5*J84)/100,0) -> 0 | M84: =IFERROR((E84*K84*'Planilla de carga'!$E$6)/100,0) -> 0 | N84: 0 | O84: 0 | P84: =IF(Tabla2[[#This Row],[Monto total]]=0,"no","si") -> no
D85: 2014 - octubre | E85: =SUMIF(Tabla4[Año/Mes],Tabla2[[#This Row],[Mes concepto ]],Tabla4[Monto]) -> 0 | F85: 2014-11-06 | G85: =IFERROR(VLOOKUP((F85-1),'Índices Tasa Pasiva BCRA'!C:D,2,FALSE),"-") -> 706.4508 | H85: =IFERROR(VLOOKUP('Planilla de carga'!$E$14,'Índices Tasa Pasiva BCRA'!C:D,2,FALSE),"-") -> - | I85: 0 | J85: 2978 | K85: =IFERROR(DATEDIF(MAX("01/01/2023",Tabla2[[#This Row],[Fecha mora]]),'Planilla de carga'!$E$14,"d"),"-") -> - | L85: =IFERROR((E85*'Planilla de carga'!$E$5*J85)/100,0) -> 0 | M85: =IFERROR((E85*K85*'Planilla de carga'!$E$6)/100,0) -> 0 | N85: 0 | O85: 0 | P85: =IF(Tabla2[[#This Row],[Monto total]]=0,"no","si") -> no
D86: 2014 - noviembre | E86: =SUMIF(Tabla4[Año/Mes],Tabla2[[#This Row],[Mes concepto ]],Tabla4[Monto]) -> 0 | F86: 2014-12-04 | G86: =IFERROR(VLOOKUP((F86-1),'Índices Tasa Pasiva BCRA'!C:D,2,FALSE),"-") -> 716.1585 | H86: =IFERROR(VLOOKUP('Planilla de carga'!$E$14,'Índices Tasa Pasiva BCRA'!C:D,2,FALSE),"-") -> - | I86: 0 | J86: 2950 | K86: =IFERROR(DATEDIF(MAX("01/01/2023",Tabla2[[#This Row],[Fecha mora]]),'Planilla de carga'!$E$14,"d"),"-") -> - | L86: =IFERROR((E86*'Planilla de carga'!$E$5*J86)/100,0) -> 0 | M86: =IFERROR((E86*K86*'Planilla de carga'!$E$6)/100,0) -> 0 | N86: 0 | O86: 0 | P86: =IF(Tabla2[[#This Row],[Monto total]]=0,"no","si") -> no
D87: 2014 - diciembre | E87: =SUMIF(Tabla4[Año/Mes],Tabla2[[#This Row],[Mes concepto ]],Tabla4[Monto]) -> 0 | F87: 2015-01-07 | G87: =IFERROR(VLOOKUP((F87-1),'Índices Tasa Pasiva BCRA'!C:D,2,FALSE),"-") -> 728.2341 | H87: =IFERROR(VLOOKUP('Planilla de carga'!$E$14,'Índices Tasa Pasiva BCRA'!C:D,2,FALSE),"-") -> - | I87: 0 | J87: 2916 | K87: =IFERROR(DATEDIF(MAX("01/01/2023",Tabla2[[#This Row],[Fecha mora]]),'Planilla de carga'!$E$14,"d"),"-") -> - | L87: =IFERROR((E87*'Planilla de carga'!$E$5*J87)/100,0) -> 0 | M87: =IFERROR((E87*K87*'Planilla de carga'!$E$6)/100,0) -> 0 | N87: 0 | O87: 0 | P87: =IF(Tabla2[[#This Row],[Monto total]]=0,"no","si") -> no
D88: 2015 - enero | E88: =SUMIF(Tabla4[Año/Mes],Tabla2[[#This Row],[Mes concepto ]],Tabla4[Monto]) -> 0 | F88: 2015-02-05 | G88: =IFERROR(VLOOKUP((F88-1),'Índices Tasa Pasiva BCRA'!C:D,2,FALSE),"-") -> 738.3278 | H88: =IFERROR(VLOOKUP('Planilla de carga'!$E$14,'Índices Tasa Pasiva BCRA'!C:D,2,FALSE),"-") -> - | I88: 0 | J88: 2887 | K88: =IFERROR(DATEDIF(MAX("01/01/2023",Tabla2[[#This Row],[Fecha mora]]),'Planilla de carga'!$E$14,"d"),"-") -> - | L88: =IFERROR((E88*'Planilla de carga'!$E$5*J88)/100,0) -> 0 | M88: =IFERROR((E88*K88*'Planilla de carga'!$E$6)/100,0) -> 0 | N88: 0 | O88: 0 | P88: =IF(Tabla2[[#This Row],[Monto total]]=0,"no","si") -> no
D89: 2015 - febrero | E89: =SUMIF(Tabla4[Año/Mes],Tabla2[[#This Row],[Mes concepto ]],Tabla4[Monto]) -> 0 | F89: 2015-03-05 | G89: =IFERROR(VLOOKUP((F89-1),'Índices Tasa Pasiva BCRA'!C:D,2,FALSE),"-") -> 748.4108 | H89: =IFERROR(VLOOKUP('Planilla de carga'!$E$14,'Índices Tasa Pasiva BCRA'!C:D,2,FALSE),"-") -> - | I89: 0 | J89: 2859 | K89: =IFERROR(DATEDIF(MAX("01/01/2023",Tabla2[[#This Row],[Fecha mora]]),'Planilla de carga'!$E$14,"d"),"-") -> - | L89: =IFERROR((E89*'Planilla de carga'!$E$5*J89)/100,0) -> 0 | M89: =IFERROR((E89*K89*'Planilla de carga'!$E$6)/100,0) -> 0 | N89: 0 | O89: 0 | P89: =IF(Tabla2[[#This Row],[Monto total]]=0,"no","si") -> no
D90: 2015 - marzo | E90: =SUMIF(Tabla4[Año/Mes],Tabla2[[#This Row],[Mes concepto ]],Tabla4[Monto]) -> 0 | F90: 2015-04-08 | G90: =IFERROR(VLOOKUP((F90-1),'Índices Tasa Pasiva BCRA'!C:D,2,FALSE),"-") -> 760.761 | H90: =IFERROR(VLOOKUP('Planilla de carga'!$E$14,'Índices Tasa Pasiva BCRA'!C:D,2,FALSE),"-") -> - | I90: 0 | J90: 2825 | K90: =IFERROR(DATEDIF(MAX("01/01/2023",Tabla2[[#This Row],[Fecha mora]]),'Planilla de carga'!$E$14,"d"),"-") -> - | L90: =IFERROR((E90*'Planilla de carga'!$E$5*J90)/100,0) -> 0 | M90: =IFERROR((E90*K90*'Planilla de carga'!$E$6)/100,0) -> 0 | N90: 0 | O90: 0 | P90: =IF(Tabla2[[#This Row],[Monto total]]=0,"no","si") -> no
D91: 2015 - abril | E91: =SUMIF(Tabla4[Año/Mes],Tabla2[[#This Row],[Mes concepto ]],Tabla4[Monto]) -> 0 | F91: 2015-05-07 | G91: =IFERROR(VLOOKUP((F91-1),'Índices Tasa Pasiva BCRA'!C:D,2,FALSE),"-") -> 771.919 | H91: =IFERROR(VLOOKUP('Planilla de carga'!$E$14,'Índices Tasa Pasiva BCRA'!C:D,2,FALSE),"-") -> - | I91: 0 | J91: 2796 | K91: =IFERROR(DATEDIF(MAX("01/01/2023",Tabla2[[#This Row],[Fecha mora]]),'Planilla de carga'!$E$14,"d"),"-") -> - | L91: =IFERROR((E91*'Planilla de carga'!$E$5*J91)/100,0) -> 0 | M91: =IFERROR((E91*K91*'Planilla de carga'!$E$6)/100,0) -> 0 | N91: 0 | O91: 0 | P91: =IF(Tabla2[[#This Row],[Monto total]]=0,"no","si") -> no
D92: 2015 - mayo | E92: =SUMIF(Tabla4[Año/Mes],Tabla2[[#This Row],[Mes concepto ]],Tabla4[Monto]) -> 0 | F92: 2015-06-04 | G92: =IFERROR(VLOOKUP((F92-1),'Índices Tasa Pasiva BCRA'!C:D,2,FALSE),"-") -> 782.7402 | H92: =IFERROR(VLOOKUP('Planilla de carga'!$E$14,'Índices Tasa Pasiva BCRA'!C:D,2,FALSE),"-") -> - | I92: =IFERROR(E92*((100 + H92) / (100 + G92)-1),0) -> 0 | J92: 2768 | K92: =IFERROR(DATEDIF(MAX("01/01/2023",Tabla2[[#This Row],[Fecha mora]]),'Planilla de carga'!$E$14,"d"),"-") -> - | L92: =IFERROR((E92*'Planilla de carga'!$E$5*J92)/100,0) -> 0 | M92: =IFERROR((E92*K92*'Planilla de carga'!$E$6)/100,0) -> 0 | N92: 0 | O92: =+N92+E92 -> 0 | P92: =IF(Tabla2[[#This Row],[Monto total]]=0,"no","si") -> no
D93: 2015 - junio | E93: =SUMIF(Tabla4[Año/Mes],Tabla2[[#This Row],[Mes concepto ]],Tabla4[Monto]) -> 0 | F93: 2015-07-06 | G93: =IFERROR(VLOOKUP((F93-1),'Índices Tasa Pasiva BCRA'!C:D,2,FALSE),"-") -> 794.8177 | H93: =IFERROR(VLOOKUP('Planilla de carga'!$E$14,'Índices Tasa Pasiva BCRA'!C:D,2,FALSE),"-") -> - | I93: 0 | J93: 2736 | K93: =IFERROR(DATEDIF(MAX("01/01/2023",Tabla2[[#This Row],[Fecha mora]]),'Planilla de carga'!$E$14,"d"),"-") -> - | L93: =IFERROR((E93*'Planilla de carga'!$E$5*J93)/100,0) -> 0 | M93: =IFERROR((E93*K93*'Planilla de carga'!$E$6)/100,0) -> 0 | N93: =+I93+L93+M93 -> 0 | O93: 0 | P93: =IF(Tabla2[[#This Row],[Monto total]]=0,"no","si") -> no
D94: 2015 - julio | E94: =SUMIF(Tabla4[Año/Mes],Tabla2[[#This Row],[Mes concepto ]],Tabla4[Monto]) -> 0 | F94: 2015-08-06 | G94: =IFERROR(VLOOKUP((F94-1),'Índices Tasa Pasiva BCRA'!C:D,2,FALSE),"-") -> 806.885 | H94: =IFERROR(VLOOKUP('Planilla de carga'!$E$14,'Índices Tasa Pasiva BCRA'!C:D,2,FALSE),"-") -> - | I94: 0 | J94: =IFERROR(DATEDIF(F94,"01/01/2023","d"),"-") -> 2705 | K94: =IFERROR(DATEDIF(MAX("01/01/2023",Tabla2[[#This Row],[Fecha mora]]),'Planilla de carga'!$E$14,"d"),"-") -> - | L94: =IFERROR((E94*'Planilla de carga'!$E$5*J94)/100,0) -> 0 | M94: =IFERROR((E94*K94*'Planilla de carga'!$E$6)/100,0) -> 0 | N94: 0 | O94: 0 | P94: =IF(Tabla2[[#This Row],[Monto total]]=0,"no","si") -> no
D95: 2015 - agosto | E95: =SUMIF(Tabla4[Año/Mes],Tabla2[[#This Row],[Mes concepto ]],Tabla4[Monto]) -> 0 | F95: 2015-09-04 | G95: =IFERROR(VLOOKUP((F95-1),'Índices Tasa Pasiva BCRA'!C:D,2,FALSE),"-") -> 818.6325 | H95: =IFERROR(VLOOKUP('Planilla de carga'!$E$14,'Índices Tasa Pasiva BCRA'!C:D,2,FALSE),"-") -> - | I95: 0 | J95: 2676 | K95: =IFERROR(DATEDIF(MAX("01/01/2023",Tabla2[[#This Row],[Fecha mora]]),'Planilla de carga'!$E$14,"d"),"-") -> - | L95: =IFERROR((E95*'Planilla de carga'!$E$5*J95)/100,0) -> 0 | M95: =IFERROR((E95*K95*'Planilla de carga'!$E$6)/100,0) -> 0 | N95: 0 | O95: 0 | P95: =IF(Tabla2[[#This Row],[Monto total]]=0,"no","si") -> no
D96: 2015 - septiembre | E96: =SUMIF(Tabla4[Año/Mes],Tabla2[[#This Row],[Mes concepto ]],Tabla4[Monto]) -> 0 | F96: 2015-10-06 | G96: =IFERROR(VLOOKUP((F96-1),'Índices Tasa Pasiva BCRA'!C:D,2,FALSE),"-") -> 831.7128 | H96: =IFERROR(VLOOKUP('Planilla de carga'!$E$14,'Índices Tasa Pasiva BCRA'!C:D,2,FALSE),"-") -> - | I96: 0 | J96: 2644 | K96: =IFERROR(DATEDIF(MAX("01/01/2023",Tabla2[[#This Row],[Fecha mora]]),'Planilla de carga'!$E$14,"d"),"-") -> - | L96: =IFERROR((E96*'Planilla de carga'!$E$5*J96)/100,0) -> 0 | M96: =IFERROR((E96*K96*'Planilla de carga'!$E$6)/100,0) -> 0 | N96: 0 | O96: 0 | P96: =IF(Tabla2[[#This Row],[Monto total]]=0,"no","si") -> no
D97: 2015 - octubre | E97: =SUMIF(Tabla4[Año/Mes],Tabla2[[#This Row],[Mes concepto ]],Tabla4[Monto]) -> 0 | F97: 2015-11-05 | G97: =IFERROR(VLOOKUP((F97-1),'Índices Tasa Pasiva BCRA'!C:D,2,FALSE),"-") -> 844.5763 | H97: =IFERROR(VLOOKUP('Planilla de carga'!$E$14,'Índices Tasa Pasiva BCRA'!C:D,2,FALSE),"-") -> - | I97: 0 | J97: 2614 | K97: =IFERROR(DATEDIF(MAX("01/01/2023",Tabla2[[#This Row],[Fecha mora]]),'Planilla de carga'!$E$14,"d"),"-") -> - | L97: =IFERROR((E97*'Planilla de carga'!$E$5*J97)/100,0) -> 0 | M97: =IFERROR((E97*K97*'Planilla de carga'!$E$6)/100,0) -> 0 | N97: 0 | O97: 0 | P97: =IF(Tabla2[[#This Row],[Monto total]]=0,"no","si") -> no
D98: 2015 - noviembre | E98: =SUMIF(Tabla4[Año/Mes],Tabla2[[#This Row],[Mes concepto ]],Tabla4[Monto]) -> 0 | F98: 2015-12-04 | G98: =IFERROR(VLOOKUP((F98-1),'Índices Tasa Pasiva BCRA'!C:D,2,FALSE),"-") -> 858.2273 | H98: =IFERROR(VLOOKUP('Planilla de carga'!$E$14,'Índices Tasa Pasiva BCRA'!C:D,2,FALSE),"-") -> - | I98: 0 | J98: 2585 | K98: =IFERROR(DATEDIF(MAX("01/01/2023",Tabla2[[#This Row],[Fecha mora]]),'Planilla de carga'!$E$14,"d"),"-") -> - | L98: =IFERROR((E98*'Planilla de carga'!$E$5*J98)/100,0) -> 0 | M98: =IFERROR((E98*K98*'Planilla de carga'!$E$6)/100,0) -> 0 | N98: 0 | O98: 0 | P98: =IF(Tabla2[[#This Row],[Monto total]]=0,"no","si") -> no
D99: 2015 - diciembre | E99: =SUMIF(Tabla4[Año/Mes],Tabla2[[#This Row],[Mes concepto ]],Tabla4[Monto]) -> 0 | F99: 2016-01-07 | G99: =IFERROR(VLOOKUP((F99-1),'Índices Tasa Pasiva BCRA'!C:D,2,FALSE),"-") -> 876.2082 | H99: =IFERROR(VLOOKUP('Planilla de carga'!$E$14,'Índices Tasa Pasiva BCRA'!C:D,2,FALSE),"-") -> - | I99: 0 | J99: 2551 | K99: =IFERROR(DATEDIF(MAX("01/01/2023",Tabla2[[#This Row],[Fecha mora]]),'Planilla de carga'!$E$14,"d"),"-") -> - | L99: =IFERROR((E99*'Planilla de carga'!$E$5*J99)/100,0) -> 0 | M99: =IFERROR((E99*K99*'Planilla de carga'!$E$6)/100,0) -> 0 | N99: 0 | O99: 0 | P99: =IF(Tabla2[[#This Row],[Monto total]]=0,"no","si") -> no
D100: 2016 - enero | E100: =SUMIF(Tabla4[Año/Mes],Tabla2[[#This Row],[Mes concepto ]],Tabla4[Monto]) -> 0 | F100: 2016-02-04 | G100: =IFERROR(VLOOKUP((F100-1),'Índices Tasa Pasiva BCRA'!C:D,2,FALSE),"-") -> 890.5506 | H100: =IFERROR(VLOOKUP('Planilla de carga'!$E$14,'Índices Tasa Pasiva BCRA'!C:D,2,FALSE),"-") -> - | I100: 0 | J100: 2523 | K100: =IFERROR(DATEDIF(MAX("01/01/2023",Tabla2[[#This Row],[Fecha mora]]),'Planilla de carga'!$E$14,"d"),"-") -> - | L100: =IFERROR((E100*'Planilla de carga'!$E$5*J100)/100,0) -> 0 | M100: =IFERROR((E100*K100*'Planilla de carga'!$E$6)/100,0) -> 0 | N100: 0 | O100: 0 | P100: =IF(Tabla2[[#This Row],[Monto total]]=0,"no","si") -> no
D101: 2016 - febrero | E101: =SUMIF(Tabla4[Año/Mes],Tabla2[[#This Row],[Mes concepto ]],Tabla4[Monto]) -> 0 | F101: 2016-03-04 | G101: =IFERROR(VLOOKUP((F101-1),'Índices Tasa Pasiva BCRA'!C:D,2,FALSE),"-") -> 905.6721 | H101: =IFERROR(VLOOKUP('Planilla de carga'!$E$14,'Índices Tasa Pasiva BCRA'!C:D,2,FALSE),"-") -> - | I101: 0 | J101: 2494 | K101: =IFERROR(DATEDIF(MAX("01/01/2023",Tabla2[[#This Row],[Fecha mora]]),'Planilla de carga'!$E$14,"d"),"-") -> - | L101: =IFERROR((E101*'Planilla de carga'!$E$5*J101)/100,0) -> 0 | M101: =IFERROR((E101*K101*'Planilla de carga'!$E$6)/100,0) -> 0 | N101: 0 | O101: 0 | P101: =IF(Tabla2[[#This Row],[Monto total]]=0,"no","si") -> no
D102: 2016 - marzo | E102: =SUMIF(Tabla4[Año/Mes],Tabla2[[#This Row],[Mes concepto ]],Tabla4[Monto]) -> 0 | F102: 2016-04-06 | G102: =IFERROR(VLOOKUP((F102-1),'Índices Tasa Pasiva BCRA'!C:D,2,FALSE),"-") -> 925.0507 | H102: =IFERROR(VLOOKUP('Planilla de carga'!$E$14,'Índices Tasa Pasiva BCRA'!C:D,2,FALSE),"-") -> - | I102: 0 | J102: 2461 | K102: =IFERROR(DATEDIF(MAX("01/01/2023",Tabla2[[#This Row],[Fecha mora]]),'Planilla de carga'!$E$14,"d"),"-") -> - | L102: =IFERROR((E102*'Planilla de carga'!$E$5*J102)/100,0) -> 0 | M102: =IFERROR((E102*K102*'Planilla de carga'!$E$6)/100,0) -> 0 | N102: 0 | O102: 0 | P102: =IF(Tabla2[[#This Row],[Monto total]]=0,"no","si") -> no
D103: 2016 - abril | E103: =SUMIF(Tabla4[Año/Mes],Tabla2[[#This Row],[Mes concepto ]],Tabla4[Monto]) -> 0 | F103: 2016-05-05 | G103: =IFERROR(VLOOKUP((F103-1),'Índices Tasa Pasiva BCRA'!C:D,2,FALSE),"-") -> 941.5131 | H103: =IFERROR(VLOOKUP('Planilla de carga'!$E$14,'Índices Tasa Pasiva BCRA'!C:D,2,FALSE),"-") -> - | I103: 0 | J103: 2432 | K103: =IFERROR(DATEDIF(MAX("01/01/2023",Tabla2[[#This Row],[Fecha mora]]),'Planilla de carga'!$E$14,"d"),"-") -> - | L103: =IFERROR((E103*'Planilla de carga'!$E$5*J103)/100,0) -> 0 | M103: =IFERROR((E103*K103*'Planilla de carga'!$E$6)/100,0) -> 0 | N103: 0 | O103: 0 | P103: =IF(Tabla2[[#This Row],[Monto total]]=0,"no","si") -> no
D104: 2016 - mayo | E104: =SUMIF(Tabla4[Año/Mes],Tabla2[[#This Row],[Mes concepto ]],Tabla4[Monto]) -> 0 | F104: 2016-06-06 | G104: =IFERROR(VLOOKUP((F104-1),'Índices Tasa Pasiva BCRA'!C:D,2,FALSE),"-") -> 961.7131 | H104: =IFERROR(VLOOKUP('Planilla de carga'!$E$14,'Índices Tasa Pasiva BCRA'!C:D,2,FALSE),"-") -> - | I104: 0 | J104: 2400 | K104: =IFERROR(DATEDIF(MAX("01/01/2023",Tabla2[[#This Row],[Fecha mora]]),'Planilla de carga'!$E$14,"d"),"-") -> - | L104: =IFERROR((E104*'Planilla de carga'!$E$5*J104)/100,0) -> 0 | M104: =IFERROR((E104*K104*'Planilla de carga'!$E$6)/100,0) -> 0 | N104: 0 | O104: 0 | P104: =IF(Tabla2[[#This Row],[Monto total]]=0,"no","si") -> no
D105: 2016 - junio | E105: =SUMIF(Tabla4[Año/Mes],Tabla2[[#This Row],[Mes concepto ]],Tabla4[Monto]) -> 0 | F105: 2016-07-06 | G105: =IFERROR(VLOOKUP((F105-1),'Índices Tasa Pasiva BCRA'!C:D,2,FALSE),"-") -> 979.6869 | H105: =IFERROR(VLOOKUP('Planilla de carga'!$E$14,'Índices Tasa Pasiva BCRA'!C:D,2,FALSE),"-") -> - | I105: 0 | J105: 2370 | K105: =IFERROR(DATEDIF(MAX("01/01/2023",Tabla2[[#This Row],[Fecha mora]]),'Planilla de carga'!$E$14,"d"),"-") -> - | L105: =IFERROR((E105*'Planilla de carga'!$E$5*J105)/100,0) -> 0 | M105: =IFERROR((E105*K105*'Planilla de carga'!$E$6)/100,0) -> 0 | N105: 0 | O105: 0 | P105: =IF(Tabla2[[#This Row],[Monto total]]=0,"no","si") -> no
D106: 2016 - julio | E106: =SUMIF(Tabla4[Año/Mes],Tabla2[[#This Row],[Mes concepto ]],Tabla4[Monto]) -> 0 | F106: 2016-08-04 | G106: =IFERROR(VLOOKUP((F106-1),'Índices Tasa Pasiva BCRA'!C:D,2,FALSE),"-") -> 995.428 | H106: =IFERROR(VLOOKUP('Planilla de carga'!$E$14,'Índices Tasa Pasiva BCRA'!C:D,2,FALSE),"-") -> - | I106: 0 | J106: 2341 | K106: =IFERROR(DATEDIF(MAX("01/01/2023",Tabla2[[#This Row],[Fecha mora]]),'Planilla de carga'!$E$14,"d"),"-") -> - | L106: =IFERROR((E106*'Planilla de carga'!$E$5*J106)/100,0) -> 0 | M106: =IFERROR((E106*K106*'Planilla de carga'!$E$6)/100,0) -> 0 | N106: 0 | O106: 0 | P106: =IF(Tabla2[[#This Row],[Monto total]]=0,"no","si") -> no
D107: 2016 - agosto | E107: =SUMIF(Tabla4[Año/Mes],Tabla2[[#This Row],[Mes concepto ]],Tabla4[Monto]) -> 0 | F107: 2016-09-06 | G107: =IFERROR(VLOOKUP((F107-1),'Índices Tasa Pasiva BCRA'!C:D,2,FALSE),"-") -> 1012.4364 | H107: =IFERROR(VLOOKUP('Planilla de carga'!$E$14,'Índices Tasa Pasiva BCRA'!C:D,2,FALSE),"-") -> - | I107: 0 | J107: 2308 | K107: =IFERROR(DATEDIF(MAX("01/01/2023",Tabla2[[#This Row],[Fecha mora]]),'Planilla de carga'!$E$14,"d"),"-") -> - | L107: =IFERROR((E107*'Planilla de carga'!$E$5*J107)/100,0) -> 0 | M107: =IFERROR((E107*K107*'Planilla de carga'!$E$6)/100,0) -> 0 | N107: 0 | O107: 0 | P107: =IF(Tabla2[[#This Row],[Monto total]]=0,"no","si") -> no
D108: 2016 - septiembre | E108: =SUMIF(Tabla4[Año/Mes],Tabla2[[#This Row],[Mes concepto ]],Tabla4[Monto]) -> 0 | F108: 2016-10-06 | G108: =IFERROR(VLOOKUP((F108-1),'Índices Tasa Pasiva BCRA'!C:D,2,FALSE),"-") -> 1026.9125 | H108: =IFERROR(VLOOKUP('Planilla de carga'!$E$14,'Índices Tasa Pasiva BCRA'!C:D,2,FALSE),"-") -> - | I108: 0 | J108: 2278 | K108: =IFERROR(DATEDIF(MAX("01/01/2023",Tabla2[[#This Row],[Fecha mora]]),'Planilla de carga'!$E$14,"d"),"-") -> - | L108: =IFERROR((E108*'Planilla de carga'!$E$5*J108)/100,0) -> 0 | M108: =IFERROR((E108*K108*'Planilla de carga'!$E$6)/100,0) -> 0 | N108: 0 | O108: 0 | P108: =IF(Tabla2[[#This Row],[Monto total]]=0,"no","si") -> no
D109: 2016 - octubre | E109: =SUMIF(Tabla4[Año/Mes],Tabla2[[#This Row],[Mes concepto ]],Tabla4[Monto]) -> 0 | F109: 2016-11-04 | G109: =IFERROR(VLOOKUP((F109-1),'Índices Tasa Pasiva BCRA'!C:D,2,FALSE),"-") -> 1040.4132 | H109: =IFERROR(VLOOKUP('Planilla de carga'!$E$14,'Índices Tasa Pasiva BCRA'!C:D,2,FALSE),"-") -> - | I109: 0 | J109: 2249 | K109: =IFERROR(DATEDIF(MAX("01/01/2023",Tabla2[[#This Row],[Fecha mora]]),'Planilla de carga'!$E$14,"d"),"-") -> - | L109: =IFERROR((E109*'Planilla de carga'!$E$5*J109)/100,0) -> 0 | M109: =IFERROR((E109*K109*'Planilla de carga'!$E$6)/100,0) -> 0 | N109: 0 | O109: 0 | P109: =IF(Tabla2[[#This Row],[Monto total]]=0,"no","si") -> no
D110: 2016 - noviembre | E110: =SUMIF(Tabla4[Año/Mes],Tabla2[[#This Row],[Mes concepto ]],Tabla4[Monto]) -> 0 | F110: 2016-12-06 | G110: =IFERROR(VLOOKUP((F110-1),'Índices Tasa Pasiva BCRA'!C:D,2,FALSE),"-") -> 1054.7991 | H110: =IFERROR(VLOOKUP('Planilla de carga'!$E$14,'Índices Tasa Pasiva BCRA'!C:D,2,FALSE),"-") -> - | I110: 0 | J110: 2217 | K110: =IFERROR(DATEDIF(MAX("01/01/2023",Tabla2[[#This Row],[Fecha mora]]),'Planilla de carga'!$E$14,"d"),"-") -> - | L110: =IFERROR((E110*'Planilla de carga'!$E$5*J110)/100,0) -> 0 | M110: =IFERROR((E110*K110*'Planilla de carga'!$E$6)/100,0) -> 0 | N110: 0 | O110: 0 | P110: =IF(Tabla2[[#This Row],[Monto total]]=0,"no","si") -> no
D111: 2016 - diciembre | E111: =SUMIF(Tabla4[Año/Mes],Tabla2[[#This Row],[Mes concepto ]],Tabla4[Monto]) -> 0 | F111: 2017-01-05 | G111: =IFERROR(VLOOKUP((F111-1),'Índices Tasa Pasiva BCRA'!C:D,2,FALSE),"-") -> 1067.5476 | H111: =IFERROR(VLOOKUP('Planilla de carga'!$E$14,'Índices Tasa Pasiva BCRA'!C:D,2,FALSE),"-") -> - | I111: 0 | J111: 2187 | K111: =IFERROR(DATEDIF(MAX("01/01/2023",Tabla2[[#This Row],[Fecha mora]]),'Planilla de carga'!$E$14,"d"),"-") -> - | L111: =IFERROR((E111*'Planilla de carga'!$E$5*J111)/100,0) -> 0 | M111: =IFERROR((E111*K111*'Planilla de carga'!$E$6)/100,0) -> 0 | N111: 0 | O111: 0 | P111: =IF(Tabla2[[#This Row],[Monto total]]=0,"no","si") -> no
D112: 2017 - enero | E112: =SUMIF(Tabla4[Año/Mes],Tabla2[[#This Row],[Mes concepto ]],Tabla4[Monto]) -> 0 | F112: 2017-02-06 | G112: =IFERROR(VLOOKUP((F112-1),'Índices Tasa Pasiva BCRA'!C:D,2,FALSE),"-") -> 1081.0213 | H112: =IFERROR(VLOOKUP('Planilla de carga'!$E$14,'Índices Tasa Pasiva BCRA'!C:D,2,FALSE),"-") -> - | I112: 0 | J112: 2155 | K112: =IFERROR(DATEDIF(MAX("01/01/2023",Tabla2[[#This Row],[Fecha mora]]),'Planilla de carga'!$E$14,"d"),"-") -> - | L112: =IFERROR((E112*'Planilla de carga'!$E$5*J112)/100,0) -> 0 | M112: =IFERROR((E112*K112*'Planilla de carga'!$E$6)/100,0) -> 0 | N112: 0 | O112: 0 | P112: =IF(Tabla2[[#This Row],[Monto total]]=0,"no","si") -> no
D113: 2017 - febrero | E113: =SUMIF(Tabla4[Año/Mes],Tabla2[[#This Row],[Mes concepto ]],Tabla4[Monto]) -> 0 | F113: 2017-03-06 | G113: =IFERROR(VLOOKUP((F113-1),'Índices Tasa Pasiva BCRA'!C:D,2,FALSE),"-") -> 1093.2753 | H113: =IFERROR(VLOOKUP('Planilla de carga'!$E$14,'Índices Tasa Pasiva BCRA'!C:D,2,FALSE),"-") -> - | I113: 0 | J113: 2127 | K113: =IFERROR(DATEDIF(MAX("01/01/2023",Tabla2[[#This Row],[Fecha mora]]),'Planilla de carga'!$E$14,"d"),"-") -> - | L113: =IFERROR((E113*'Planilla de carga'!$E$5*J113)/100,0) -> 0 | M113: =IFERROR((E113*K113*'Planilla de carga'!$E$6)/100,0) -> 0 | N113: 0 | O113: 0 | P113: =IF(Tabla2[[#This Row],[Monto total]]=0,"no","si") -> no
D114: 2017 - marzo | E114: =SUMIF(Tabla4[Año/Mes],Tabla2[[#This Row],[Mes concepto ]],Tabla4[Monto]) -> 0 | F114: 2017-04-06 | G114: =IFERROR(VLOOKUP((F114-1),'Índices Tasa Pasiva BCRA'!C:D,2,FALSE),"-") -> 1106.7816 | H114: =IFERROR(VLOOKUP('Planilla de carga'!$E$14,'Índices Tasa Pasiva BCRA'!C:D,2,FALSE),"-") -> - | I114: 0 | J114: 2096 | K114: =IFERROR(DATEDIF(MAX("01/01/2023",Tabla2[[#This Row],[Fecha mora]]),'Planilla de carga'!$E$14,"d"),"-") -> - | L114: =IFERROR((E114*'Planilla de carga'!$E$5*J114)/100,0) -> 0 | M114: =IFERROR((E114*K114*'Planilla de carga'!$E$6)/100,0) -> 0 | N114: 0 | O114: 0 | P114: =IF(Tabla2[[#This Row],[Monto total]]=0,"no","si") -> no
D115: 2017 - abril | E115: =SUMIF(Tabla4[Año/Mes],Tabla2[[#This Row],[Mes concepto ]],Tabla4[Monto]) -> 0 | F115: 2017-05-05 | G115: =IFERROR(VLOOKUP((F115-1),'Índices Tasa Pasiva BCRA'!C:D,2,FALSE),"-") -> 1118.5727 | H115: =IFERROR(VLOOKUP('Planilla de carga'!$E$14,'Índices Tasa Pasiva BCRA'!C:D,2,FALSE),"-") -> - | I115: 0 | J115: 2067 | K115: =IFERROR(DATEDIF(MAX("01/01/2023",Tabla2[[#This Row],[Fecha mora]]),'Planilla de carga'!$E$14,"d"),"-") -> - | L115: =IFERROR((E115*'Planilla de carga'!$E$5*J115)/100,0) -> 0 | M115: =IFERROR((E115*K115*'Planilla de carga'!$E$6)/100,0) -> 0 | N115: 0 | O115: 0 | P115: =IF(Tabla2[[#This Row],[Monto total]]=0,"no","si") -> no
D116: 2017 - mayo | E116: =SUMIF(Tabla4[Año/Mes],Tabla2[[#This Row],[Mes concepto ]],Tabla4[Monto]) -> 0 | F116: 2017-06-06 | G116: =IFERROR(VLOOKUP((F116-1),'Índices Tasa Pasiva BCRA'!C:D,2,FALSE),"-") -> 1132.3917 | H116: =IFERROR(VLOOKUP('Planilla de carga'!$E$14,'Índices Tasa Pasiva BCRA'!C:D,2,FALSE),"-") -> - | I116: 0 | J116: 2035 | K116: =IFERROR(DATEDIF(MAX("01/01/2023",Tabla2[[#This Row],[Fecha mora]]),'Planilla de carga'!$E$14,"d"),"-") -> - | L116: =IFERROR((E116*'Planilla de carga'!$E$5*J116)/100,0) -> 0 | M116: =IFERROR((E116*K116*'Planilla de carga'!$E$6)/100,0) -> 0 | N116: 0 | O116: 0 | P116: =IF(Tabla2[[#This Row],[Monto total]]=0,"no","si") -> no
D117: 2017 - junio | E117: =SUMIF(Tabla4[Año/Mes],Tabla2[[#This Row],[Mes concepto ]],Tabla4[Monto]) -> 0 | F117: 2017-07-06 | G117: =IFERROR(VLOOKUP((F117-1),'Índices Tasa Pasiva BCRA'!C:D,2,FALSE),"-") -> 1145.3065 | H117: =IFERROR(VLOOKUP('Planilla de carga'!$E$14,'Índices Tasa Pasiva BCRA'!C:D,2,FALSE),"-") -> - | I117: 0 | J117: 2005 | K117: =IFERROR(DATEDIF(MAX("01/01/2023",Tabla2[[#This Row],[Fecha mora]]),'Planilla de carga'!$E$14,"d"),"-") -> - | L117: =IFERROR((E117*'Planilla de carga'!$E$5*J117)/100,0) -> 0 | M117: =IFERROR((E117*K117*'Planilla de carga'!$E$6)/100,0) -> 0 | N117: 0 | O117: 0 | P117: =IF(Tabla2[[#This Row],[Monto total]]=0,"no","si") -> no
D118: 2017 - julio | E118: =SUMIF(Tabla4[Año/Mes],Tabla2[[#This Row],[Mes concepto ]],Tabla4[Monto]) -> 0 | F118: 2017-08-04 | G118: =IFERROR(VLOOKUP((F118-1),'Índices Tasa Pasiva BCRA'!C:D,2,FALSE),"-") -> 1157.4496 | H118: =IFERROR(VLOOKUP('Planilla de carga'!$E$14,'Índices Tasa Pasiva BCRA'!C:D,2,FALSE),"-") -> - | I118: 0 | J118: 1976 | K118: =IFERROR(DATEDIF(MAX("01/01/2023",Tabla2[[#This Row],[Fecha mora]]),'Planilla de carga'!$E$14,"d"),"-") -> - | L118: =IFERROR((E118*'Planilla de carga'!$E$5*J118)/100,0) -> 0 | M118: =IFERROR((E118*K118*'Planilla de carga'!$E$6)/100,0) -> 0 | N118: 0 | O118: 0 | P118: =IF(Tabla2[[#This Row],[Monto total]]=0,"no","si") -> no
D119: 2017 - agosto | E119: =SUMIF(Tabla4[Año/Mes],Tabla2[[#This Row],[Mes concepto ]],Tabla4[Monto]) -> 0 | F119: 2017-09-06 | G119: =IFERROR(VLOOKUP((F119-1),'Índices Tasa Pasiva BCRA'!C:D,2,FALSE),"-") -> 1172.4585 | H119: =IFERROR(VLOOKUP('Planilla de carga'!$E$14,'Índices Tasa Pasiva BCRA'!C:D,2,FALSE),"-") -> - | I119: 0 | J119: 1943 | K119: =IFERROR(DATEDIF(MAX("01/01/2023",Tabla2[[#This Row],[Fecha mora]]),'Planilla de carga'!$E$14,"d"),"-") -> - | L119: =IFERROR((E119*'Planilla de carga'!$E$5*J119)/100,0) -> 0 | M119: =IFERROR((E119*K119*'Planilla de carga'!$E$6)/100,0) -> 0 | N119: 0 | O119: 0 | P119: =IF(Tabla2[[#This Row],[Monto total]]=0,"no","si") -> no
D120: 2017 - septiembre | E120: =SUMIF(Tabla4[Año/Mes],Tabla2[[#This Row],[Mes concepto ]],Tabla4[Monto]) -> 0 | F120: 2017-10-05 | G120: =IFERROR(VLOOKUP((F120-1),'Índices Tasa Pasiva BCRA'!C:D,2,FALSE),"-") -> 1186.1174 | H120: =IFERROR(VLOOKUP('Planilla de carga'!$E$14,'Índices Tasa Pasiva BCRA'!C:D,2,FALSE),"-") -> - | I120: 0 | J120: 1914 | K120: =IFERROR(DATEDIF(MAX("01/01/2023",Tabla2[[#This Row],[Fecha mora]]),'Planilla de carga'!$E$14,"d"),"-") -> - | L120: =IFERROR((E120*'Planilla de carga'!$E$5*J120)/100,0) -> 0 | M120: =IFERROR((E120*K120*'Planilla de carga'!$E$6)/100,0) -> 0 | N120: 0 | O120: 0 | P120: =IF(Tabla2[[#This Row],[Monto total]]=0,"no","si") -> no
D121: 2017 - octubre | E121: =SUMIF(Tabla4[Año/Mes],Tabla2[[#This Row],[Mes concepto ]],Tabla4[Monto]) -> 0 | F121: 2017-11-06 | G121: =IFERROR(VLOOKUP((F121-1),'Índices Tasa Pasiva BCRA'!C:D,2,FALSE),"-") -> 1201.6289 | H121: =IFERROR(VLOOKUP('Planilla de carga'!$E$14,'Índices Tasa Pasiva BCRA'!C:D,2,FALSE),"-") -> - | I121: 0 | J121: 1882 | K121: =IFERROR(DATEDIF(MAX("01/01/2023",Tabla2[[#This Row],[Fecha mora]]),'Planilla de carga'!$E$14,"d"),"-") -> - | L121: =IFERROR((E121*'Planilla de carga'!$E$5*J121)/100,0) -> 0 | M121: =IFERROR((E121*K121*'Planilla de carga'!$E$6)/100,0) -> 0 | N121: 0 | O121: 0 | P121: =IF(Tabla2[[#This Row],[Monto total]]=0,"no","si") -> no
D122: 2017 - noviembre | E122: =SUMIF(Tabla4[Año/Mes],Tabla2[[#This Row],[Mes concepto ]],Tabla4[Monto]) -> 0 | F122: 2017-12-06 | G122: =IFERROR(VLOOKUP((F122-1),'Índices Tasa Pasiva BCRA'!C:D,2,FALSE),"-") -> 1218.0807 | H122: =IFERROR(VLOOKUP('Planilla de carga'!$E$14,'Índices Tasa Pasiva BCRA'!C:D,2,FALSE),"-") -> - | I122: 0 | J122: 1852 | K122: =IFERROR(DATEDIF(MAX("01/01/2023",Tabla2[[#This Row],[Fecha mora]]),'Planilla de carga'!$E$14,"d"),"-") -> - | L122: =IFERROR((E122*'Planilla de carga'!$E$5*J122)/100,0) -> 0 | M122: =IFERROR((E122*K122*'Planilla de carga'!$E$6)/100,0) -> 0 | N122: 0 | O122: 0 | P122: =IF(Tabla2[[#This Row],[Monto total]]=0,"no","si") -> no
D123: 2017 - diciembre | E123: =SUMIF(Tabla4[Año/Mes],Tabla2[[#This Row],[Mes concepto ]],Tabla4[Monto]) -> 0 | F123: 2018-01-05 | G123: =IFERROR(VLOOKUP((F123-1),'Índices Tasa Pasiva BCRA'!C:D,2,FALSE),"-") -> 1234.2479 | H123: =IFERROR(VLOOKUP('Planilla de carga'!$E$14,'Índices Tasa Pasiva BCRA'!C:D,2,FALSE),"-") -> - | I123: 0 | J123: 1822 | K123: =IFERROR(DATEDIF(MAX("01/01/2023",Tabla2[[#This Row],[Fecha mora]]),'Planilla de carga'!$E$14,"d"),"-") -> - | L123: =IFERROR((E123*'Planilla de carga'!$E$5*J123)/100,0) -> 0 | M123: =IFERROR((E123*K123*'Planilla de carga'!$E$6)/100,0) -> 0 | N123: 0 | O123: 0 | P123: =IF(Tabla2[[#This Row],[Monto total]]=0,"no","si") -> no
D124: 2018 - enero | E124: =SUMIF(Tabla4[Año/Mes],Tabla2[[#This Row],[Mes concepto ]],Tabla4[Monto]) -> 0 | F124: 2018-02-06 | G124: =IFERROR(VLOOKUP((F124-1),'Índices Tasa Pasiva BCRA'!C:D,2,FALSE),"-") -> 1252.0616 | H124: =IFERROR(VLOOKUP('Planilla de carga'!$E$14,'Índices Tasa Pasiva BCRA'!C:D,2,FALSE),"-") -> - | I124: 0 | J124: 1790 | K124: =IFERROR(DATEDIF(MAX("01/01/2023",Tabla2[[#This Row],[Fecha mora]]),'Planilla de carga'!$E$14,"d"),"-") -> - | L124: =IFERROR((E124*'Planilla de carga'!$E$5*J124)/100,0) -> 0 | M124: =IFERROR((E124*K124*'Planilla de carga'!$E$6)/100,0) -> 0 | N124: 0 | O124: 0 | P124: =IF(Tabla2[[#This Row],[Monto total]]=0,"no","si") -> no
D125: 2018 - febrero | E125: =SUMIF(Tabla4[Año/Mes],Tabla2[[#This Row],[Mes concepto ]],Tabla4[Monto]) -> 0 | F125: 2018-03-06 | G125: =IFERROR(VLOOKUP((F125-1),'Índices Tasa Pasiva BCRA'!C:D,2,FALSE),"-") -> 1266.7952 | H125: =IFERROR(VLOOKUP('Planilla de carga'!$E$14,'Índices Tasa Pasiva BCRA'!C:D,2,FALSE),"-") -> - | I125: 0 | J125: 1762 | K125: =IFERROR(DATEDIF(MAX("01/01/2023",Tabla2[[#This Row],[Fecha mora]]),'Planilla de carga'!$E$14,"d"),"-") -> - | L125: =IFERROR((E125*'Planilla de carga'!$E$5*J125)/100,0) -> 0 | M125: =IFERROR((E125*K125*'Planilla de carga'!$E$6)/100,0) -> 0 | N125: 0 | O125: 0 | P125: =IF(Tabla2[[#This Row],[Monto total]]=0,"no","si") -> no
D126: 2018 - marzo | E126: =SUMIF(Tabla4[Año/Mes],Tabla2[[#This Row],[Mes concepto ]],Tabla4[Monto]) -> 0 | F126: 2018-04-06 | G126: =IFERROR(VLOOKUP((F126-1),'Índices Tasa Pasiva BCRA'!C:D,2,FALSE),"-") -> 1284.634 | H126: =IFERROR(VLOOKUP('Planilla de carga'!$E$14,'Índices Tasa Pasiva BCRA'!C:D,2,FALSE),"-") -> - | I126: 0 | J126: 1731 | K126: =IFERROR(DATEDIF(MAX("01/01/2023",Tabla2[[#This Row],[Fecha mora]]),'Planilla de carga'!$E$14,"d"),"-") -> - | L126: =IFERROR((E126*'Planilla de carga'!$E$5*J126)/100,0) -> 0 | M126: =IFERROR((E126*K126*'Planilla de carga'!$E$6)/100,0) -> 0 | N126: 0 | O126: 0 | P126: =IF(Tabla2[[#This Row],[Monto total]]=0,"no","si") -> no
D127: 2018 - abril | E127: =SUMIF(Tabla4[Año/Mes],Tabla2[[#This Row],[Mes concepto ]],Tabla4[Monto]) -> 0 | F127: 2018-05-07 | G127: =IFERROR(VLOOKUP((F127-1),'Índices Tasa Pasiva BCRA'!C:D,2,FALSE),"-") -> 1302.4933 | H127: =IFERROR(VLOOKUP('Planilla de carga'!$E$14,'Índices Tasa Pasiva BCRA'!C:D,2,FALSE),"-") -> - | I127: 0 | J127: 1700 | K127: =IFERROR(DATEDIF(MAX("01/01/2023",Tabla2[[#This Row],[Fecha mora]]),'Planilla de carga'!$E$14,"d"),"-") -> - | L127: =IFERROR((E127*'Planilla de carga'!$E$5*J127)/100,0) -> 0 | M127: =IFERROR((E127*K127*'Planilla de carga'!$E$6)/100,0) -> 0 | N127: 0 | O127: 0 | P127: =IF(Tabla2[[#This Row],[Monto total]]=0,"no","si") -> no
D128: 2018 - mayo | E128: =SUMIF(Tabla4[Año/Mes],Tabla2[[#This Row],[Mes concepto ]],Tabla4[Monto]) -> 0 | F128: 2018-06-06 | G128: =IFERROR(VLOOKUP((F128-1),'Índices Tasa Pasiva BCRA'!C:D,2,FALSE),"-") -> 1323.6975 | H128: =IFERROR(VLOOKUP('Planilla de carga'!$E$14,'Índices Tasa Pasiva BCRA'!C:D,2,FALSE),"-") -> - | I128: 0 | J128: 1670 | K128: =IFERROR(DATEDIF(MAX("01/01/2023",Tabla2[[#This Row],[Fecha mora]]),'Planilla de carga'!$E$14,"d"),"-") -> - | L128: =IFERROR((E128*'Planilla de carga'!$E$5*J128)/100,0) -> 0 | M128: =IFERROR((E128*K128*'Planilla de carga'!$E$6)/100,0) -> 0 | N128: 0 | O128: 0 | P128: =IF(Tabla2[[#This Row],[Monto total]]=0,"no","si") -> no
D129: 2018 - junio | E129: =SUMIF(Tabla4[Año/Mes],Tabla2[[#This Row],[Mes concepto ]],Tabla4[Monto]) -> 0 | F129: 2018-07-05 | G129: =IFERROR(VLOOKUP((F129-1),'Índices Tasa Pasiva BCRA'!C:D,2,FALSE),"-") -> 1346.165 | H129: =IFERROR(VLOOKUP('Planilla de carga'!$E$14,'Índices Tasa Pasiva BCRA'!C:D,2,FALSE),"-") -> - | I129: 0 | J129: 1641 | K129: =IFERROR(DATEDIF(MAX("01/01/2023",Tabla2[[#This Row],[Fecha mora]]),'Planilla de carga'!$E$14,"d"),"-") -> - | L129: =IFERROR((E129*'Planilla de carga'!$E$5*J129)/100,0) -> 0 | M129: =IFERROR((E129*K129*'Planilla de carga'!$E$6)/100,0) -> 0 | N129: 0 | O129: 0 | P129: =IF(Tabla2[[#This Row],[Monto total]]=0,"no","si") -> no
D130: 2018 - julio | E130: =SUMIF(Tabla4[Año/Mes],Tabla2[[#This Row],[Mes concepto ]],Tabla4[Monto]) -> 0 | F130: 2018-08-06 | G130: =IFERROR(VLOOKUP((F130-1),'Índices Tasa Pasiva BCRA'!C:D,2,FALSE),"-") -> 1376.2678 | H130: =IFERROR(VLOOKUP('Planilla de carga'!$E$14,'Índices Tasa Pasiva BCRA'!C:D,2,FALSE),"-") -> - | I130: 0 | J130: 1609 | K130: =IFERROR(DATEDIF(MAX("01/01/2023",Tabla2[[#This Row],[Fecha mora]]),'Planilla de carga'!$E$14,"d"),"-") -> - | L130: =IFERROR((E130*'Planilla de carga'!$E$5*J130)/100,0) -> 0 | M130: =IFERROR((E130*K130*'Planilla de carga'!$E$6)/100,0) -> 0 | N130: 0 | O130: 0 | P130: =IF(Tabla2[[#This Row],[Monto total]]=0,"no","si") -> no
D131: 2018 - agosto | E131: =SUMIF(Tabla4[Año/Mes],Tabla2[[#This Row],[Mes concepto ]],Tabla4[Monto]) -> 0 | F131: 2018-09-06 | G131: =IFERROR(VLOOKUP((F131-1),'Índices Tasa Pasiva BCRA'!C:D,2,FALSE),"-") -> 1406.3851 | H131: =IFERROR(VLOOKUP('Planilla de carga'!$E$14,'Índices Tasa Pasiva BCRA'!C:D,2,FALSE),"-") -> - | I131: 0 | J131: 1578 | K131: =IFERROR(DATEDIF(MAX("01/01/2023",Tabla2[[#This Row],[Fecha mora]]),'Planilla de carga'!$E$14,"d"),"-") -> - | L131: =IFERROR((E131*'Planilla de carga'!$E$5*J131)/100,0) -> 0 | M131: =IFERROR((E131*K131*'Planilla de carga'!$E$6)/100,0) -> 0 | N131: 0 | O131: 0 | P131: =IF(Tabla2[[#This Row],[Monto total]]=0,"no","si") -> no
D132: 2018 - septiembre | E132: =SUMIF(Tabla4[Año/Mes],Tabla2[[#This Row],[Mes concepto ]],Tabla4[Monto]) -> 0 | F132: 2018-10-04 | G132: =IFERROR(VLOOKUP((F132-1),'Índices Tasa Pasiva BCRA'!C:D,2,FALSE),"-") -> 1441.1726 | H132: =IFERROR(VLOOKUP('Planilla de carga'!$E$14,'Índices Tasa Pasiva BCRA'!C:D,2,FALSE),"-") -> - | I132: 0 | J132: 1550 | K132: =IFERROR(DATEDIF(MAX("01/01/2023",Tabla2[[#This Row],[Fecha mora]]),'Planilla de carga'!$E$14,"d"),"-") -> - | L132: =IFERROR((E132*'Planilla de carga'!$E$5*J132)/100,0) -> 0 | M132: =IFERROR((E132*K132*'Planilla de carga'!$E$6)/100,0) -> 0 | N132: 0 | O132: 0 | P132: =IF(Tabla2[[#This Row],[Monto total]]=0,"no","si") -> no
D133: 2018 - octubre | E133: =SUMIF(Tabla4[Año/Mes],Tabla2[[#This Row],[Mes concepto ]],Tabla4[Monto]) -> 0 | F133: 2018-11-06 | G133: =IFERROR(VLOOKUP((F133-1),'Índices Tasa Pasiva BCRA'!C:D,2,FALSE),"-") -> 1492.3997 | H133: =IFERROR(VLOOKUP('Planilla de carga'!$E$14,'Índices Tasa Pasiva BCRA'!C:D,2,FALSE),"-") -> - | I133: 0 | J133: 1517 | K133: =IFERROR(DATEDIF(MAX("01/01/2023",Tabla2[[#This Row],[Fecha mora]]),'Planilla de carga'!$E$14,"d"),"-") -> - | L133: =IFERROR((E133*'Planilla de carga'!$E$5*J133)/100,0) -> 0 | M133: =IFERROR((E133*K133*'Planilla de carga'!$E$6)/100,0) -> 0 | N133: 0 | O133: 0 | P133: =IF(Tabla2[[#This Row],[Monto total]]=0,"no","si") -> no
D134: 2018 - noviembre | E134: =SUMIF(Tabla4[Año/Mes],Tabla2[[#This Row],[Mes concepto ]],Tabla4[Monto]) -> 0 | F134: 2018-12-06 | G134: =IFERROR(VLOOKUP((F134-1),'Índices Tasa Pasiva BCRA'!C:D,2,FALSE),"-") -> 1542.0731 | H134: =IFERROR(VLOOKUP('Planilla de carga'!$E$14,'Índices Tasa Pasiva BCRA'!C:D,2,FALSE),"-") -> - | I134: 0 | J134: 1487 | K134: =IFERROR(DATEDIF(MAX("01/01/2023",Tabla2[[#This Row],[Fecha mora]]),'Planilla de carga'!$E$14,"d"),"-") -> - | L134: =IFERROR((E134*'Planilla de carga'!$E$5*J134)/100,0) -> 0 | M134: =IFERROR((E134*K134*'Planilla de carga'!$E$6)/100,0) -> 0 | N134: 0 | O134: 0 | P134: =IF(Tabla2[[#This Row],[Monto total]]=0,"no","si") -> no
D135: 2018 - diciembre | E135: =SUMIF(Tabla4[Año/Mes],Tabla2[[#This Row],[Mes concepto ]],Tabla4[Monto]) -> 0 | F135: 2019-01-07 | G135: =IFERROR(VLOOKUP((F135-1),'Índices Tasa Pasiva BCRA'!C:D,2,FALSE),"-") -> 1593.2907 | H135: =IFERROR(VLOOKUP('Planilla de carga'!$E$14,'Índices Tasa Pasiva BCRA'!C:D,2,FALSE),"-") -> - | I135: 0 | J135: 1455 | K135: =IFERROR(DATEDIF(MAX("01/01/2023",Tabla2[[#This Row],[Fecha mora]]),'Planilla de carga'!$E$14,"d"),"-") -> - | L135: =IFERROR((E135*'Planilla de carga'!$E$5*J135)/100,0) -> 0 | M135: =IFERROR((E135*K135*'Planilla de carga'!$E$6)/100,0) -> 0 | N135: 0 | O135: 0 | P135: =IF(Tabla2[[#This Row],[Monto total]]=0,"no","si") -> no
D136: 2019 - enero | E136: =SUMIF(Tabla4[Año/Mes],Tabla2[[#This Row],[Mes concepto ]],Tabla4[Monto]) -> 0 | F136: 2019-02-06 | G136: =IFERROR(VLOOKUP((F136-1),'Índices Tasa Pasiva BCRA'!C:D,2,FALSE),"-") -> 1640.3915 | H136: =IFERROR(VLOOKUP('Planilla de carga'!$E$14,'Índices Tasa Pasiva BCRA'!C:D,2,FALSE),"-") -> - | I136: 0 | J136: 1425 | K136: =IFERROR(DATEDIF(MAX("01/01/2023",Tabla2[[#This Row],[Fecha mora]]),'Planilla de carga'!$E$14,"d"),"-") -> - | L136: =IFERROR((E136*'Planilla de carga'!$E$5*J136)/100,0) -> 0 | M136: =IFERROR((E136*K136*'Planilla de carga'!$E$6)/100,0) -> 0 | N136: 0 | O136: 0 | P136: =IF(Tabla2[[#This Row],[Monto total]]=0,"no","si") -> no
D137: 2019 - febrero | E137: =SUMIF(Tabla4[Año/Mes],Tabla2[[#This Row],[Mes concepto ]],Tabla4[Monto]) -> 0 | F137: 2019-03-08 | G137: =IFERROR(VLOOKUP((F137-1),'Índices Tasa Pasiva BCRA'!C:D,2,FALSE),"-") -> 1680.7294 | H137: =IFERROR(VLOOKUP('Planilla de carga'!$E$14,'Índices Tasa Pasiva BCRA'!C:D,2,FALSE),"-") -> - | I137: 0 | J137: 1395 | K137: =IFERROR(DATEDIF(MAX("01/01/2023",Tabla2[[#This Row],[Fecha mora]]),'Planilla de carga'!$E$14,"d"),"-") -> - | L137: =IFERROR((E137*'Planilla de carga'!$E$5*J137)/100,0) -> 0 | M137: =IFERROR((E137*K137*'Planilla de carga'!$E$6)/100,0) -> 0 | N137: 0 | O137: 0 | P137: =IF(Tabla2[[#This Row],[Monto total]]=0,"no","si") -> no
D138: 2019 - marzo | E138: =SUMIF(Tabla4[Año/Mes],Tabla2[[#This Row],[Mes concepto ]],Tabla4[Monto]) -> 0 | F138: 2019-04-05 | G138: =IFERROR(VLOOKUP((F138-1),'Índices Tasa Pasiva BCRA'!C:D,2,FALSE),"-") -> 1723.7661 | H138: =IFERROR(VLOOKUP('Planilla de carga'!$E$14,'Índices Tasa Pasiva BCRA'!C:D,2,FALSE),"-") -> - | I138: 0 | J138: 1367 | K138: =IFERROR(DATEDIF(MAX("01/01/2023",Tabla2[[#This Row],[Fecha mora]]),'Planilla de carga'!$E$14,"d"),"-") -> - | L138: =IFERROR((E138*'Planilla de carga'!$E$5*J138)/100,0) -> 0 | M138: =IFERROR((E138*K138*'Planilla de carga'!$E$6)/100,0) -> 0 | N138: 0 | O138: 0 | P138: =IF(Tabla2[[#This Row],[Monto total]]=0,"no","si") -> no
D139: 2019 - abril | E139: =SUMIF(Tabla4[Año/Mes],Tabla2[[#This Row],[Mes concepto ]],Tabla4[Monto]) -> 0 | F139: 2019-05-07 | G139: =IFERROR(VLOOKUP((F139-1),'Índices Tasa Pasiva BCRA'!C:D,2,FALSE),"-") -> 1782.5578 | H139: =IFERROR(VLOOKUP('Planilla de carga'!$E$14,'Índices Tasa Pasiva BCRA'!C:D,2,FALSE),"-") -> - | I139: 0 | J139: 1335 | K139: =IFERROR(DATEDIF(MAX("01/01/2023",Tabla2[[#This Row],[Fecha mora]]),'Planilla de carga'!$E$14,"d"),"-") -> - | L139: =IFERROR((E139*'Planilla de carga'!$E$5*J139)/100,0) -> 0 | M139: =IFERROR((E139*K139*'Planilla de carga'!$E$6)/100,0) -> 0 | N139: 0 | O139: 0 | P139: =IF(Tabla2[[#This Row],[Monto total]]=0,"no","si") -> no
D140: 2019 - mayo | E140: =SUMIF(Tabla4[Año/Mes],Tabla2[[#This Row],[Mes concepto ]],Tabla4[Monto]) -> 0 | F140: 2019-06-06 | G140: =IFERROR(VLOOKUP((F140-1),'Índices Tasa Pasiva BCRA'!C:D,2,FALSE),"-") -> 1844.1525 | H140: =IFERROR(VLOOKUP('Planilla de carga'!$E$14,'Índices Tasa Pasiva BCRA'!C:D,2,FALSE),"-") -> - | I140: 0 | J140: 1305 | K140: =IFERROR(DATEDIF(MAX("01/01/2023",Tabla2[[#This Row],[Fecha mora]]),'Planilla de carga'!$E$14,"d"),"-") -> - | L140: =IFERROR((E140*'Planilla de carga'!$E$5*J140)/100,0) -> 0 | M140: =IFERROR((E140*K140*'Planilla de carga'!$E$6)/100,0) -> 0 | N140: 0 | O140: 0 | P140: =IF(Tabla2[[#This Row],[Monto total]]=0,"no","si") -> no
D141: 2019 - junio | E141: =SUMIF(Tabla4[Año/Mes],Tabla2[[#This Row],[Mes concepto ]],Tabla4[Monto]) -> 0 | F141: 2019-07-04 | G141: =IFERROR(VLOOKUP((F141-1),'Índices Tasa Pasiva BCRA'!C:D,2,FALSE),"-") -> 1902.4833 | H141: =IFERROR(VLOOKUP('Planilla de carga'!$E$14,'Índices Tasa Pasiva BCRA'!C:D,2,FALSE),"-") -> - | I141: 0 | J141: 1277 | K141: =IFERROR(DATEDIF(MAX("01/01/2023",Tabla2[[#This Row],[Fecha mora]]),'Planilla de carga'!$E$14,"d"),"-") -> - | L141: =IFERROR((E141*'Planilla de carga'!$E$5*J141)/100,0) -> 0 | M141: =IFERROR((E141*K141*'Planilla de carga'!$E$6)/100,0) -> 0 | N141: 0 | O141: 0 | P141: =IF(Tabla2[[#This Row],[Monto total]]=0,"no","si") -> no
D142: 2019 - julio | E142: =SUMIF(Tabla4[Año/Mes],Tabla2[[#This Row],[Mes concepto ]],Tabla4[Monto]) -> 0 | F142: 2019-08-06 | G142: =IFERROR(VLOOKUP((F142-1),'Índices Tasa Pasiva BCRA'!C:D,2,FALSE),"-") -> 1968.103 | H142: =IFERROR(VLOOKUP('Planilla de carga'!$E$14,'Índices Tasa Pasiva BCRA'!C:D,2,FALSE),"-") -> - | I142: 0 | J142: 1244 | K142: =IFERROR(DATEDIF(MAX("01/01/2023",Tabla2[[#This Row],[Fecha mora]]),'Planilla de carga'!$E$14,"d"),"-") -> - | L142: =IFERROR((E142*'Planilla de carga'!$E$5*J142)/100,0) -> 0 | M142: =IFERROR((E142*K142*'Planilla de carga'!$E$6)/100,0) -> 0 | N142: 0 | O142: 0 | P142: =IF(Tabla2[[#This Row],[Monto total]]=0,"no","si") -> no
D143: 2019 - agosto | E143: =SUMIF(Tabla4[Año/Mes],Tabla2[[#This Row],[Mes concepto ]],Tabla4[Monto]) -> 0 | F143: 2019-09-05 | G143: =IFERROR(VLOOKUP((F143-1),'Índices Tasa Pasiva BCRA'!C:D,2,FALSE),"-") -> 2037.5608 | H143: =IFERROR(VLOOKUP('Planilla de carga'!$E$14,'Índices Tasa Pasiva BCRA'!C:D,2,FALSE),"-") -> - | I143: 0 | J143: 1214 | K143: =IFERROR(DATEDIF(MAX("01/01/2023",Tabla2[[#This Row],[Fecha mora]]),'Planilla de carga'!$E$14,"d"),"-") -> - | L143: =IFERROR((E143*'Planilla de carga'!$E$5*J143)/100,0) -> 0 | M143: =IFERROR((E143*K143*'Planilla de carga'!$E$6)/100,0) -> 0 | N143: 0 | O143: 0 | P143: =IF(Tabla2[[#This Row],[Monto total]]=0,"no","si") -> no
D144: 2019 - septiembre | E144: =SUMIF(Tabla4[Año/Mes],Tabla2[[#This Row],[Mes concepto ]],Tabla4[Monto]) -> 0 | F144: 2019-10-04 | G144: =IFERROR(VLOOKUP((F144-1),'Índices Tasa Pasiva BCRA'!C:D,2,FALSE),"-") -> 2111.6254 | H144: =IFERROR(VLOOKUP('Planilla de carga'!$E$14,'Índices Tasa Pasiva BCRA'!C:D,2,FALSE),"-") -> - | I144: 0 | J144: 1185 | K144: =IFERROR(DATEDIF(MAX("01/01/2023",Tabla2[[#This Row],[Fecha mora]]),'Planilla de carga'!$E$14,"d"),"-") -> - | L144: =IFERROR((E144*'Planilla de carga'!$E$5*J144)/100,0) -> 0 | M144: =IFERROR((E144*K144*'Planilla de carga'!$E$6)/100,0) -> 0 | N144: 0 | O144: 0 | P144: =IF(Tabla2[[#This Row],[Monto total]]=0,"no","si") -> no
D145: 2019 - octubre | E145: =SUMIF(Tabla4[Año/Mes],Tabla2[[#This Row],[Mes concepto ]],Tabla4[Monto]) -> 0 | F145: 2019-11-06 | G145: =IFERROR(VLOOKUP((F145-1),'Índices Tasa Pasiva BCRA'!C:D,2,FALSE),"-") -> 2191.8699 | H145: =IFERROR(VLOOKUP('Planilla de carga'!$E$14,'Índices Tasa Pasiva BCRA'!C:D,2,FALSE),"-") -> - | I145: 0 | J145: 1152 | K145: =IFERROR(DATEDIF(MAX("01/01/2023",Tabla2[[#This Row],[Fecha mora]]),'Planilla de carga'!$E$14,"d"),"-") -> - | L145: =IFERROR((E145*'Planilla de carga'!$E$5*J145)/100,0) -> 0 | M145: =IFERROR((E145*K145*'Planilla de carga'!$E$6)/100,0) -> 0 | N145: 0 | O145: 0 | P145: =IF(Tabla2[[#This Row],[Monto total]]=0,"no","si") -> no
D146: 2019 - noviembre | E146: =SUMIF(Tabla4[Año/Mes],Tabla2[[#This Row],[Mes concepto ]],Tabla4[Monto]) -> 0 | F146: 2019-12-05 | G146: =IFERROR(VLOOKUP((F146-1),'Índices Tasa Pasiva BCRA'!C:D,2,FALSE),"-") -> 2255.0217 | H146: =IFERROR(VLOOKUP('Planilla de carga'!$E$14,'Índices Tasa Pasiva BCRA'!C:D,2,FALSE),"-") -> - | I146: 0 | J146: 1123 | K146: =IFERROR(DATEDIF(MAX("01/01/2023",Tabla2[[#This Row],[Fecha mora]]),'Planilla de carga'!$E$14,"d"),"-") -> - | L146: =IFERROR((E146*'Planilla de carga'!$E$5*J146)/100,0) -> 0 | M146: =IFERROR((E146*K146*'Planilla de carga'!$E$6)/100,0) -> 0 | N146: 0 | O146: 0 | P146: =IF(Tabla2[[#This Row],[Monto total]]=0,"no","si") -> no
D147: 2019 - diciembre | E147: =SUMIF(Tabla4[Año/Mes],Tabla2[[#This Row],[Mes concepto ]],Tabla4[Monto]) -> 0 | F147: 2020-01-07 | G147: =IFERROR(VLOOKUP((F147-1),'Índices Tasa Pasiva BCRA'!C:D,2,FALSE),"-") -> 2320.2319 | H147: =IFERROR(VLOOKUP('Planilla de carga'!$E$14,'Índices Tasa Pasiva BCRA'!C:D,2,FALSE),"-") -> - | I147: 0 | J147: 1090 | K147: =IFERROR(DATEDIF(MAX("01/01/2023",Tabla2[[#This Row],[Fecha mora]]),'Planilla de carga'!$E$14,"d"),"-") -> - | L147: =IFERROR((E147*'Planilla de carga'!$E$5*J147)/100,0) -> 0 | M147: =IFERROR((E147*K147*'Planilla de carga'!$E$6)/100,0) -> 0 | N147: 0 | O147: 0 | P147: =IF(Tabla2[[#This Row],[Monto total]]=0,"no","si") -> no
D148: 2020 - enero | E148: =SUMIF(Tabla4[Año/Mes],Tabla2[[#This Row],[Mes concepto ]],Tabla4[Monto]) -> 0 | F148: 2020-02-06 | G148: =IFERROR(VLOOKUP((F148-1),'Índices Tasa Pasiva BCRA'!C:D,2,FALSE),"-") -> 2370.4285 | H148: =IFERROR(VLOOKUP('Planilla de carga'!$E$14,'Índices Tasa Pasiva BCRA'!C:D,2,FALSE),"-") -> - | I148: 0 | J148: 1060 | K148: =IFERROR(DATEDIF(MAX("01/01/2023",Tabla2[[#This Row],[Fecha mora]]),'Planilla de carga'!$E$14,"d"),"-") -> - | L148: =IFERROR((E148*'Planilla de carga'!$E$5*J148)/100,0) -> 0 | M148: =IFERROR((E148*K148*'Planilla de carga'!$E$6)/100,0) -> 0 | N148: 0 | O148: 0 | P148: =IF(Tabla2[[#This Row],[Monto total]]=0,"no","si") -> no
D149: 2020 - febrero | E149: =SUMIF(Tabla4[Año/Mes],Tabla2[[#This Row],[Mes concepto ]],Tabla4[Monto]) -> 0 | F149: 2020-03-05 | G149: =IFERROR(VLOOKUP((F149-1),'Índices Tasa Pasiva BCRA'!C:D,2,FALSE),"-") -> 2415.6888 | H149: =IFERROR(VLOOKUP('Planilla de carga'!$E$14,'Índices Tasa Pasiva BCRA'!C:D,2,FALSE),"-") -> - | I149: 0 | J149: 1032 | K149: =IFERROR(DATEDIF(MAX("01/01/2023",Tabla2[[#This Row],[Fecha mora]]),'Planilla de carga'!$E$14,"d"),"-") -> - | L149: =IFERROR((E149*'Planilla de carga'!$E$5*J149)/100,0) -> 0 | M149: =IFERROR((E149*K149*'Planilla de carga'!$E$6)/100,0) -> 0 | N149: 0 | O149: 0 | P149: =IF(Tabla2[[#This Row],[Monto total]]=0,"no","si") -> no
D150: 2020 - marzo | E150: =SUMIF(Tabla4[Año/Mes],Tabla2[[#This Row],[Mes concepto ]],Tabla4[Monto]) -> 0 | F150: 2020-04-07 | G150: =IFERROR(VLOOKUP((F150-1),'Índices Tasa Pasiva BCRA'!C:D,2,FALSE),"-") -> 2459.8342 | H150: =IFERROR(VLOOKUP('Planilla de carga'!$E$14,'Índices Tasa Pasiva BCRA'!C:D,2,FALSE),"-") -> - | I150: 0 | J150: 999 | K150: =IFERROR(DATEDIF(MAX("01/01/2023",Tabla2[[#This Row],[Fecha mora]]),'Planilla de carga'!$E$14,"d"),"-") -> - | L150: =IFERROR((E150*'Planilla de carga'!$E$5*J150)/100,0) -> 0 | M150: =IFERROR((E150*K150*'Planilla de carga'!$E$6)/100,0) -> 0 | N150: 0 | O150: 0 | P150: =IF(Tabla2[[#This Row],[Monto total]]=0,"no","si") -> no
D151: 2020 - abril | E151: =SUMIF(Tabla4[Año/Mes],Tabla2[[#This Row],[Mes concepto ]],Tabla4[Monto]) -> 0 | F151: 2020-05-07 | G151: =IFERROR(VLOOKUP((F151-1),'Índices Tasa Pasiva BCRA'!C:D,2,FALSE),"-") -> 2489.7045 | H151: =IFERROR(VLOOKUP('Planilla de carga'!$E$14,'Índices Tasa Pasiva BCRA'!C:D,2,FALSE),"-") -> - | I151: 0 | J151: 969 | K151: =IFERROR(DATEDIF(MAX("01/01/2023",Tabla2[[#This Row],[Fecha mora]]),'Planilla de carga'!$E$14,"d"),"-") -> - | L151: =IFERROR((E151*'Planilla de carga'!$E$5*J151)/100,0) -> 0 | M151: =IFERROR((E151*K151*'Planilla de carga'!$E$6)/100,0) -> 0 | N151: 0 | O151: 0 | P151: =IF(Tabla2[[#This Row],[Monto total]]=0,"no","si") -> no
D152: 2020 - mayo | E152: =SUMIF(Tabla4[Año/Mes],Tabla2[[#This Row],[Mes concepto ]],Tabla4[Monto]) -> 0 | F152: 2020-06-04 | G152: =IFERROR(VLOOKUP((F152-1),'Índices Tasa Pasiva BCRA'!C:D,2,FALSE),"-") -> 2523.1883 | H152: =IFERROR(VLOOKUP('Planilla de carga'!$E$14,'Índices Tasa Pasiva BCRA'!C:D,2,FALSE),"-") -> - | I152: 0 | J152: 941 | K152: =IFERROR(DATEDIF(MAX("01/01/2023",Tabla2[[#This Row],[Fecha mora]]),'Planilla de carga'!$E$14,"d"),"-") -> - | L152: =IFERROR((E152*'Planilla de carga'!$E$5*J152)/100,0) -> 0 | M152: =IFERROR((E152*K152*'Planilla de carga'!$E$6)/100,0) -> 0 | N152: 0 | O152: 0 | P152: =IF(Tabla2[[#This Row],[Monto total]]=0,"no","si") -> no
D153: 2020 - junio | E153: =SUMIF(Tabla4[Año/Mes],Tabla2[[#This Row],[Mes concepto ]],Tabla4[Monto]) -> 0 | F153: 2020-07-06 | G153: =IFERROR(VLOOKUP((F153-1),'Índices Tasa Pasiva BCRA'!C:D,2,FALSE),"-") -> 2568.8798 | H153: =IFERROR(VLOOKUP('Planilla de carga'!$E$14,'Índices Tasa Pasiva BCRA'!C:D,2,FALSE),"-") -> - | I153: 0 | J153: 909 | K153: =IFERROR(DATEDIF(MAX("01/01/2023",Tabla2[[#This Row],[Fecha mora]]),'Planilla de carga'!$E$14,"d"),"-") -> - | L153: =IFERROR((E153*'Planilla de carga'!$E$5*J153)/100,0) -> 0 | M153: =IFERROR((E153*K153*'Planilla de carga'!$E$6)/100,0) -> 0 | N153: 0 | O153: 0 | P153: =IF(Tabla2[[#This Row],[Monto total]]=0,"no","si") -> no
D154: 2020 - julio | E154: =SUMIF(Tabla4[Año/Mes],Tabla2[[#This Row],[Mes concepto ]],Tabla4[Monto]) -> 0 | F154: 2020-08-06 | G154: =IFERROR(VLOOKUP((F154-1),'Índices Tasa Pasiva BCRA'!C:D,2,FALSE),"-") -> 2614.2238 | H154: =IFERROR(VLOOKUP('Planilla de carga'!$E$14,'Índices Tasa Pasiva BCRA'!C:D,2,FALSE),"-") -> - | I154: 0 | J154: 878 | K154: =IFERROR(DATEDIF(MAX("01/01/2023",Tabla2[[#This Row],[Fecha mora]]),'Planilla de carga'!$E$14,"d"),"-") -> - | L154: =IFERROR((E154*'Planilla de carga'!$E$5*J154)/100,0) -> 0 | M154: =IFERROR((E154*K154*'Planilla de carga'!$E$6)/100,0) -> 0 | N154: 0 | O154: 0 | P154: =IF(Tabla2[[#This Row],[Monto total]]=0,"no","si") -> no
D155: 2020 - agosto | E155: =SUMIF(Tabla4[Año/Mes],Tabla2[[#This Row],[Mes concepto ]],Tabla4[Monto]) -> 0 | F155: 2020-09-04 | G155: =IFERROR(VLOOKUP((F155-1),'Índices Tasa Pasiva BCRA'!C:D,2,FALSE),"-") -> 2659.355 | H155: =IFERROR(VLOOKUP('Planilla de carga'!$E$14,'Índices Tasa Pasiva BCRA'!C:D,2,FALSE),"-") -> - | I155: 0 | J155: 849 | K155: =IFERROR(DATEDIF(MAX("01/01/2023",Tabla2[[#This Row],[Fecha mora]]),'Planilla de carga'!$E$14,"d"),"-") -> - | L155: =IFERROR((E155*'Planilla de carga'!$E$5*J155)/100,0) -> 0 | M155: =IFERROR((E155*K155*'Planilla de carga'!$E$6)/100,0) -> 0 | N155: 0 | O155: 0 | P155: =IF(Tabla2[[#This Row],[Monto total]]=0,"no","si") -> no
D156: 2020 - septiembre | E156: =SUMIF(Tabla4[Año/Mes],Tabla2[[#This Row],[Mes concepto ]],Tabla4[Monto]) -> 0 | F156: 2020-10-06 | G156: =IFERROR(VLOOKUP((F156-1),'Índices Tasa Pasiva BCRA'!C:D,2,FALSE),"-") -> 2710.1338 | H156: =IFERROR(VLOOKUP('Planilla de carga'!$E$14,'Índices Tasa Pasiva BCRA'!C:D,2,FALSE),"-") -> - | I156: =IFERROR(E156*((100 + H156) / (100 + G156)-1),0) -> 0 | J156: 817 | K156: =IFERROR(DATEDIF(MAX("01/01/2023",Tabla2[[#This Row],[Fecha mora]]),'Planilla de carga'!$E$14,"d"),"-") -> - | L156: =IFERROR((E156*'Planilla de carga'!$E$5*J156)/100,0) -> 0 | M156: =IFERROR((E156*K156*'Planilla de carga'!$E$6)/100,0) -> 0 | N156: 0 | O156: =+N156+E156 -> 0 | P156: =IF(Tabla2[[#This Row],[Monto total]]=0,"no","si") -> no
D157: 2020 - octubre | E157: =SUMIF(Tabla4[Año/Mes],Tabla2[[#This Row],[Mes concepto ]],Tabla4[Monto]) -> 0 | F157: 2020-11-05 | G157: =IFERROR(VLOOKUP((F157-1),'Índices Tasa Pasiva BCRA'!C:D,2,FALSE),"-") -> 2761.3312 | H157: =IFERROR(VLOOKUP('Planilla de carga'!$E$14,'Índices Tasa Pasiva BCRA'!C:D,2,FALSE),"-") -> - | I157: 0 | J157: 787 | K157: =IFERROR(DATEDIF(MAX("01/01/2023",Tabla2[[#This Row],[Fecha mora]]),'Planilla de carga'!$E$14,"d"),"-") -> - | L157: =IFERROR((E157*'Planilla de carga'!$E$5*J157)/100,0) -> 0 | M157: =IFERROR((E157*K157*'Planilla de carga'!$E$6)/100,0) -> 0 | N157: =+I157+L157+M157 -> 0 | O157: 0 | P157: =IF(Tabla2[[#This Row],[Monto total]]=0,"no","si") -> no
D158: 2020 - noviembre | E158: =SUMIF(Tabla4[Año/Mes],Tabla2[[#This Row],[Mes concepto ]],Tabla4[Monto]) -> 0 | F158: 2020-12-04 | G158: =IFERROR(VLOOKUP((F158-1),'Índices Tasa Pasiva BCRA'!C:D,2,FALSE),"-") -> 2816.5515 | H158: =IFERROR(VLOOKUP('Planilla de carga'!$E$14,'Índices Tasa Pasiva BCRA'!C:D,2,FALSE),"-") -> - | I158: 0 | J158: =IFERROR(DATEDIF(F158,"01/01/2023","d"),"-") -> 758 | K158: =IFERROR(DATEDIF(MAX("01/01/2023",Tabla2[[#This Row],[Fecha mora]]),'Planilla de carga'!$E$14,"d"),"-") -> - | L158: =IFERROR((E158*'Planilla de carga'!$E$5*J158)/100,0) -> 0 | M158: =IFERROR((E158*K158*'Planilla de carga'!$E$6)/100,0) -> 0 | N158: 0 | O158: 0 | P158: =IF(Tabla2[[#This Row],[Monto total]]=0,"no","si") -> no
D159: 2020 - diciembre | E159: =SUMIF(Tabla4[Año/Mes],Tabla2[[#This Row],[Mes concepto ]],Tabla4[Monto]) -> 0 | F159: 2021-01-07 | G159: =IFERROR(VLOOKUP((F159-1),'Índices Tasa Pasiva BCRA'!C:D,2,FALSE),"-") -> 2883.4047 | H159: =IFERROR(VLOOKUP('Planilla de carga'!$E$14,'Índices Tasa Pasiva BCRA'!C:D,2,FALSE),"-") -> - | I159: 0 | J159: 724 | K159: =IFERROR(DATEDIF(MAX("01/01/2023",Tabla2[[#This Row],[Fecha mora]]),'Planilla de carga'!$E$14,"d"),"-") -> - | L159: =IFERROR((E159*'Planilla de carga'!$E$5*J159)/100,0) -> 0 | M159: =IFERROR((E159*K159*'Planilla de carga'!$E$6)/100,0) -> 0 | N159: 0 | O159: 0 | P159: =IF(Tabla2[[#This Row],[Monto total]]=0,"no","si") -> no
D160: 2021 - enero | E160: =SUMIF(Tabla4[Año/Mes],Tabla2[[#This Row],[Mes concepto ]],Tabla4[Monto]) -> 0 | F160: 2021-02-04 | G160: =IFERROR(VLOOKUP((F160-1),'Índices Tasa Pasiva BCRA'!C:D,2,FALSE),"-") -> 2938.9335 | H160: =IFERROR(VLOOKUP('Planilla de carga'!$E$14,'Índices Tasa Pasiva BCRA'!C:D,2,FALSE),"-") -> - | I160: 0 | J160: 696 | K160: =IFERROR(DATEDIF(MAX("01/01/2023",Tabla2[[#This Row],[Fecha mora]]),'Planilla de carga'!$E$14,"d"),"-") -> - | L160: =IFERROR((E160*'Planilla de carga'!$E$5*J160)/100,0) -> 0 | M160: =IFERROR((E160*K160*'Planilla de carga'!$E$6)/100,0) -> 0 | N160: 0 | O160: 0 | P160: =IF(Tabla2[[#This Row],[Monto total]]=0,"no","si") -> no
D161: 2021 - febrero | E161: =SUMIF(Tabla4[Año/Mes],Tabla2[[#This Row],[Mes concepto ]],Tabla4[Monto]) -> 0 | F161: 2021-03-04 | G161: =IFERROR(VLOOKUP((F161-1),'Índices Tasa Pasiva BCRA'!C:D,2,FALSE),"-") -> 2997.9039 | H161: =IFERROR(VLOOKUP('Planilla de carga'!$E$14,'Índices Tasa Pasiva BCRA'!C:D,2,FALSE),"-") -> - | I161: 0 | J161: 668 | K161: =IFERROR(DATEDIF(MAX("01/01/2023",Tabla2[[#This Row],[Fecha mora]]),'Planilla de carga'!$E$14,"d"),"-") -> - | L161: =IFERROR((E161*'Planilla de carga'!$E$5*J161)/100,0) -> 0 | M161: =IFERROR((E161*K161*'Planilla de carga'!$E$6)/100,0) -> 0 | N161: 0 | O161: 0 | P161: =IF(Tabla2[[#This Row],[Monto total]]=0,"no","si") -> no
D162: 2021 - marzo | E162: =SUMIF(Tabla4[Año/Mes],Tabla2[[#This Row],[Mes concepto ]],Tabla4[Monto]) -> 0 | F162: 2021-04-07 | G162: =IFERROR(VLOOKUP((F162-1),'Índices Tasa Pasiva BCRA'!C:D,2,FALSE),"-") -> 3070.8485 | H162: =IFERROR(VLOOKUP('Planilla de carga'!$E$14,'Índices Tasa Pasiva BCRA'!C:D,2,FALSE),"-") -> - | I162: 0 | J162: 634 | K162: =IFERROR(DATEDIF(MAX("01/01/2023",Tabla2[[#This Row],[Fecha mora]]),'Planilla de carga'!$E$14,"d"),"-") -> - | L162: =IFERROR((E162*'Planilla de carga'!$E$5*J162)/100,0) -> 0 | M162: =IFERROR((E162*K162*'Planilla de carga'!$E$6)/100,0) -> 0 | N162: 0 | O162: 0 | P162: =IF(Tabla2[[#This Row],[Monto total]]=0,"no","si") -> no
D163: 2021 - abril | E163: =SUMIF(Tabla4[Año/Mes],Tabla2[[#This Row],[Mes concepto ]],Tabla4[Monto]) -> 0 | F163: 2021-05-06 | G163: =IFERROR(VLOOKUP((F163-1),'Índices Tasa Pasiva BCRA'!C:D,2,FALSE),"-") -> 3135.4441 | H163: =IFERROR(VLOOKUP('Planilla de carga'!$E$14,'Índices Tasa Pasiva BCRA'!C:D,2,FALSE),"-") -> - | I163: 0 | J163: 605 | K163: =IFERROR(DATEDIF(MAX("01/01/2023",Tabla2[[#This Row],[Fecha mora]]),'Planilla de carga'!$E$14,"d"),"-") -> - | L163: =IFERROR((E163*'Planilla de carga'!$E$5*J163)/100,0) -> 0 | M163: =IFERROR((E163*K163*'Planilla de carga'!$E$6)/100,0) -> 0 | N163: 0 | O163: 0 | P163: =IF(Tabla2[[#This Row],[Monto total]]=0,"no","si") -> no
D164: 2021 - mayo | E164: =SUMIF(Tabla4[Año/Mes],Tabla2[[#This Row],[Mes concepto ]],Tabla4[Monto]) -> 0 | F164: 2021-06-04 | G164: =IFERROR(VLOOKUP((F164-1),'Índices Tasa Pasiva BCRA'!C:D,2,FALSE),"-") -> 3201.5711 | H164: =IFERROR(VLOOKUP('Planilla de carga'!$E$14,'Índices Tasa Pasiva BCRA'!C:D,2,FALSE),"-") -> - | I164: 0 | J164: 576 | K164: =IFERROR(DATEDIF(MAX("01/01/2023",Tabla2[[#This Row],[Fecha mora]]),'Planilla de carga'!$E$14,"d"),"-") -> - | L164: =IFERROR((E164*'Planilla de carga'!$E$5*J164)/100,0) -> 0 | M164: =IFERROR((E164*K164*'Planilla de carga'!$E$6)/100,0) -> 0 | N164: 0 | O164: 0 | P164: =IF(Tabla2[[#This Row],[Monto total]]=0,"no","si") -> no
D165: 2021 - junio | E165: =SUMIF(Tabla4[Año/Mes],Tabla2[[#This Row],[Mes concepto ]],Tabla4[Monto]) -> 0 | F165: 2021-07-06 | G165: =IFERROR(VLOOKUP((F165-1),'Índices Tasa Pasiva BCRA'!C:D,2,FALSE),"-") -> 3272.684 | H165: =IFERROR(VLOOKUP('Planilla de carga'!$E$14,'Índices Tasa Pasiva BCRA'!C:D,2,FALSE),"-") -> - | I165: 0 | J165: 544 | K165: =IFERROR(DATEDIF(MAX("01/01/2023",Tabla2[[#This Row],[Fecha mora]]),'Planilla de carga'!$E$14,"d"),"-") -> - | L165: =IFERROR((E165*'Planilla de carga'!$E$5*J165)/100,0) -> 0 | M165: =IFERROR((E165*K165*'Planilla de carga'!$E$6)/100,0) -> 0 | N165: 0 | O165: 0 | P165: =IF(Tabla2[[#This Row],[Monto total]]=0,"no","si") -> no
D166: 2021 - julio | E166: =SUMIF(Tabla4[Año/Mes],Tabla2[[#This Row],[Mes concepto ]],Tabla4[Monto]) -> 0 | F166: 2021-08-05 | G166: =IFERROR(VLOOKUP((F166-1),'Índices Tasa Pasiva BCRA'!C:D,2,FALSE),"-") -> 3341.6721 | H166: =IFERROR(VLOOKUP('Planilla de carga'!$E$14,'Índices Tasa Pasiva BCRA'!C:D,2,FALSE),"-") -> - | I166: 0 | J166: 514 | K166: =IFERROR(DATEDIF(MAX("01/01/2023",Tabla2[[#This Row],[Fecha mora]]),'Planilla de carga'!$E$14,"d"),"-") -> - | L166: =IFERROR((E166*'Planilla de carga'!$E$5*J166)/100,0) -> 0 | M166: =IFERROR((E166*K166*'Planilla de carga'!$E$6)/100,0) -> 0 | N166: 0 | O166: 0 | P166: =IF(Tabla2[[#This Row],[Monto total]]=0,"no","si") -> no
D167: 2021 - agosto | E167: =SUMIF(Tabla4[Año/Mes],Tabla2[[#This Row],[Mes concepto ]],Tabla4[Monto]) -> 0 | F167: 2021-09-06 | G167: =IFERROR(VLOOKUP((F167-1),'Índices Tasa Pasiva BCRA'!C:D,2,FALSE),"-") -> 3417.2523 | H167: =IFERROR(VLOOKUP('Planilla de carga'!$E$14,'Índices Tasa Pasiva BCRA'!C:D,2,FALSE),"-") -> - | I167: 0 | J167: 482 | K167: =IFERROR(DATEDIF(MAX("01/01/2023",Tabla2[[#This Row],[Fecha mora]]),'Planilla de carga'!$E$14,"d"),"-") -> - | L167: =IFERROR((E167*'Planilla de carga'!$E$5*J167)/100,0) -> 0 | M167: =IFERROR((E167*K167*'Planilla de carga'!$E$6)/100,0) -> 0 | N167: 0 | O167: 0 | P167: =IF(Tabla2[[#This Row],[Monto total]]=0,"no","si") -> no
D168: 2021 - septiembre | E168: =SUMIF(Tabla4[Año/Mes],Tabla2[[#This Row],[Mes concepto ]],Tabla4[Monto]) -> 0 | F168: 2021-10-06 | G168: =IFERROR(VLOOKUP((F168-1),'Índices Tasa Pasiva BCRA'!C:D,2,FALSE),"-") -> 3490.1954 | H168: =IFERROR(VLOOKUP('Planilla de carga'!$E$14,'Índices Tasa Pasiva BCRA'!C:D,2,FALSE),"-") -> - | I168: 0 | J168: 452 | K168: =IFERROR(DATEDIF(MAX("01/01/2023",Tabla2[[#This Row],[Fecha mora]]),'Planilla de carga'!$E$14,"d"),"-") -> - | L168: =IFERROR((E168*'Planilla de carga'!$E$5*J168)/100,0) -> 0 | M168: =IFERROR((E168*K168*'Planilla de carga'!$E$6)/100,0) -> 0 | N168: 0 | O168: 0 | P168: =IF(Tabla2[[#This Row],[Monto total]]=0,"no","si") -> no
D169: 2021 - octubre | E169: =SUMIF(Tabla4[Año/Mes],Tabla2[[#This Row],[Mes concepto ]],Tabla4[Monto]) -> 0 | F169: 2021-11-04 | G169: =IFERROR(VLOOKUP((F169-1),'Índices Tasa Pasiva BCRA'!C:D,2,FALSE),"-") -> 3563.6334 | H169: =IFERROR(VLOOKUP('Planilla de carga'!$E$14,'Índices Tasa Pasiva BCRA'!C:D,2,FALSE),"-") -> - | I169: 0 | J169: 423 | K169: =IFERROR(DATEDIF(MAX("01/01/2023",Tabla2[[#This Row],[Fecha mora]]),'Planilla de carga'!$E$14,"d"),"-") -> - | L169: =IFERROR((E169*'Planilla de carga'!$E$5*J169)/100,0) -> 0 | M169: =IFERROR((E169*K169*'Planilla de carga'!$E$6)/100,0) -> 0 | N169: 0 | O169: 0 | P169: =IF(Tabla2[[#This Row],[Monto total]]=0,"no","si") -> no
D170: 2021 - noviembre | E170: =SUMIF(Tabla4[Año/Mes],Tabla2[[#This Row],[Mes concepto ]],Tabla4[Monto]) -> 0 | F170: 2021-12-06 | G170: =IFERROR(VLOOKUP((F170-1),'Índices Tasa Pasiva BCRA'!C:D,2,FALSE),"-") -> 3644.1841 | H170: =IFERROR(VLOOKUP('Planilla de carga'!$E$14,'Índices Tasa Pasiva BCRA'!C:D,2,FALSE),"-") -> - | I170: 0 | J170: 391 | K170: =IFERROR(DATEDIF(MAX("01/01/2023",Tabla2[[#This Row],[Fecha mora]]),'Planilla de carga'!$E$14,"d"),"-") -> - | L170: =IFERROR((E170*'Planilla de carga'!$E$5*J170)/100,0) -> 0 | M170: =IFERROR((E170*K170*'Planilla de carga'!$E$6)/100,0) -> 0 | N170: 0 | O170: 0 | P170: =IF(Tabla2[[#This Row],[Monto total]]=0,"no","si") -> no
D171: 2021 - diciembre | E171: =SUMIF(Tabla4[Año/Mes],Tabla2[[#This Row],[Mes concepto ]],Tabla4[Monto]) -> 0 | F171: 2022-01-06 | G171: =IFERROR(VLOOKUP((F171-1),'Índices Tasa Pasiva BCRA'!C:D,2,FALSE),"-") -> 3722.0414 | H171: =IFERROR(VLOOKUP('Planilla de carga'!$E$14,'Índices Tasa Pasiva BCRA'!C:D,2,FALSE),"-") -> - | I171: 0 | J171: 360 | K171: =IFERROR(DATEDIF(MAX("01/01/2023",Tabla2[[#This Row],[Fecha mora]]),'Planilla de carga'!$E$14,"d"),"-") -> - | L171: =IFERROR((E171*'Planilla de carga'!$E$5*J171)/100,0) -> 0 | M171: =IFERROR((E171*K171*'Planilla de carga'!$E$6)/100,0) -> 0 | N171: 0 | O171: 0 | P171: =IF(Tabla2[[#This Row],[Monto total]]=0,"no","si") -> no
D172: 2022 - enero | E172: =SUMIF(Tabla4[Año/Mes],Tabla2[[#This Row],[Mes concepto ]],Tabla4[Monto]) -> 0 | F172: 2022-02-04 | G172: =IFERROR(VLOOKUP((F172-1),'Índices Tasa Pasiva BCRA'!C:D,2,FALSE),"-") -> 3800.512 | H172: =IFERROR(VLOOKUP('Planilla de carga'!$E$14,'Índices Tasa Pasiva BCRA'!C:D,2,FALSE),"-") -> - | I172: 0 | J172: 331 | K172: =IFERROR(DATEDIF(MAX("01/01/2023",Tabla2[[#This Row],[Fecha mora]]),'Planilla de carga'!$E$14,"d"),"-") -> - | L172: =IFERROR((E172*'Planilla de carga'!$E$5*J172)/100,0) -> 0 | M172: =IFERROR((E172*K172*'Planilla de carga'!$E$6)/100,0) -> 0 | N172: 0 | O172: 0 | P172: =IF(Tabla2[[#This Row],[Monto total]]=0,"no","si") -> no
D173: 2022 - febrero | E173: =SUMIF(Tabla4[Año/Mes],Tabla2[[#This Row],[Mes concepto ]],Tabla4[Monto]) -> 0 | F173: 2022-03-07 | G173: =IFERROR(VLOOKUP((F173-1),'Índices Tasa Pasiva BCRA'!C:D,2,FALSE),"-") -> 3891.8751 | H173: =IFERROR(VLOOKUP('Planilla de carga'!$E$14,'Índices Tasa Pasiva BCRA'!C:D,2,FALSE),"-") -> - | I173: 0 | J173: 300 | K173: =IFERROR(DATEDIF(MAX("01/01/2023",Tabla2[[#This Row],[Fecha mora]]),'Planilla de carga'!$E$14,"d"),"-") -> - | L173: =IFERROR((E173*'Planilla de carga'!$E$5*J173)/100,0) -> 0 | M173: =IFERROR((E173*K173*'Planilla de carga'!$E$6)/100,0) -> 0 | N173: 0 | O173: 0 | P173: =IF(Tabla2[[#This Row],[Monto total]]=0,"no","si") -> no
D174: 2022 - marzo | E174: =SUMIF(Tabla4[Año/Mes],Tabla2[[#This Row],[Mes concepto ]],Tabla4[Monto]) -> 0 | F174: 2022-04-06 | G174: =IFERROR(VLOOKUP((F174-1),'Índices Tasa Pasiva BCRA'!C:D,2,FALSE),"-") -> 3988.6933 | H174: =IFERROR(VLOOKUP('Planilla de carga'!$E$14,'Índices Tasa Pasiva BCRA'!C:D,2,FALSE),"-") -> - | I174: 0 | J174: 270 | K174: =IFERROR(DATEDIF(MAX("01/01/2023",Tabla2[[#This Row],[Fecha mora]]),'Planilla de carga'!$E$14,"d"),"-") -> - | L174: =IFERROR((E174*'Planilla de carga'!$E$5*J174)/100,0) -> 0 | M174: =IFERROR((E174*K174*'Planilla de carga'!$E$6)/100,0) -> 0 | N174: 0 | O174: 0 | P174: =IF(Tabla2[[#This Row],[Monto total]]=0,"no","si") -> no
D175: 2022 - abril | E175: =SUMIF(Tabla4[Año/Mes],Tabla2[[#This Row],[Mes concepto ]],Tabla4[Monto]) -> 0 | F175: 2022-05-05 | G175: =IFERROR(VLOOKUP((F175-1),'Índices Tasa Pasiva BCRA'!C:D,2,FALSE),"-") -> 4091.3313 | H175: =IFERROR(VLOOKUP('Planilla de carga'!$E$14,'Índices Tasa Pasiva BCRA'!C:D,2,FALSE),"-") -> - | I175: 0 | J175: 241 | K175: =IFERROR(DATEDIF(MAX("01/01/2023",Tabla2[[#This Row],[Fecha mora]]),'Planilla de carga'!$E$14,"d"),"-") -> - | L175: =IFERROR((E175*'Planilla de carga'!$E$5*J175)/100,0) -> 0 | M175: =IFERROR((E175*K175*'Planilla de carga'!$E$6)/100,0) -> 0 | N175: 0 | O175: 0 | P175: =IF(Tabla2[[#This Row],[Monto total]]=0,"no","si") -> no
D176: 2022 - mayo | E176: =SUMIF(Tabla4[Año/Mes],Tabla2[[#This Row],[Mes concepto ]],Tabla4[Monto]) -> 0 | F176: 2022-06-06 | G176: =IFERROR(VLOOKUP((F176-1),'Índices Tasa Pasiva BCRA'!C:D,2,FALSE),"-") -> 4218.0815 | H176: =IFERROR(VLOOKUP('Planilla de carga'!$E$14,'Índices Tasa Pasiva BCRA'!C:D,2,FALSE),"-") -> - | I176: 0 | J176: 209 | K176: =IFERROR(DATEDIF(MAX("01/01/2023",Tabla2[[#This Row],[Fecha mora]]),'Planilla de carga'!$E$14,"d"),"-") -> - | L176: =IFERROR((E176*'Planilla de carga'!$E$5*J176)/100,0) -> 0 | M176: =IFERROR((E176*K176*'Planilla de carga'!$E$6)/100,0) -> 0 | N176: 0 | O176: 0 | P176: =IF(Tabla2[[#This Row],[Monto total]]=0,"no","si") -> no
D177: 2022 - junio | E177: =SUMIF(Tabla4[Año/Mes],Tabla2[[#This Row],[Mes concepto ]],Tabla4[Monto]) -> 0 | F177: 2022-07-06 | G177: =IFERROR(VLOOKUP((F177-1),'Índices Tasa Pasiva BCRA'!C:D,2,FALSE),"-") -> 4343.7324 | H177: =IFERROR(VLOOKUP('Planilla de carga'!$E$14,'Índices Tasa Pasiva BCRA'!C:D,2,FALSE),"-") -> - | I177: 0 | J177: 179 | K177: =IFERROR(DATEDIF(MAX("01/01/2023",Tabla2[[#This Row],[Fecha mora]]),'Planilla de carga'!$E$14,"d"),"-") -> - | L177: =IFERROR((E177*'Planilla de carga'!$E$5*J177)/100,0) -> 0 | M177: =IFERROR((E177*K177*'Planilla de carga'!$E$6)/100,0) -> 0 | N177: 0 | O177: 0 | P177: =IF(Tabla2[[#This Row],[Monto total]]=0,"no","si") -> no
D178: 2022 - julio | E178: =SUMIF(Tabla4[Año/Mes],Tabla2[[#This Row],[Mes concepto ]],Tabla4[Monto]) -> 0 | F178: 2022-08-04 | G178: =IFERROR(VLOOKUP((F178-1),'Índices Tasa Pasiva BCRA'!C:D,2,FALSE),"-") -> 4475.7248 | H178: =IFERROR(VLOOKUP('Planilla de carga'!$E$14,'Índices Tasa Pasiva BCRA'!C:D,2,FALSE),"-") -> - | I178: 0 | J178: 150 | K178: =IFERROR(DATEDIF(MAX("01/01/2023",Tabla2[[#This Row],[Fecha mora]]),'Planilla de carga'!$E$14,"d"),"-") -> - | L178: =IFERROR((E178*'Planilla de carga'!$E$5*J178)/100,0) -> 0 | M178: =IFERROR((E178*K178*'Planilla de carga'!$E$6)/100,0) -> 0 | N178: 0 | O178: 0 | P178: =IF(Tabla2[[#This Row],[Monto total]]=0,"no","si") -> no
D179: 2022 - agosto | E179: =SUMIF(Tabla4[Año/Mes],Tabla2[[#This Row],[Mes concepto ]],Tabla4[Monto]) -> 0 | F179: 2022-09-06 | G179: =IFERROR(VLOOKUP((F179-1),'Índices Tasa Pasiva BCRA'!C:D,2,FALSE),"-") -> 4668.282 | H179: =IFERROR(VLOOKUP('Planilla de carga'!$E$14,'Índices Tasa Pasiva BCRA'!C:D,2,FALSE),"-") -> - | I179: 0 | J179: 117 | K179: =IFERROR(DATEDIF(MAX("01/01/2023",Tabla2[[#This Row],[Fecha mora]]),'Planilla de carga'!$E$14,"d"),"-") -> - | L179: =IFERROR((E179*'Planilla de carga'!$E$5*J179)/100,0) -> 0 | M179: =IFERROR((E179*K179*'Planilla de carga'!$E$6)/100,0) -> 0 | N179: 0 | O179: 0 | P179: =IF(Tabla2[[#This Row],[Monto total]]=0,"no","si") -> no
D180: 2022 - septiembre | E180: =SUMIF(Tabla4[Año/Mes],Tabla2[[#This Row],[Mes concepto ]],Tabla4[Monto]) -> 0 | F180: 2022-10-06 | G180: =IFERROR(VLOOKUP((F180-1),'Índices Tasa Pasiva BCRA'!C:D,2,FALSE),"-") -> 4874.3427 | H180: =IFERROR(VLOOKUP('Planilla de carga'!$E$14,'Índices Tasa Pasiva BCRA'!C:D,2,FALSE),"-") -> - | I180: 0 | J180: 87 | K180: =IFERROR(DATEDIF(MAX("01/01/2023",Tabla2[[#This Row],[Fecha mora]]),'Planilla de carga'!$E$14,"d"),"-") -> - | L180: =IFERROR((E180*'Planilla de carga'!$E$5*J180)/100,0) -> 0 | M180: =IFERROR((E180*K180*'Planilla de carga'!$E$6)/100,0) -> 0 | N180: 0 | O180: 0 | P180: =IF(Tabla2[[#This Row],[Monto total]]=0,"no","si") -> no
D181: 2022 - octubre | E181: =SUMIF(Tabla4[Año/Mes],Tabla2[[#This Row],[Mes concepto ]],Tabla4[Monto]) -> 0 | F181: 2022-11-04 | G181: =IFERROR(VLOOKUP((F181-1),'Índices Tasa Pasiva BCRA'!C:D,2,FALSE),"-") -> 5096.74 | H181: =IFERROR(VLOOKUP('Planilla de carga'!$E$14,'Índices Tasa Pasiva BCRA'!C:D,2,FALSE),"-") -> - | I181: 0 | J181: 58 | K181: =IFERROR(DATEDIF(MAX("01/01/2023",Tabla2[[#This Row],[Fecha mora]]),'Planilla de carga'!$E$14,"d"),"-") -> - | L181: =IFERROR((E181*'Planilla de carga'!$E$5*J181)/100,0) -> 0 | M181: =IFERROR((E181*K181*'Planilla de carga'!$E$6)/100,0) -> 0 | N181: 0 | O181: 0 | P181: =IF(Tabla2[[#This Row],[Monto total]]=0,"no","si") -> no
D182: 2022 - noviembre | E182: =SUMIF(Tabla4[Año/Mes],Tabla2[[#This Row],[Mes concepto ]],Tabla4[Monto]) -> 0 | F182: 2022-12-06 | G182: =IFERROR(VLOOKUP((F182-1),'Índices Tasa Pasiva BCRA'!C:D,2,FALSE),"-") -> 5349.4276 | H182: =IFERROR(VLOOKUP('Planilla de carga'!$E$14,'Índices Tasa Pasiva BCRA'!C:D,2,FALSE),"-") -> - | I182: 0 | J182: 26 | K182: =IFERROR(DATEDIF(MAX("01/01/2023",Tabla2[[#This Row],[Fecha mora]]),'Planilla de carga'!$E$14,"d"),"-") -> - | L182: =IFERROR((E182*'Planilla de carga'!$E$5*J182)/100,0) -> 0 | M182: =IFERROR((E182*K182*'Planilla de carga'!$E$6)/100,0) -> 0 | N182: 0 | O182: 0 | P182: =IF(Tabla2[[#This Row],[Monto total]]=0,"no","si") -> no
D183: 2022 - diciembre | E183: =SUMIF(Tabla4[Año/Mes],Tabla2[[#This Row],[Mes concepto ]],Tabla4[Monto]) -> 0 | F183: 2023-01-05 | G183: =IFERROR(VLOOKUP((F183-1),'Índices Tasa Pasiva BCRA'!C:D,2,FALSE),"-") -> 5592.4053 | H183: =IFERROR(VLOOKUP('Planilla de carga'!$E$14,'Índices Tasa Pasiva BCRA'!C:D,2,FALSE),"-") -> - | I183: 0 | J183: - | K183: =IFERROR(DATEDIF(MAX("01/01/2023",Tabla2[[#This Row],[Fecha mora]]),'Planilla de carga'!$E$14,"d"),"-") -> - | L183: =IFERROR((E183*'Planilla de carga'!$E$5*J183)/100,0) -> 0 | M183: =IFERROR((E183*K183*'Planilla de carga'!$E$6)/100,0) -> 0 | N183: 0 | O183: 0 | P183: =IF(Tabla2[[#This Row],[Monto total]]=0,"no","si") -> no
D184: 2023 - enero | E184: =SUMIF(Tabla4[Año/Mes],Tabla2[[#This Row],[Mes concepto ]],Tabla4[Monto]) -> 0 | F184: 2023-02-06 | G184: =IFERROR(VLOOKUP((F184-1),'Índices Tasa Pasiva BCRA'!C:D,2,FALSE),"-") -> 5864.2131 | H184: =IFERROR(VLOOKUP('Planilla de carga'!$E$14,'Índices Tasa Pasiva BCRA'!C:D,2,FALSE),"-") -> - | I184: 0 | J184: - | K184: =IFERROR(DATEDIF(MAX("01/01/2023",Tabla2[[#This Row],[Fecha mora]]),'Planilla de carga'!$E$14,"d"),"-") -> - | L184: =IFERROR((E184*'Planilla de carga'!$E$5*J184)/100,0) -> 0 | M184: =IFERROR((E184*K184*'Planilla de carga'!$E$6)/100,0) -> 0 | N184: 0 | O184: 0 | P184: =IF(Tabla2[[#This Row],[Monto total]]=0,"no","si") -> no
D185: 2023 - febrero | E185: =SUMIF(Tabla4[Año/Mes],Tabla2[[#This Row],[Mes concepto ]],Tabla4[Monto]) -> 0 | F185: 2023-03-06 | G185: =IFERROR(VLOOKUP((F185-1),'Índices Tasa Pasiva BCRA'!C:D,2,FALSE),"-") -> 6117.2905 | H185: =IFERROR(VLOOKUP('Planilla de carga'!$E$14,'Índices Tasa Pasiva BCRA'!C:D,2,FALSE),"-") -> - | I185: 0 | J185: - | K185: =IFERROR(DATEDIF(MAX("01/01/2023",Tabla2[[#This Row],[Fecha mora]]),'Planilla de carga'!$E$14,"d"),"-") -> - | L185: =IFERROR((E185*'Planilla de carga'!$E$5*J185)/100,0) -> 0 | M185: =IFERROR((E185*K185*'Planilla de carga'!$E$6)/100,0) -> 0 | N185: 0 | O185: 0 | P185: =IF(Tabla2[[#This Row],[Monto total]]=0,"no","si") -> no
D186: 2023 - marzo | E186: =SUMIF(Tabla4[Año/Mes],Tabla2[[#This Row],[Mes concepto ]],Tabla4[Monto]) -> 0 | F186: 2023-04-06 | G186: =IFERROR(VLOOKUP((F186-1),'Índices Tasa Pasiva BCRA'!C:D,2,FALSE),"-") -> 6420.8728 | H186: =IFERROR(VLOOKUP('Planilla de carga'!$E$14,'Índices Tasa Pasiva BCRA'!C:D,2,FALSE),"-") -> - | I186: 0 | J186: - | K186: =IFERROR(DATEDIF(MAX("01/01/2023",Tabla2[[#This Row],[Fecha mora]]),'Planilla de carga'!$E$14,"d"),"-") -> - | L186: =IFERROR((E186*'Planilla de carga'!$E$5*J186)/100,0) -> 0 | M186: =IFERROR((E186*K186*'Planilla de carga'!$E$6)/100,0) -> 0 | N186: 0 | O186: 0 | P186: =IF(Tabla2[[#This Row],[Monto total]]=0,"no","si") -> no
D187: 2023 - abril | E187: =SUMIF(Tabla4[Año/Mes],Tabla2[[#This Row],[Mes concepto ]],Tabla4[Monto]) -> 0 | F187: 2023-05-05 | G187: =IFERROR(VLOOKUP((F187-1),'Índices Tasa Pasiva BCRA'!C:D,2,FALSE),"-") -> 6735.3617 | H187: =IFERROR(VLOOKUP('Planilla de carga'!$E$14,'Índices Tasa Pasiva BCRA'!C:D,2,FALSE),"-") -> - | I187: 0 | J187: - | K187: =IFERROR(DATEDIF(MAX("01/01/2023",Tabla2[[#This Row],[Fecha mora]]),'Planilla de carga'!$E$14,"d"),"-") -> - | L187: =IFERROR((E187*'Planilla de carga'!$E$5*J187)/100,0) -> 0 | M187: =IFERROR((E187*K187*'Planilla de carga'!$E$6)/100,0) -> 0 | N187: 0 | O187: 0 | P187: =IF(Tabla2[[#This Row],[Monto total]]=0,"no","si") -> no
D188: 2023 - mayo | E188: =SUMIF(Tabla4[Año/Mes],Tabla2[[#This Row],[Mes concepto ]],Tabla4[Monto]) -> 0 | F188: 2023-06-06 | G188: =IFERROR(VLOOKUP((F188-1),'Índices Tasa Pasiva BCRA'!C:D,2,FALSE),"-") -> 7178.7774 | H188: =IFERROR(VLOOKUP('Planilla de carga'!$E$14,'Índices Tasa Pasiva BCRA'!C:D,2,FALSE),"-") -> - | I188: 0 | J188: - | K188: =IFERROR(DATEDIF(MAX("01/01/2023",Tabla2[[#This Row],[Fecha mora]]),'Planilla de carga'!$E$14,"d"),"-") -> - | L188: =IFERROR((E188*'Planilla de carga'!$E$5*J188)/100,0) -> 0 | M188: =IFERROR((E188*K188*'Planilla de carga'!$E$6)/100,0) -> 0 | N188: 0 | O188: 0 | P188: =IF(Tabla2[[#This Row],[Monto total]]=0,"no","si") -> no
D189: 2023 - junio | E189: =SUMIF(Tabla4[Año/Mes],Tabla2[[#This Row],[Mes concepto ]],Tabla4[Monto]) -> 0 | F189: 2023-07-06 | G189: =IFERROR(VLOOKUP((F189-1),'Índices Tasa Pasiva BCRA'!C:D,2,FALSE),"-") -> 7632.2893 | H189: =IFERROR(VLOOKUP('Planilla de carga'!$E$14,'Índices Tasa Pasiva BCRA'!C:D,2,FALSE),"-") -> - | I189: 0 | J189: - | K189: =IFERROR(DATEDIF(MAX("01/01/2023",Tabla2[[#This Row],[Fecha mora]]),'Planilla de carga'!$E$14,"d"),"-") -> - | L189: =IFERROR((E189*'Planilla de carga'!$E$5*J189)/100,0) -> 0 | M189: =IFERROR((E189*K189*'Planilla de carga'!$E$6)/100,0) -> 0 | N189: 0 | O189: 0 | P189: =IF(Tabla2[[#This Row],[Monto total]]=0,"no","si") -> no
D190: 2023 - julio | E190: =SUMIF(Tabla4[Año/Mes],Tabla2[[#This Row],[Mes concepto ]],Tabla4[Monto]) -> 0 | F190: 2023-08-04 | G190: =IFERROR(VLOOKUP((F190-1),'Índices Tasa Pasiva BCRA'!C:D,2,FALSE),"-") -> 8081.3846 | H190: =IFERROR(VLOOKUP('Planilla de carga'!$E$14,'Índices Tasa Pasiva BCRA'!C:D,2,FALSE),"-") -> - | I190: 0 | J190: - | K190: =IFERROR(DATEDIF(MAX("01/01/2023",Tabla2[[#This Row],[Fecha mora]]),'Planilla de carga'!$E$14,"d"),"-") -> - | L190: =IFERROR((E190*'Planilla de carga'!$E$5*J190)/100,0) -> 0 | M190: =IFERROR((E190*K190*'Planilla de carga'!$E$6)/100,0) -> 0 | N190: 0 | O190: 0 | P190: =IF(Tabla2[[#This Row],[Monto total]]=0,"no","si") -> no
D191: 2023 - agosto | E191: =SUMIF(Tabla4[Año/Mes],Tabla2[[#This Row],[Mes concepto ]],Tabla4[Monto]) -> 0 | F191: 2023-09-06 | G191: =IFERROR(VLOOKUP((F191-1),'Índices Tasa Pasiva BCRA'!C:D,2,FALSE),"-") -> 8729.9533 | H191: =IFERROR(VLOOKUP('Planilla de carga'!$E$14,'Índices Tasa Pasiva BCRA'!C:D,2,FALSE),"-") -> - | I191: 0 | J191: - | K191: =IFERROR(DATEDIF(MAX("01/01/2023",Tabla2[[#This Row],[Fecha mora]]),'Planilla de carga'!$E$14,"d"),"-") -> - | L191: =IFERROR((E191*'Planilla de carga'!$E$5*J191)/100,0) -> 0 | M191: =IFERROR((E191*K191*'Planilla de carga'!$E$6)/100,0) -> 0 | N191: 0 | O191: 0 | P191: =IF(Tabla2[[#This Row],[Monto total]]=0,"no","si") -> no
D192: 2023 - septiembre | E192: =SUMIF(Tabla4[Año/Mes],Tabla2[[#This Row],[Mes concepto ]],Tabla4[Monto]) -> 0 | F192: 2023-10-05 | G192: =IFERROR(VLOOKUP((F192-1),'Índices Tasa Pasiva BCRA'!C:D,2,FALSE),"-") -> 9384.6381 | H192: =IFERROR(VLOOKUP('Planilla de carga'!$E$14,'Índices Tasa Pasiva BCRA'!C:D,2,FALSE),"-") -> - | I192: 0 | J192: - | K192: =IFERROR(DATEDIF(MAX("01/01/2023",Tabla2[[#This Row],[Fecha mora]]),'Planilla de carga'!$E$14,"d"),"-") -> - | L192: =IFERROR((E192*'Planilla de carga'!$E$5*J192)/100,0) -> 0 | M192: =IFERROR((E192*K192*'Planilla de carga'!$E$6)/100,0) -> 0 | N192: 0 | O192: 0 | P192: =IF(Tabla2[[#This Row],[Monto total]]=0,"no","si") -> no
D193: 2023 - octubre | E193: =SUMIF(Tabla4[Año/Mes],Tabla2[[#This Row],[Mes concepto ]],Tabla4[Monto]) -> 0 | F193: 2023-11-06 | G193: =IFERROR(VLOOKUP((F193-1),'Índices Tasa Pasiva BCRA'!C:D,2,FALSE),"-") -> 10204.4224 | H193: =IFERROR(VLOOKUP('Planilla de carga'!$E$14,'Índices Tasa Pasiva BCRA'!C:D,2,FALSE),"-") -> - | I193: 0 | J193: - | K193: =IFERROR(DATEDIF(MAX("01/01/2023",Tabla2[[#This Row],[Fecha mora]]),'Planilla de carga'!$E$14,"d"),"-") -> - | L193: =IFERROR((E193*'Planilla de carga'!$E$5*J193)/100,0) -> 0 | M193: =IFERROR((E193*K193*'Planilla de carga'!$E$6)/100,0) -> 0 | N193: 0 | O193: 0 | P193: =IF(Tabla2[[#This Row],[Monto total]]=0,"no","si") -> no
D194: 2023 - noviembre | E194: =SUMIF(Tabla4[Año/Mes],Tabla2[[#This Row],[Mes concepto ]],Tabla4[Monto]) -> 0 | F194: 2023-12-06 | G194: =IFERROR(VLOOKUP((F194-1),'Índices Tasa Pasiva BCRA'!C:D,2,FALSE),"-") -> 11074.855 | H194: =IFERROR(VLOOKUP('Planilla de carga'!$E$14,'Índices Tasa Pasiva BCRA'!C:D,2,FALSE),"-") -> - | I194: 0 | J194: - | K194: =IFERROR(DATEDIF(MAX("01/01/2023",Tabla2[[#This Row],[Fecha mora]]),'Planilla de carga'!$E$14,"d"),"-") -> - | L194: =IFERROR((E194*'Planilla de carga'!$E$5*J194)/100,0) -> 0 | M194: =IFERROR((E194*K194*'Planilla de carga'!$E$6)/100,0) -> 0 | N194: 0 | O194: 0 | P194: =IF(Tabla2[[#This Row],[Monto total]]=0,"no","si") -> no
D195: 2023 - diciembre | E195: =SUMIF(Tabla4[Año/Mes],Tabla2[[#This Row],[Mes concepto ]],Tabla4[Monto]) -> 0 | F195: 2024-01-05 | G195: =IFERROR(VLOOKUP((F195-1),'Índices Tasa Pasiva BCRA'!C:D,2,FALSE),"-") -> 11876.9029 | H195: =IFERROR(VLOOKUP('Planilla de carga'!$E$14,'Índices Tasa Pasiva BCRA'!C:D,2,FALSE),"-") -> - | I195: 0 | J195: - | K195: =IFERROR(DATEDIF(MAX("01/01/2023",Tabla2[[#This Row],[Fecha mora]]),'Planilla de carga'!$E$14,"d"),"-") -> - | L195: =IFERROR((E195*'Planilla de carga'!$E$5*J195)/100,0) -> 0 | M195: =IFERROR((E195*K195*'Planilla de carga'!$E$6)/100,0) -> 0 | N195: 0 | O195: 0 | P195: =IF(Tabla2[[#This Row],[Monto total]]=0,"no","si") -> no
D196: 2024 - enero | E196: =SUMIF(Tabla4[Año/Mes],Tabla2[[#This Row],[Mes concepto ]],Tabla4[Monto]) -> 0 | F196: 2024-02-06 | G196: =IFERROR(VLOOKUP((F196-1),'Índices Tasa Pasiva BCRA'!C:D,2,FALSE),"-") -> 12734.1138 | H196: =IFERROR(VLOOKUP('Planilla de carga'!$E$14,'Índices Tasa Pasiva BCRA'!C:D,2,FALSE),"-") -> - | I196: 0 | J196: - | K196: =IFERROR(DATEDIF(MAX("01/01/2023",Tabla2[[#This Row],[Fecha mora]]),'Planilla de carga'!$E$14,"d"),"-") -> - | L196: =IFERROR((E196*'Planilla de carga'!$E$5*J196)/100,0) -> 0 | M196: =IFERROR((E196*K196*'Planilla de carga'!$E$6)/100,0) -> 0 | N196: 0 | O196: 0 | P196: =IF(Tabla2[[#This Row],[Monto total]]=0,"no","si") -> no
D197: 2024 - febrero | E197: =SUMIF(Tabla4[Año/Mes],Tabla2[[#This Row],[Mes concepto ]],Tabla4[Monto]) -> 0 | F197: 2024-03-06 | G197: =IFERROR(VLOOKUP((F197-1),'Índices Tasa Pasiva BCRA'!C:D,2,FALSE),"-") -> 13570.6754 | H197: =IFERROR(VLOOKUP('Planilla de carga'!$E$14,'Índices Tasa Pasiva BCRA'!C:D,2,FALSE),"-") -> - | I197: 0 | J197: - | K197: =IFERROR(DATEDIF(MAX("01/01/2023",Tabla2[[#This Row],[Fecha mora]]),'Planilla de carga'!$E$14,"d"),"-") -> - | L197: =IFERROR((E197*'Planilla de carga'!$E$5*J197)/100,0) -> 0 | M197: =IFERROR((E197*K197*'Planilla de carga'!$E$6)/100,0) -> 0 | N197: 0 | O197: 0 | P197: =IF(Tabla2[[#This Row],[Monto total]]=0,"no","si") -> no
D198: 2024 - marzo | E198: =SUMIF(Tabla4[Año/Mes],Tabla2[[#This Row],[Mes concepto ]],Tabla4[Monto]) -> 0 | F198: 2024-04-08 | G198: =IFERROR(VLOOKUP((F198-1),'Índices Tasa Pasiva BCRA'!C:D,2,FALSE),"-") -> 14362.208 | H198: =IFERROR(VLOOKUP('Planilla de carga'!$E$14,'Índices Tasa Pasiva BCRA'!C:D,2,FALSE),"-") -> - | I198: 0 | J198: - | K198: =IFERROR(DATEDIF(MAX("01/01/2023",Tabla2[[#This Row],[Fecha mora]]),'Planilla de carga'!$E$14,"d"),"-") -> - | L198: =IFERROR((E198*'Planilla de carga'!$E$5*J198)/100,0) -> 0 | M198: =IFERROR((E198*K198*'Planilla de carga'!$E$6)/100,0) -> 0 | N198: 0 | O198: 0 | P198: =IF(Tabla2[[#This Row],[Monto total]]=0,"no","si") -> no
D199: 2024 - abril | E199: =SUMIF(Tabla4[Año/Mes],Tabla2[[#This Row],[Mes concepto ]],Tabla4[Monto]) -> 0 | F199: 2024-05-07 | G199: =IFERROR(VLOOKUP((F199-1),'Índices Tasa Pasiva BCRA'!C:D,2,FALSE),"-") -> 14911.3416 | H199: =IFERROR(VLOOKUP('Planilla de carga'!$E$14,'Índices Tasa Pasiva BCRA'!C:D,2,FALSE),"-") -> - | I199: 0 | J199: - | K199: =IFERROR(DATEDIF(MAX("01/01/2023",Tabla2[[#This Row],[Fecha mora]]),'Planilla de carga'!$E$14,"d"),"-") -> - | L199: =IFERROR((E199*'Planilla de carga'!$E$5*J199)/100,0) -> 0 | M199: =IFERROR((E199*K199*'Planilla de carga'!$E$6)/100,0) -> 0 | N199: 0 | O199: 0 | P199: =IF(Tabla2[[#This Row],[Monto total]]=0,"no","si") -> no
D200: 2024 - mayo | E200: =SUMIF(Tabla4[Año/Mes],Tabla2[[#This Row],[Mes concepto ]],Tabla4[Monto]) -> 0 | F200: 2024-06-06 | G200: =IFERROR(VLOOKUP((F200-1),'Índices Tasa Pasiva BCRA'!C:D,2,FALSE),"-") -> 15246.3622 | H200: =IFERROR(VLOOKUP('Planilla de carga'!$E$14,'Índices Tasa Pasiva BCRA'!C:D,2,FALSE),"-") -> - | I200: 0 | J200: - | K200: =IFERROR(DATEDIF(MAX("01/01/2023",Tabla2[[#This Row],[Fecha mora]]),'Planilla de carga'!$E$14,"d"),"-") -> - | L200: =IFERROR((E200*'Planilla de carga'!$E$5*J200)/100,0) -> 0 | M200: =IFERROR((E200*K200*'Planilla de carga'!$E$6)/100,0) -> 0 | N200: 0 | O200: 0 | P200: =IF(Tabla2[[#This Row],[Monto total]]=0,"no","si") -> no
D201: 2024 - junio | E201: =SUMIF(Tabla4[Año/Mes],Tabla2[[#This Row],[Mes concepto ]],Tabla4[Monto]) -> 0 | F201: 2024-07-04 | G201: =IFERROR(VLOOKUP((F201-1),'Índices Tasa Pasiva BCRA'!C:D,2,FALSE),"-") -> 15545.5476 | H201: =IFERROR(VLOOKUP('Planilla de carga'!$E$14,'Índices Tasa Pasiva BCRA'!C:D,2,FALSE),"-") -> - | I201: 0 | J201: - | K201: =IFERROR(DATEDIF(MAX("01/01/2023",Tabla2[[#This Row],[Fecha mora]]),'Planilla de carga'!$E$14,"d"),"-") -> - | L201: =IFERROR((E201*'Planilla de carga'!$E$5*J201)/100,0) -> 0 | M201: =IFERROR((E201*K201*'Planilla de carga'!$E$6)/100,0) -> 0 | N201: 0 | O201: 0 | P201: =IF(Tabla2[[#This Row],[Monto total]]=0,"no","si") -> no
D202: 2024 - julio | E202: =SUMIF(Tabla4[Año/Mes],Tabla2[[#This Row],[Mes concepto ]],Tabla4[Monto]) -> 0 | F202: 2024-08-06 | G202: =IFERROR(VLOOKUP((F202-1),'Índices Tasa Pasiva BCRA'!C:D,2,FALSE),"-") -> 15937.1043 | H202: =IFERROR(VLOOKUP('Planilla de carga'!$E$14,'Índices Tasa Pasiva BCRA'!C:D,2,FALSE),"-") -> - | I202: 0 | J202: - | K202: =IFERROR(DATEDIF(MAX("01/01/2023",Tabla2[[#This Row],[Fecha mora]]),'Planilla de carga'!$E$14,"d"),"-") -> - | L202: =IFERROR((E202*'Planilla de carga'!$E$5*J202)/100,0) -> 0 | M202: =IFERROR((E202*K202*'Planilla de carga'!$E$6)/100,0) -> 0 | N202: 0 | O202: 0 | P202: =IF(Tabla2[[#This Row],[Monto total]]=0,"no","si") -> no
D203: 2024 - agosto | E203: =SUMIF(Tabla4[Año/Mes],Tabla2[[#This Row],[Mes concepto ]],Tabla4[Monto]) -> 0 | F203: 2024-09-05 | G203: =IFERROR(VLOOKUP((F203-1),'Índices Tasa Pasiva BCRA'!C:D,2,FALSE),"-") -> 16324.59 | H203: =IFERROR(VLOOKUP('Planilla de carga'!$E$14,'Índices Tasa Pasiva BCRA'!C:D,2,FALSE),"-") -> - | I203: 0 | J203: - | K203: =IFERROR(DATEDIF(MAX("01/01/2023",Tabla2[[#This Row],[Fecha mora]]),'Planilla de carga'!$E$14,"d"),"-") -> - | L203: =IFERROR((E203*'Planilla de carga'!$E$5*J203)/100,0) -> 0 | M203: =IFERROR((E203*K203*'Planilla de carga'!$E$6)/100,0) -> 0 | N203: 0 | O203: 0 | P203: =IF(Tabla2[[#This Row],[Monto total]]=0,"no","si") -> no
D204: 2024 - septiembre | E204: =SUMIF(Tabla4[Año/Mes],Tabla2[[#This Row],[Mes concepto ]],Tabla4[Monto]) -> 0 | F204: 2024-10-04 | G204: =IFERROR(VLOOKUP((F204-1),'Índices Tasa Pasiva BCRA'!C:D,2,FALSE),"-") -> 16715.2054 | H204: =IFERROR(VLOOKUP('Planilla de carga'!$E$14,'Índices Tasa Pasiva BCRA'!C:D,2,FALSE),"-") -> - | I204: 0 | J204: - | K204: =IFERROR(DATEDIF(MAX("01/01/2023",Tabla2[[#This Row],[Fecha mora]]),'Planilla de carga'!$E$14,"d"),"-") -> - | L204: =IFERROR((E204*'Planilla de carga'!$E$5*J204)/100,0) -> 0 | M204: =IFERROR((E204*K204*'Planilla de carga'!$E$6)/100,0) -> 0 | N204: 0 | O204: 0 | P204: =IF(Tabla2[[#This Row],[Monto total]]=0,"no","si") -> no
D205: 2024 - octubre | E205: =SUMIF(Tabla4[Año/Mes],Tabla2[[#This Row],[Mes concepto ]],Tabla4[Monto]) -> 0 | F205: 2024-11-06 | G205: =IFERROR(VLOOKUP((F205-1),'Índices Tasa Pasiva BCRA'!C:D,2,FALSE),"-") -> 17198.2277 | H205: =IFERROR(VLOOKUP('Planilla de carga'!$E$14,'Índices Tasa Pasiva BCRA'!C:D,2,FALSE),"-") -> - | I205: 0 | J205: - | K205: =IFERROR(DATEDIF(MAX("01/01/2023",Tabla2[[#This Row],[Fecha mora]]),'Planilla de carga'!$E$14,"d"),"-") -> - | L205: =IFERROR((E205*'Planilla de carga'!$E$5*J205)/100,0) -> 0 | M205: =IFERROR((E205*K205*'Planilla de carga'!$E$6)/100,0) -> 0 | N205: 0 | O205: 0 | P205: =IF(Tabla2[[#This Row],[Monto total]]=0,"no","si") -> no
D206: 2024 - noviembre | E206: =SUMIF(Tabla4[Año/Mes],Tabla2[[#This Row],[Mes concepto ]],Tabla4[Monto]) -> 0 | F206: 2024-12-05 | G206: =IFERROR(VLOOKUP((F206-1),'Índices Tasa Pasiva BCRA'!C:D,2,FALSE),"-") -> 17596.7264 | H206: =IFERROR(VLOOKUP('Planilla de carga'!$E$14,'Índices Tasa Pasiva BCRA'!C:D,2,FALSE),"-") -> - | I206: 0 | J206: - | K206: =IFERROR(DATEDIF(MAX("01/01/2023",Tabla2[[#This Row],[Fecha mora]]),'Planilla de carga'!$E$14,"d"),"-") -> - | L206: =IFERROR((E206*'Planilla de carga'!$E$5*J206)/100,0) -> 0 | M206: =IFERROR((E206*K206*'Planilla de carga'!$E$6)/100,0) -> 0 | N206: 0 | O206: 0 | P206: =IF(Tabla2[[#This Row],[Monto total]]=0,"no","si") -> no
D207: 2024 - diciembre | E207: =SUMIF(Tabla4[Año/Mes],Tabla2[[#This Row],[Mes concepto ]],Tabla4[Monto]) -> 0 | F207: 2025-01-07 | G207: =IFERROR(VLOOKUP((F207-1),'Índices Tasa Pasiva BCRA'!C:D,2,FALSE),"-") -> 17998.1714 | H207: =IFERROR(VLOOKUP('Planilla de carga'!$E$14,'Índices Tasa Pasiva BCRA'!C:D,2,FALSE),"-") -> - | I207: 0 | J207: - | K207: =IFERROR(DATEDIF(MAX("01/01/2023",Tabla2[[#This Row],[Fecha mora]]),'Planilla de carga'!$E$14,"d"),"-") -> - | L207: =IFERROR((E207*'Planilla de carga'!$E$5*J207)/100,0) -> 0 | M207: =IFERROR((E207*K207*'Planilla de carga'!$E$6)/100,0) -> 0 | N207: 0 | O207: 0 | P207: =IF(Tabla2[[#This Row],[Monto total]]=0,"no","si") -> no
... 12 more rows

Sheet Índices Tasa Pasiva BCRA
C2: Fecha | D2: indice
C3: 2000-01-11 | D3: 107.9119
C4: 2000-01-12 | D4: 107.9465
C5: 2000-01-13 | D5: 107.9797
C6: 2000-01-14 | D6: 108.0143
C7: 2000-01-15 | D7: 108.0537
C8: 2000-01-16 | D8: 108.0931
C9: 2000-01-17 | D9: 108.1325
C10: 2000-01-18 | D10: 108.1706
C11: 2000-01-19 | D11: 108.208
C12: 2000-01-20 | D12: 108.244
C13: 2000-01-21 | D13: 108.2793
C14: 2000-01-22 | D14: 108.3146
C15: 2000-01-23 | D15: 108.3499
C16: 2000-01-24 | D16: 108.3852
C17: 2000-01-25 | D17: 108.4212
C18: 2000-01-26 | D18: 108.4552
C19: 2000-01-27 | D19: 108.4912
C20: 2000-01-28 | D20: 108.5279
C21: 2000-01-29 | D21: 108.5626
C22: 2000-01-30 | D22: 108.5973
C23: 2000-01-31 | D23: 108.632
C24: 2000-02-01 | D24: 108.6708
C25: 2000-02-02 | D25: 108.7076
C26: 2000-02-03 | D26: 108.7437
C27: 2000-02-04 | D27: 108.7812
C28: 2000-02-05 | D28: 108.8194
C29: 2000-02-06 | D29: 108.8576
C30: 2000-02-07 | D30: 108.8958
C31: 2000-02-08 | D31: 108.934
C32: 2000-02-09 | D32: 108.9722
C33: 2000-02-10 | D33: 109.0083
C34: 2000-02-11 | D34: 109.0465
C35: 2000-02-12 | D35: 109.082
C36: 2000-02-13 | D36: 109.1175
C37: 2000-02-14 | D37: 109.153
C38: 2000-02-15 | D38: 109.1919
C39: 2000-02-16 | D39: 109.2295
C40: 2000-02-17 | D40: 109.2664
C41: 2000-02-18 | D41: 109.304
C42: 2000-02-19 | D42: 109.3437
C43: 2000-02-20 | D43: 109.3834
C44: 2000-02-21 | D44: 109.4231
C45: 2000-02-22 | D45: 109.4614
C46: 2000-02-23 | D46: 109.4997
C47: 2000-02-24 | D47: 109.5373
C48: 2000-02-25 | D48: 109.5784
C49: 2000-02-26 | D49: 109.6174
C50: 2000-02-27 | D50: 109.6564
C51: 2000-02-28 | D51: 109.6954
C52: 2000-02-29 | D52: 109.7317
C53: 2000-03-01 | D53: 109.7721
C54: 2000-03-02 | D54: 109.8077
C55: 2000-03-03 | D55: 109.8433
C56: 2000-03-04 | D56: 109.8789
C57: 2000-03-05 | D57: 109.9145
C58: 2000-03-06 | D58: 109.9501
C59: 2000-03-07 | D59: 109.985
C60: 2000-03-08 | D60: 110.0227
C61: 2000-03-09 | D61: 110.059
C62: 2000-03-10 | D62: 110.0946
C63: 2000-03-11 | D63: 110.1281
C64: 2000-03-12 | D64: 110.1616
C65: 2000-03-13 | D65: 110.1951
C66: 2000-03-14 | D66: 110.2307
C67: 2000-03-15 | D67: 110.267
C68: 2000-03-16 | D68: 110.302
C69: 2000-03-17 | D69: 110.3377
C70: 2000-03-18 | D70: 110.3748
C71: 2000-03-19 | D71: 110.4119
C72: 2000-03-20 | D72: 110.449
C73: 2000-03-21 | D73: 110.4854
C74: 2000-03-22 | D74: 110.5211
C75: 2000-03-23 | D75: 110.554
C76: 2000-03-24 | D76: 110.5925
C77: 2000-03-25 | D77: 110.624
C78: 2000-03-26 | D78: 110.6555
C79: 2000-03-27 | D79: 110.687
C80: 2000-03-28 | D80: 110.7199
C81: 2000-03-29 | D81: 110.7521
C82: 2000-03-30 | D82: 110.7843
C83: 2000-03-31 | D83: 110.8186
C84: 2000-04-01 | D84: 110.8571
C85: 2000-04-02 | D85: 110.8957
C86: 2000-04-03 | D86: 110.9343
C87: 2000-04-04 | D87: 110.9694
C88: 2000-04-05 | D88: 111.0024
C89: 2000-04-06 | D89: 111.0354
C90: 2000-04-07 | D90: 111.0705
C91: 2000-04-08 | D91: 111.1014
C92: 2000-04-09 | D92: 111.1323
C93: 2000-04-10 | D93: 111.1632
C94: 2000-04-11 | D94: 111.199
C95: 2000-04-12 | D95: 111.2355
C96: 2000-04-13 | D96: 111.2671
C97: 2000-04-14 | D97: 111.3008
C98: 2000-04-15 | D98: 111.3331
C99: 2000-04-16 | D99: 111.3654
C100: 2000-04-17 | D100: 111.3977
C101: 2000-04-18 | D101: 111.4343
C102: 2000-04-19 | D102: 111.4751
C103: 2000-04-20 | D103: 111.5103
C104: 2000-04-21 | D104: 111.5455
C105: 2000-04-22 | D105: 111.5807
C106: 2000-04-23 | D106: 111.6159
C107: 2000-04-24 | D107: 111.6511
C108: 2000-04-25 | D108: 111.6905
C109: 2000-04-26 | D109: 111.7271
C110: 2000-04-27 | D110: 111.7623
C111: 2000-04-28 | D111: 111.7982
C112: 2000-04-29 | D112: 111.8355
C113: 2000-04-30 | D113: 111.8728
C114: 2000-05-01 | D114: 111.9101
C115: 2000-05-02 | D115: 111.9474
C116: 2000-05-03 | D116: 111.9876
C117: 2000-05-04 | D117: 112.025
C118: 2000-05-05 | D118: 112.0631
C119: 2000-05-06 | D119: 112.0948
C120: 2000-05-07 | D120: 112.1265
C121: 2000-05-08 | D121: 112.1582
C122: 2000-05-09 | D122: 112.197
C123: 2000-05-10 | D123: 112.2337
C124: 2000-05-11 | D124: 112.2669
C125: 2000-05-12 | D125: 112.3113
C126: 2000-05-13 | D126: 112.3445
C127: 2000-05-14 | D127: 112.3777
C128: 2000-05-15 | D128: 112.4109
C129: 2000-05-16 | D129: 112.4547
C130: 2000-05-17 | D130: 112.4964
C131: 2000-05-18 | D131: 112.5353
C132: 2000-05-19 | D132: 112.5728
C133: 2000-05-20 | D133: 112.6145
C134: 2000-05-21 | D134: 112.6562
C135: 2000-05-22 | D135: 112.6979
C136: 2000-05-23 | D136: 112.7396
C137: 2000-05-24 | D137: 112.7785
C138: 2000-05-25 | D138: 112.8146
C139: 2000-05-26 | D139: 112.8507
C140: 2000-05-27 | D140: 112.8903
C141: 2000-05-28 | D141: 112.9299
C142: 2000-05-29 | D142: 112.9695
C143: 2000-05-30 | D143: 113.0099
C144: 2000-05-31 | D144: 113.0531
C145: 2000-06-01 | D145: 113.0913
C146: 2000-06-02 | D146: 113.131
C147: 2000-06-03 | D147: 113.1707
C148: 2000-06-04 | D148: 113.2104
C149: 2000-06-05 | D149: 113.2501
C150: 2000-06-06 | D150: 113.2898
C151: 2000-06-07 | D151: 113.3302
C152: 2000-06-08 | D152: 113.3657
C153: 2000-06-09 | D153: 113.4019
C154: 2000-06-10 | D154: 113.4374
C155: 2000-06-11 | D155: 113.4729
C156: 2000-06-12 | D156: 113.5084
C157: 2000-06-13 | D157: 113.5389
C158: 2000-06-14 | D158: 113.5772
C159: 2000-06-15 | D159: 113.6099
C160: 2000-06-16 | D160: 113.644
C161: 2000-06-17 | D161: 113.6788
C162: 2000-06-18 | D162: 113.7136
C163: 2000-06-19 | D163: 113.7484
C164: 2000-06-20 | D164: 113.7832
C165: 2000-06-21 | D165: 113.8237
C166: 2000-06-22 | D166: 113.8628
C167: 2000-06-23 | D167: 113.8998
C168: 2000-06-24 | D168: 113.9339
C169: 2000-06-25 | D169: 113.9681
C170: 2000-06-26 | D170: 114.0023
C171: 2000-06-27 | D171: 114.0436
C172: 2000-06-28 | D172: 114.0842
C173: 2000-06-29 | D173: 114.1212
C174: 2000-06-30 | D174: 114.1596
C175: 2000-07-01 | D175: 114.1973
C176: 2000-07-02 | D176: 114.235
C177: 2000-07-03 | D177: 114.2728
C178: 2000-07-04 | D178: 114.3106
C179: 2000-07-05 | D179: 114.3491
C180: 2000-07-06 | D180: 114.3826
C181: 2000-07-07 | D181: 114.4182
C182: 2000-07-08 | D182: 114.451
C183: 2000-07-09 | D183: 114.4838
C184: 2000-07-10 | D184: 114.5166
C185: 2000-07-11 | D185: 114.5516
C186: 2000-07-12 | D186: 114.5866
C187: 2000-07-13 | D187: 114.6223
C188: 2000-07-14 | D188: 114.658
C189: 2000-07-15 | D189: 114.6908
C190: 2000-07-16 | D190: 114.7236
C191: 2000-07-17 | D191: 114.7565
C192: 2000-07-18 | D192: 114.7936
C193: 2000-07-19 | D193: 114.83
C194: 2000-07-20 | D194: 114.8664
C195: 2000-07-21 | D195: 114.8986
C196: 2000-07-22 | D196: 114.9372
C197: 2000-07-23 | D197: 114.9758
C198: 2000-07-24 | D198: 115.0144
C199: 2000-07-25 | D199: 115.0487
C200: 2000-07-26 | D200: 115.0852
C201: 2000-07-27 | D201: 115.121
... 9141 more rows

Sheet Meses de imputación (hidden)
B2: Año | C2: Mes | D2: Fórmula
B3: 2025 | C3: diciembre | D3: =CONCATENATE(Tabla14[[#This Row],[Año]]," - ",Tabla14[[#This Row],[Mes]]) -> 2025 - diciembre
B4: 2025 | C4: noviembre | D4: =CONCATENATE(Tabla14[[#This Row],[Año]]," - ",Tabla14[[#This Row],[Mes]]) -> 2025 - noviembre
B5: 2025 | C5: octubre | D5: =CONCATENATE(Tabla14[[#This Row],[Año]]," - ",Tabla14[[#This Row],[Mes]]) -> 2025 - octubre
B6: 2025 | C6: septiembre | D6: =CONCATENATE(Tabla14[[#This Row],[Año]]," - ",Tabla14[[#This Row],[Mes]]) -> 2025 - septiembre
B7: 2025 | C7: agosto | D7: =CONCATENATE(Tabla14[[#This Row],[Año]]," - ",Tabla14[[#This Row],[Mes]]) -> 2025 - agosto
B8: 2025 | C8: julio | D8: =CONCATENATE(Tabla14[[#This Row],[Año]]," - ",Tabla14[[#This Row],[Mes]]) -> 2025 - julio
B9: 2025 | C9: junio | D9: =CONCATENATE(Tabla14[[#This Row],[Año]]," - ",Tabla14[[#This Row],[Mes]]) -> 2025 - junio
B10: 2025 | C10: mayo | D10: =CONCATENATE(Tabla14[[#This Row],[Año]]," - ",Tabla14[[#This Row],[Mes]]) -> 2025 - mayo
B11: 2025 | C11: abril | D11: =CONCATENATE(Tabla14[[#This Row],[Año]]," - ",Tabla14[[#This Row],[Mes]]) -> 2025 - abril
B12: 2025 | C12: marzo | D12: =CONCATENATE(Tabla14[[#This Row],[Año]]," - ",Tabla14[[#This Row],[Mes]]) -> 2025 - marzo
B13: 2025 | C13: febrero | D13: =CONCATENATE(Tabla14[[#This Row],[Año]]," - ",Tabla14[[#This Row],[Mes]]) -> 2025 - febrero
B14: 2025 | C14: enero | D14: =CONCATENATE(Tabla14[[#This Row],[Año]]," - ",Tabla14[[#This Row],[Mes]]) -> 2025 - enero
B15: 2024 | C15: diciembre | D15: =CONCATENATE(Tabla14[[#This Row],[Año]]," - ",Tabla14[[#This Row],[Mes]]) -> 2024 - diciembre
B16: 2024 | C16: noviembre | D16: =CONCATENATE(Tabla14[[#This Row],[Año]]," - ",Tabla14[[#This Row],[Mes]]) -> 2024 - noviembre
B17: 2024 | C17: octubre | D17: =CONCATENATE(Tabla14[[#This Row],[Año]]," - ",Tabla14[[#This Row],[Mes]]) -> 2024 - octubre
B18: 2024 | C18: septiembre | D18: =CONCATENATE(Tabla14[[#This Row],[Año]]," - ",Tabla14[[#This Row],[Mes]]) -> 2024 - septiembre
B19: 2024 | C19: agosto | D19: =CONCATENATE(Tabla14[[#This Row],[Año]]," - ",Tabla14[[#This Row],[Mes]]) -> 2024 - agosto
B20: 2024 | C20: julio | D20: =CONCATENATE(Tabla14[[#This Row],[Año]]," - ",Tabla14[[#This Row],[Mes]]) -> 2024 - julio
B21: 2024 | C21: junio | D21: =CONCATENATE(Tabla14[[#This Row],[Año]]," - ",Tabla14[[#This Row],[Mes]]) -> 2024 - junio
B22: 2024 | C22: mayo | D22: =CONCATENATE(Tabla14[[#This Row],[Año]]," - ",Tabla14[[#This Row],[Mes]]) -> 2024 - mayo
B23: 2024 | C23: abril | D23: =CONCATENATE(Tabla14[[#This Row],[Año]]," - ",Tabla14[[#This Row],[Mes]]) -> 2024 - abril
B24: 2024 | C24: marzo | D24: =CONCATENATE(Tabla14[[#This Row],[Año]]," - ",Tabla14[[#This Row],[Mes]]) -> 2024 - marzo
B25: 2024 | C25: febrero | D25: =CONCATENATE(Tabla14[[#This Row],[Año]]," - ",Tabla14[[#This Row],[Mes]]) -> 2024 - febrero
B26: 2024 | C26: enero | D26: =CONCATENATE(Tabla14[[#This Row],[Año]]," - ",Tabla14[[#This Row],[Mes]]) -> 2024 - enero
B27: 2023 | C27: diciembre | D27: =CONCATENATE(Tabla14[[#This Row],[Año]]," - ",Tabla14[[#This Row],[Mes]]) -> 2023 - diciembre
B28: 2023 | C28: noviembre | D28: =CONCATENATE(Tabla14[[#This Row],[Año]]," - ",Tabla14[[#This Row],[Mes]]) -> 2023 - noviembre
B29: 2023 | C29: octubre | D29: =CONCATENATE(Tabla14[[#This Row],[Año]]," - ",Tabla14[[#This Row],[Mes]]) -> 2023 - octubre
B30: 2023 | C30: septiembre | D30: =CONCATENATE(Tabla14[[#This Row],[Año]]," - ",Tabla14[[#This Row],[Mes]]) -> 2023 - septiembre
B31: 2023 | C31: agosto | D31: =CONCATENATE(Tabla14[[#This Row],[Año]]," - ",Tabla14[[#This Row],[Mes]]) -> 2023 - agosto
B32: 2023 | C32: julio | D32: =CONCATENATE(Tabla14[[#This Row],[Año]]," - ",Tabla14[[#This Row],[Mes]]) -> 2023 - julio
B33: 2023 | C33: junio | D33: =CONCATENATE(Tabla14[[#This Row],[Año]]," - ",Tabla14[[#This Row],[Mes]]) -> 2023 - junio
B34: 2023 | C34: mayo | D34: =CONCATENATE(Tabla14[[#This Row],[Año]]," - ",Tabla14[[#This Row],[Mes]]) -> 2023 - mayo
B35: 2023 | C35: abril | D35: =CONCATENATE(Tabla14[[#This Row],[Año]]," - ",Tabla14[[#This Row],[Mes]]) -> 2023 - abril
B36: 2023 | C36: marzo | D36: =CONCATENATE(Tabla14[[#This Row],[Año]]," - ",Tabla14[[#This Row],[Mes]]) -> 2023 - marzo
B37: 2023 | C37: febrero | D37: =CONCATENATE(Tabla14[[#This Row],[Año]]," - ",Tabla14[[#This Row],[Mes]]) -> 2023 - febrero
B38: 2023 | C38: enero | D38: =CONCATENATE(Tabla14[[#This Row],[Año]]," - ",Tabla14[[#This Row],[Mes]]) -> 2023 - enero
B39: 2022 | C39: diciembre | D39: =CONCATENATE(Tabla14[[#This Row],[Año]]," - ",Tabla14[[#This Row],[Mes]]) -> 2022 - diciembre
B40: 2022 | C40: noviembre | D40: =CONCATENATE(Tabla14[[#This Row],[Año]]," - ",Tabla14[[#This Row],[Mes]]) -> 2022 - noviembre
B41: 2022 | C41: octubre | D41: =CONCATENATE(Tabla14[[#This Row],[Año]]," - ",Tabla14[[#This Row],[Mes]]) -> 2022 - octubre
B42: 2022 | C42: septiembre | D42: =CONCATENATE(Tabla14[[#This Row],[Año]]," - ",Tabla14[[#This Row],[Mes]]) -> 2022 - septiembre
B43: 2022 | C43: agosto | D43: =CONCATENATE(Tabla14[[#This Row],[Año]]," - ",Tabla14[[#This Row],[Mes]]) -> 2022 - agosto
B44: 2022 | C44: julio | D44: =CONCATENATE(Tabla14[[#This Row],[Año]]," - ",Tabla14[[#This Row],[Mes]]) -> 2022 - julio
B45: 2022 | C45: junio | D45: =CONCATENATE(Tabla14[[#This Row],[Año]]," - ",Tabla14[[#This Row],[Mes]]) -> 2022 - junio
B46: 2022 | C46: mayo | D46: =CONCATENATE(Tabla14[[#This Row],[Año]]," - ",Tabla14[[#This Row],[Mes]]) -> 2022 - mayo
B47: 2022 | C47: abril | D47: =CONCATENATE(Tabla14[[#This Row],[Año]]," - ",Tabla14[[#This Row],[Mes]]) -> 2022 - abril
B48: 2022 | C48: marzo | D48: =CONCATENATE(Tabla14[[#This Row],[Año]]," - ",Tabla14[[#This Row],[Mes]]) -> 2022 - marzo
B49: 2022 | C49: febrero | D49: =CONCATENATE(Tabla14[[#This Row],[Año]]," - ",Tabla14[[#This Row],[Mes]]) -> 2022 - febrero
B50: 2022 | C50: enero | D50: =CONCATENATE(Tabla14[[#This Row],[Año]]," - ",Tabla14[[#This Row],[Mes]]) -> 2022 - enero
B51: 2021 | C51: diciembre | D51: =CONCATENATE(Tabla14[[#This Row],[Año]]," - ",Tabla14[[#This Row],[Mes]]) -> 2021 - diciembre
B52: 2021 | C52: noviembre | D52: =CONCATENATE(Tabla14[[#This Row],[Año]]," - ",Tabla14[[#This Row],[Mes]]) -> 2021 - noviembre
B53: 2021 | C53: octubre | D53: =CONCATENATE(Tabla14[[#This Row],[Año]]," - ",Tabla14[[#This Row],[Mes]]) -> 2021 - octubre
B54: 2021 | C54: septiembre | D54: =CONCATENATE(Tabla14[[#This Row],[Año]]," - ",Tabla14[[#This Row],[Mes]]) -> 2021 - septiembre
B55: 2021 | C55: agosto | D55: =CONCATENATE(Tabla14[[#This Row],[Año]]," - ",Tabla14[[#This Row],[Mes]]) -> 2021 - agosto
B56: 2021 | C56: julio | D56: =CONCATENATE(Tabla14[[#This Row],[Año]]," - ",Tabla14[[#This Row],[Mes]]) -> 2021 - julio
B57: 2021 | C57: junio | D57: =CONCATENATE(Tabla14[[#This Row],[Año]]," - ",Tabla14[[#This Row],[Mes]]) -> 2021 - junio
B58: 2021 | C58: mayo | D58: =CONCATENATE(Tabla14[[#This Row],[Año]]," - ",Tabla14[[#This Row],[Mes]]) -> 2021 - mayo
B59: 2021 | C59: abril | D59: =CONCATENATE(Tabla14[[#This Row],[Año]]," - ",Tabla14[[#This Row],[Mes]]) -> 2021 - abril
B60: 2021 | C60: marzo | D60: =CONCATENATE(Tabla14[[#This Row],[Año]]," - ",Tabla14[[#This Row],[Mes]]) -> 2021 - marzo
B61: 2021 | C61: febrero | D61: =CONCATENATE(Tabla14[[#This Row],[Año]]," - ",Tabla14[[#This Row],[Mes]]) -> 2021 - febrero
B62: 2021 | C62: enero | D62: =CONCATENATE(Tabla14[[#This Row],[Año]]," - ",Tabla14[[#This Row],[Mes]]) -> 2021 - enero
B63: 2020 | C63: diciembre | D63: =CONCATENATE(Tabla14[[#This Row],[Año]]," - ",Tabla14[[#This Row],[Mes]]) -> 2020 - diciembre
B64: 2020 | C64: noviembre | D64: =CONCATENATE(Tabla14[[#This Row],[Año]]," - ",Tabla14[[#This Row],[Mes]]) -> 2020 - noviembre
B65: 2020 | C65: octubre | D65: =CONCATENATE(Tabla14[[#This Row],[Año]]," - ",Tabla14[[#This Row],[Mes]]) -> 2020 - octubre
B66: 2020 | C66: septiembre | D66: =CONCATENATE(Tabla14[[#This Row],[Año]]," - ",Tabla14[[#This Row],[Mes]]) -> 2020 - septiembre
B67: 2020 | C67: agosto | D67: =CONCATENATE(Tabla14[[#This Row],[Año]]," - ",Tabla14[[#This Row],[Mes]]) -> 2020 - agosto
B68: 2020 | C68: julio | D68: =CONCATENATE(Tabla14[[#This Row],[Año]]," - ",Tabla14[[#This Row],[Mes]]) -> 2020 - julio
B69: 2020 | C69: junio | D69: =CONCATENATE(Tabla14[[#This Row],[Año]]," - ",Tabla14[[#This Row],[Mes]]) -> 2020 - junio
B70: 2020 | C70: mayo | D70: =CONCATENATE(Tabla14[[#This Row],[Año]]," - ",Tabla14[[#This Row],[Mes]]) -> 2020 - mayo
B71: 2020 | C71: abril | D71: =CONCATENATE(Tabla14[[#This Row],[Año]]," - ",Tabla14[[#This Row],[Mes]]) -> 2020 - abril
B72: 2020 | C72: marzo | D72: =CONCATENATE(Tabla14[[#This Row],[Año]]," - ",Tabla14[[#This Row],[Mes]]) -> 2020 - marzo
B73: 2020 | C73: febrero | D73: =CONCATENATE(Tabla14[[#This Row],[Año]]," - ",Tabla14[[#This Row],[Mes]]) -> 2020 - febrero
B74: 2020 | C74: enero | D74: =CONCATENATE(Tabla14[[#This Row],[Año]]," - ",Tabla14[[#This Row],[Mes]]) -> 2020 - enero
B75: 2019 | C75: diciembre | D75: =CONCATENATE(Tabla14[[#This Row],[Año]]," - ",Tabla14[[#This Row],[Mes]]) -> 2019 - diciembre
B76: 2019 | C76: noviembre | D76: =CONCATENATE(Tabla14[[#This Row],[Año]]," - ",Tabla14[[#This Row],[Mes]]) -> 2019 - noviembre
B77: 2019 | C77: octubre | D77: =CONCATENATE(Tabla14[[#This Row],[Año]]," - ",Tabla14[[#This Row],[Mes]]) -> 2019 - octubre
B78: 2019 | C78: septiembre | D78: =CONCATENATE(Tabla14[[#This Row],[Año]]," - ",Tabla14[[#This Row],[Mes]]) -> 2019 - septiembre
B79: 2019 | C79: agosto | D79: =CONCATENATE(Tabla14[[#This Row],[Año]]," - ",Tabla14[[#This Row],[Mes]]) -> 2019 - agosto
B80: 2019 | C80: julio | D80: =CONCATENATE(Tabla14[[#This Row],[Año]]," - ",Tabla14[[#This Row],[Mes]]) -> 2019 - julio
B81: 2019 | C81: junio | D81: =CONCATENATE(Tabla14[[#This Row],[Año]]," - ",Tabla14[[#This Row],[Mes]]) -> 2019 - junio
B82: 2019 | C82: mayo | D82: =CONCATENATE(Tabla14[[#This Row],[Año]]," - ",Tabla14[[#This Row],[Mes]]) -> 2019 - mayo
B83: 2019 | C83: abril | D83: =CONCATENATE(Tabla14[[#This Row],[Año]]," - ",Tabla14[[#This Row],[Mes]]) -> 2019 - abril
B84: 2019 | C84: marzo | D84: =CONCATENATE(Tabla14[[#This Row],[Año]]," - ",Tabla14[[#This Row],[Mes]]) -> 2019 - marzo
B85: 2019 | C85: febrero | D85: =CONCATENATE(Tabla14[[#This Row],[Año]]," - ",Tabla14[[#This Row],[Mes]]) -> 2019 - febrero
B86: 2019 | C86: enero | D86: =CONCATENATE(Tabla14[[#This Row],[Año]]," - ",Tabla14[[#This Row],[Mes]]) -> 2019 - enero
B87: 2018 | C87: diciembre | D87: =CONCATENATE(Tabla14[[#This Row],[Año]]," - ",Tabla14[[#This Row],[Mes]]) -> 2018 - diciembre
B88: 2018 | C88: noviembre | D88: =CONCATENATE(Tabla14[[#This Row],[Año]]," - ",Tabla14[[#This Row],[Mes]]) -> 2018 - noviembre
B89: 2018 | C89: octubre | D89: =CONCATENATE(Tabla14[[#This Row],[Año]]," - ",Tabla14[[#This Row],[Mes]]) -> 2018 - octubre
B90: 2018 | C90: septiembre | D90: =CONCATENATE(Tabla14[[#This Row],[Año]]," - ",Tabla14[[#This Row],[Mes]]) -> 2018 - septiembre
B91: 2018 | C91: agosto | D91: =CONCATENATE(Tabla14[[#This Row],[Año]]," - ",Tabla14[[#This Row],[Mes]]) -> 2018 - agosto
B92: 2018 | C92: julio | D92: =CONCATENATE(Tabla14[[#This Row],[Año]]," - ",Tabla14[[#This Row],[Mes]]) -> 2018 - julio
B93: 2018 | C93: junio | D93: =CONCATENATE(Tabla14[[#This Row],[Año]]," - ",Tabla14[[#This Row],[Mes]]) -> 2018 - junio
B94: 2018 | C94: mayo | D94: =CONCATENATE(Tabla14[[#This Row],[Año]]," - ",Tabla14[[#This Row],[Mes]]) -> 2018 - mayo
B95: 2018 | C95: abril | D95: =CONCATENATE(Tabla14[[#This Row],[Año]]," - ",Tabla14[[#This Row],[Mes]]) -> 2018 - abril
B96: 2018 | C96: marzo | D96: =CONCATENATE(Tabla14[[#This Row],[Año]]," - ",Tabla14[[#This Row],[Mes]]) -> 2018 - marzo
B97: 2018 | C97: febrero | D97: =CONCATENATE(Tabla14[[#This Row],[Año]]," - ",Tabla14[[#This Row],[Mes]]) -> 2018 - febrero
B98: 2018 | C98: enero | D98: =CONCATENATE(Tabla14[[#This Row],[Año]]," - ",Tabla14[[#This Row],[Mes]]) -> 2018 - enero
B99: 2017 | C99: diciembre | D99: =CONCATENATE(Tabla14[[#This Row],[Año]]," - ",Tabla14[[#This Row],[Mes]]) -> 2017 - diciembre
B100: 2017 | C100: noviembre | D100: =CONCATENATE(Tabla14[[#This Row],[Año]]," - ",Tabla14[[#This Row],[Mes]]) -> 2017 - noviembre
B101: 2017 | C101: octubre | D101: =CONCATENATE(Tabla14[[#This Row],[Año]]," - ",Tabla14[[#This Row],[Mes]]) -> 2017 - octubre
B102: 2017 | C102: septiembre | D102: =CONCATENATE(Tabla14[[#This Row],[Año]]," - ",Tabla14[[#This Row],[Mes]]) -> 2017 - septiembre
B103: 2017 | C103: agosto | D103: =CONCATENATE(Tabla14[[#This Row],[Año]]," - ",Tabla14[[#This Row],[Mes]]) -> 2017 - agosto
B104: 2017 | C104: julio | D104: =CONCATENATE(Tabla14[[#This Row],[Año]]," - ",Tabla14[[#This Row],[Mes]]) -> 2017 - julio
B105: 2017 | C105: junio | D105: =CONCATENATE(Tabla14[[#This Row],[Año]]," - ",Tabla14[[#This Row],[Mes]]) -> 2017 - junio
B106: 2017 | C106: mayo | D106: =CONCATENATE(Tabla14[[#This Row],[Año]]," - ",Tabla14[[#This Row],[Mes]]) -> 2017 - mayo
B107: 2017 | C107: abril | D107: =CONCATENATE(Tabla14[[#This Row],[Año]]," - ",Tabla14[[#This Row],[Mes]]) -> 2017 - abril
B108: 2017 | C108: marzo | D108: =CONCATENATE(Tabla14[[#This Row],[Año]]," - ",Tabla14[[#This Row],[Mes]]) -> 2017 - marzo
B109: 2017 | C109: febrero | D109: =CONCATENATE(Tabla14[[#This Row],[Año]]," - ",Tabla14[[#This Row],[Mes]]) -> 2017 - febrero
B110: 2017 | C110: enero | D110: =CONCATENATE(Tabla14[[#This Row],[Año]]," - ",Tabla14[[#This Row],[Mes]]) -> 2017 - enero
B111: 2016 | C111: diciembre | D111: =CONCATENATE(Tabla14[[#This Row],[Año]]," - ",Tabla14[[#This Row],[Mes]]) -> 2016 - diciembre
B112: 2016 | C112: noviembre | D112: =CONCATENATE(Tabla14[[#This Row],[Año]]," - ",Tabla14[[#This Row],[Mes]]) -> 2016 - noviembre
B113: 2016 | C113: octubre | D113: =CONCATENATE(Tabla14[[#This Row],[Año]]," - ",Tabla14[[#This Row],[Mes]]) -> 2016 - octubre
B114: 2016 | C114: septiembre | D114: =CONCATENATE(Tabla14[[#This Row],[Año]]," - ",Tabla14[[#This Row],[Mes]]) -> 2016 - septiembre
B115: 2016 | C115: agosto | D115: =CONCATENATE(Tabla14[[#This Row],[Año]]," - ",Tabla14[[#This Row],[Mes]]) -> 2016 - agosto
B116: 2016 | C116: julio | D116: =CONCATENATE(Tabla14[[#This Row],[Año]]," - ",Tabla14[[#This Row],[Mes]]) -> 2016 - julio
B117: 2016 | C117: junio | D117: =CONCATENATE(Tabla14[[#This Row],[Año]]," - ",Tabla14[[#This Row],[Mes]]) -> 2016 - junio
B118: 2016 | C118: mayo | D118: =CONCATENATE(Tabla14[[#This Row],[Año]]," - ",Tabla14[[#This Row],[Mes]]) -> 2016 - mayo
B119: 2016 | C119: abril | D119: =CONCATENATE(Tabla14[[#This Row],[Año]]," - ",Tabla14[[#This Row],[Mes]]) -> 2016 - abril
B120: 2016 | C120: marzo | D120: =CONCATENATE(Tabla14[[#This Row],[Año]]," - ",Tabla14[[#This Row],[Mes]]) -> 2016 - marzo
B121: 2016 | C121: febrero | D121: =CONCATENATE(Tabla14[[#This Row],[Año]]," - ",Tabla14[[#This Row],[Mes]]) -> 2016 - febrero
B122: 2016 | C122: enero | D122: =CONCATENATE(Tabla14[[#This Row],[Año]]," - ",Tabla14[[#This Row],[Mes]]) -> 2016 - enero
B123: 2015 | C123: diciembre | D123: =CONCATENATE(Tabla14[[#This Row],[Año]]," - ",Tabla14[[#This Row],[Mes]]) -> 2015 - diciembre
B124: 2015 | C124: noviembre | D124: =CONCATENATE(Tabla14[[#This Row],[Año]]," - ",Tabla14[[#This Row],[Mes]]) -> 2015 - noviembre
B125: 2015 | C125: octubre | D125: =CONCATENATE(Tabla14[[#This Row],[Año]]," - ",Tabla14[[#This Row],[Mes]]) -> 2015 - octubre
B126: 2015 | C126: septiembre | D126: =CONCATENATE(Tabla14[[#This Row],[Año]]," - ",Tabla14[[#This Row],[Mes]]) -> 2015 - septiembre
B127: 2015 | C127: agosto | D127: =CONCATENATE(Tabla14[[#This Row],[Año]]," - ",Tabla14[[#This Row],[Mes]]) -> 2015 - agosto
B128: 2015 | C128: julio | D128: =CONCATENATE(Tabla14[[#This Row],[Año]]," - ",Tabla14[[#This Row],[Mes]]) -> 2015 - julio
B129: 2015 | C129: junio | D129: =CONCATENATE(Tabla14[[#This Row],[Año]]," - ",Tabla14[[#This Row],[Mes]]) -> 2015 - junio
B130: 2015 | C130: mayo | D130: =CONCATENATE(Tabla14[[#This Row],[Año]]," - ",Tabla14[[#This Row],[Mes]]) -> 2015 - mayo
B131: 2015 | C131: abril | D131: =CONCATENATE(Tabla14[[#This Row],[Año]]," - ",Tabla14[[#This Row],[Mes]]) -> 2015 - abril
B132: 2015 | C132: marzo | D132: =CONCATENATE(Tabla14[[#This Row],[Año]]," - ",Tabla14[[#This Row],[Mes]]) -> 2015 - marzo
B133: 2015 | C133: febrero | D133: =CONCATENATE(Tabla14[[#This Row],[Año]]," - ",Tabla14[[#This Row],[Mes]]) -> 2015 - febrero
B134: 2015 | C134: enero | D134: =CONCATENATE(Tabla14[[#This Row],[Año]]," - ",Tabla14[[#This Row],[Mes]]) -> 2015 - enero
B135: 2014 | C135: diciembre | D135: =CONCATENATE(Tabla14[[#This Row],[Año]]," - ",Tabla14[[#This Row],[Mes]]) -> 2014 - diciembre
B136: 2014 | C136: noviembre | D136: =CONCATENATE(Tabla14[[#This Row],[Año]]," - ",Tabla14[[#This Row],[Mes]]) -> 2014 - noviembre
B137: 2014 | C137: octubre | D137: =CONCATENATE(Tabla14[[#This Row],[Año]]," - ",Tabla14[[#This Row],[Mes]]) -> 2014 - octubre
B138: 2014 | C138: septiembre | D138: =CONCATENATE(Tabla14[[#This Row],[Año]]," - ",Tabla14[[#This Row],[Mes]]) -> 2014 - septiembre
B139: 2014 | C139: agosto | D139: =CONCATENATE(Tabla14[[#This Row],[Año]]," - ",Tabla14[[#This Row],[Mes]]) -> 2014 - agosto
B140: 2014 | C140: julio | D140: =CONCATENATE(Tabla14[[#This Row],[Año]]," - ",Tabla14[[#This Row],[Mes]]) -> 2014 - julio
B141: 2014 | C141: junio | D141: =CONCATENATE(Tabla14[[#This Row],[Año]]," - ",Tabla14[[#This Row],[Mes]]) -> 2014 - junio
B142: 2014 | C142: mayo | D142: =CONCATENATE(Tabla14[[#This Row],[Año]]," - ",Tabla14[[#This Row],[Mes]]) -> 2014 - mayo
B143: 2014 | C143: abril | D143: =CONCATENATE(Tabla14[[#This Row],[Año]]," - ",Tabla14[[#This Row],[Mes]]) -> 2014 - abril
B144: 2014 | C144: marzo | D144: =CONCATENATE(Tabla14[[#This Row],[Año]]," - ",Tabla14[[#This Row],[Mes]]) -> 2014 - marzo
B145: 2014 | C145: febrero | D145: =CONCATENATE(Tabla14[[#This Row],[Año]]," - ",Tabla14[[#This Row],[Mes]]) -> 2014 - febrero
B146: 2014 | C146: enero | D146: =CONCATENATE(Tabla14[[#This Row],[Año]]," - ",Tabla14[[#This Row],[Mes]]) -> 2014 - enero
B147: 2013 | C147: diciembre | D147: =CONCATENATE(Tabla14[[#This Row],[Año]]," - ",Tabla14[[#This Row],[Mes]]) -> 2013 - diciembre
B148: 2013 | C148: noviembre | D148: =CONCATENATE(Tabla14[[#This Row],[Año]]," - ",Tabla14[[#This Row],[Mes]]) -> 2013 - noviembre
B149: 2013 | C149: octubre | D149: =CONCATENATE(Tabla14[[#This Row],[Año]]," - ",Tabla14[[#This Row],[Mes]]) -> 2013 - octubre
B150: 2013 | C150: septiembre | D150: =CONCATENATE(Tabla14[[#This Row],[Año]]," - ",Tabla14[[#This Row],[Mes]]) -> 2013 - septiembre
B151: 2013 | C151: agosto | D151: =CONCATENATE(Tabla14[[#This Row],[Año]]," - ",Tabla14[[#This Row],[Mes]]) -> 2013 - agosto
B152: 2013 | C152: julio | D152: =CONCATENATE(Tabla14[[#This Row],[Año]]," - ",Tabla14[[#This Row],[Mes]]) -> 2013 - julio
B153: 2013 | C153: junio | D153: =CONCATENATE(Tabla14[[#This Row],[Año]]," - ",Tabla14[[#This Row],[Mes]]) -> 2013 - junio
B154: 2013 | C154: mayo | D154: =CONCATENATE(Tabla14[[#This Row],[Año]]," - ",Tabla14[[#This Row],[Mes]]) -> 2013 - mayo
B155: 2013 | C155: abril | D155: =CONCATENATE(Tabla14[[#This Row],[Año]]," - ",Tabla14[[#This Row],[Mes]]) -> 2013 - abril
B156: 2013 | C156: marzo | D156: =CONCATENATE(Tabla14[[#This Row],[Año]]," - ",Tabla14[[#This Row],[Mes]]) -> 2013 - marzo
B157: 2013 | C157: febrero | D157: =CONCATENATE(Tabla14[[#This Row],[Año]]," - ",Tabla14[[#This Row],[Mes]]) -> 2013 - febrero
B158: 2013 | C158: enero | D158: =CONCATENATE(Tabla14[[#This Row],[Año]]," - ",Tabla14[[#This Row],[Mes]]) -> 2013 - enero
B159: 2012 | C159: diciembre | D159: =CONCATENATE(Tabla14[[#This Row],[Año]]," - ",Tabla14[[#This Row],[Mes]]) -> 2012 - diciembre
B160: 2012 | C160: noviembre | D160: =CONCATENATE(Tabla14[[#This Row],[Año]]," - ",Tabla14[[#This Row],[Mes]]) -> 2012 - noviembre
B161: 2012 | C161: octubre | D161: =CONCATENATE(Tabla14[[#This Row],[Año]]," - ",Tabla14[[#This Row],[Mes]]) -> 2012 - octubre
B162: 2012 | C162: septiembre | D162: =CONCATENATE(Tabla14[[#This Row],[Año]]," - ",Tabla14[[#This Row],[Mes]]) -> 2012 - septiembre
B163: 2012 | C163: agosto | D163: =CONCATENATE(Tabla14[[#This Row],[Año]]," - ",Tabla14[[#This Row],[Mes]]) -> 2012 - agosto
B164: 2012 | C164: julio | D164: =CONCATENATE(Tabla14[[#This Row],[Año]]," - ",Tabla14[[#This Row],[Mes]]) -> 2012 - julio
B165: 2012 | C165: junio | D165: =CONCATENATE(Tabla14[[#This Row],[Año]]," - ",Tabla14[[#This Row],[Mes]]) -> 2012 - junio
B166: 2012 | C166: mayo | D166: =CONCATENATE(Tabla14[[#This Row],[Año]]," - ",Tabla14[[#This Row],[Mes]]) -> 2012 - mayo
B167: 2012 | C167: abril | D167: =CONCATENATE(Tabla14[[#This Row],[Año]]," - ",Tabla14[[#This Row],[Mes]]) -> 2012 - abril
B168: 2012 | C168: marzo | D168: =CONCATENATE(Tabla14[[#This Row],[Año]]," - ",Tabla14[[#This Row],[Mes]]) -> 2012 - marzo
B169: 2012 | C169: febrero | D169: =CONCATENATE(Tabla14[[#This Row],[Año]]," - ",Tabla14[[#This Row],[Mes]]) -> 2012 - febrero
B170: 2012 | C170: enero | D170: =CONCATENATE(Tabla14[[#This Row],[Año]]," - ",Tabla14[[#This Row],[Mes]]) -> 2012 - enero
B171: 2011 | C171: diciembre | D171: =CONCATENATE(Tabla14[[#This Row],[Año]]," - ",Tabla14[[#This Row],[Mes]]) -> 2011 - diciembre
B172: 2011 | C172: noviembre | D172: =CONCATENATE(Tabla14[[#This Row],[Año]]," - ",Tabla14[[#This Row],[Mes]]) -> 2011 - noviembre
B173: 2011 | C173: octubre | D173: =CONCATENATE(Tabla14[[#This Row],[Año]]," - ",Tabla14[[#This Row],[Mes]]) -> 2011 - octubre
B174: 2011 | C174: septiembre | D174: =CONCATENATE(Tabla14[[#This Row],[Año]]," - ",Tabla14[[#This Row],[Mes]]) -> 2011 - septiembre
B175: 2011 | C175: agosto | D175: =CONCATENATE(Tabla14[[#This Row],[Año]]," - ",Tabla14[[#This Row],[Mes]]) -> 2011 - agosto
B176: 2011 | C176: julio | D176: =CONCATENATE(Tabla14[[#This Row],[Año]]," - ",Tabla14[[#This Row],[Mes]]) -> 2011 - julio
B177: 2011 | C177: junio | D177: =CONCATENATE(Tabla14[[#This Row],[Año]]," - ",Tabla14[[#This Row],[Mes]]) -> 2011 - junio
B178: 2011 | C178: mayo | D178: =CONCATENATE(Tabla14[[#This Row],[Año]]," - ",Tabla14[[#This Row],[Mes]]) -> 2011 - mayo
B179: 2011 | C179: abril | D179: =CONCATENATE(Tabla14[[#This Row],[Año]]," - ",Tabla14[[#This Row],[Mes]]) -> 2011 - abril
B180: 2011 | C180: marzo | D180: =CONCATENATE(Tabla14[[#This Row],[Año]]," - ",Tabla14[[#This Row],[Mes]]) -> 2011 - marzo
B181: 2011 | C181: febrero | D181: =CONCATENATE(Tabla14[[#This Row],[Año]]," - ",Tabla14[[#This Row],[Mes]]) -> 2011 - febrero
B182: 2011 | C182: enero | D182: =CONCATENATE(Tabla14[[#This Row],[Año]]," - ",Tabla14[[#This Row],[Mes]]) -> 2011 - enero
B183: 2010 | C183: diciembre | D183: =CONCATENATE(Tabla14[[#This Row],[Año]]," - ",Tabla14[[#This Row],[Mes]]) -> 2010 - diciembre
B184: 2010 | C184: noviembre | D184: =CONCATENATE(Tabla14[[#This Row],[Año]]," - ",Tabla14[[#This Row],[Mes]]) -> 2010 - noviembre
B185: 2010 | C185: octubre | D185: =CONCATENATE(Tabla14[[#This Row],[Año]]," - ",Tabla14[[#This Row],[Mes]]) -> 2010 - octubre
B186: 2010 | C186: septiembre | D186: =CONCATENATE(Tabla14[[#This Row],[Año]]," - ",Tabla14[[#This Row],[Mes]]) -> 2010 - septiembre
B187: 2010 | C187: agosto | D187: =CONCATENATE(Tabla14[[#This Row],[Año]]," - ",Tabla14[[#This Row],[Mes]]) -> 2010 - agosto
B188: 2010 | C188: julio | D188: =CONCATENATE(Tabla14[[#This Row],[Año]]," - ",Tabla14[[#This Row],[Mes]]) -> 2010 - julio
B189: 2010 | C189: junio | D189: =CONCATENATE(Tabla14[[#This Row],[Año]]," - ",Tabla14[[#This Row],[Mes]]) -> 2010 - junio
B190: 2010 | C190: mayo | D190: =CONCATENATE(Tabla14[[#This Row],[Año]]," - ",Tabla14[[#This Row],[Mes]]) -> 2010 - mayo
B191: 2010 | C191: abril | D191: =CONCATENATE(Tabla14[[#This Row],[Año]]," - ",Tabla14[[#This Row],[Mes]]) -> 2010 - abril
B192: 2010 | C192: marzo | D192: =CONCATENATE(Tabla14[[#This Row],[Año]]," - ",Tabla14[[#This Row],[Mes]]) -> 2010 - marzo
B193: 2010 | C193: febrero | D193: =CONCATENATE(Tabla14[[#This Row],[Año]]," - ",Tabla14[[#This Row],[Mes]]) -> 2010 - febrero
B194: 2010 | C194: enero | D194: =CONCATENATE(Tabla14[[#This Row],[Año]]," - ",Tabla14[[#This Row],[Mes]]) -> 2010 - enero

Sheet 4to. Hábil (hidden)
F1: Mes de imputación de haberes | G1: Fecha mora (art. 128 LCT) | J1: Fecha distracto | K1: Hábiles Nacionales | L1: 4to día hábil posterior | O1: =Fecha_distracto -> 00:00:00 | Q1: =VLOOKUP(O1,J:L,3,FALSE) -> 
F2: 2010-01-01 | G2: 2010-02-04 | J2: 2010-01-01 | K2: no | L2: =IF(COUNTIF(K3:K6,"si")=4,J2+4,IF(COUNTIF(K3:K7,"si")=4,J2+5,IF(COUNTIF(K3:K8,"si")=4,J2+6,IF(COUNTIF(K3:K9,"si")=4,J2+7,IF(COUNTIF(K3:K10,"si")=4,J2+8,IF(COUNTIF(K3:K11,"si")=4,J2+9,IF(COUNTIF(K3:K12,"si")=4,J2+10,IF(COUNTIF(K3:K13,"si")=4,J2+11,"error")))))))) -> 2010-01-07 | M2: =DATEDIF(J2,L2,"D") -> 6
F3: 2010-02-01 | G3: 2010-03-04 | J3: 2010-01-02 | K3: no | L3: =IF(COUNTIF(K4:K7,"si")=4,J3+4,IF(COUNTIF(K4:K8,"si")=4,J3+5,IF(COUNTIF(K4:K9,"si")=4,J3+6,IF(COUNTIF(K4:K10,"si")=4,J3+7,IF(COUNTIF(K4:K11,"si")=4,J3+8,IF(COUNTIF(K4:K12,"si")=4,J3+9,IF(COUNTIF(K4:K13,"si")=4,J3+10,IF(COUNTIF(K4:K14,"si")=4,J3+11,"error")))))))) -> 2010-01-07 | M3: =DATEDIF(J3,L3,"D") -> 5
F4: 2010-03-01 | G4: 2010-04-07 | J4: 2010-01-03 | K4: no | L4: 2010-01-07 | M4: 4
F5: 2010-04-01 | G5: 2010-05-06 | J5: 2010-01-04 | K5: si | L5: 2010-01-08 | M5: 4
F6: 2010-05-01 | G6: 2010-06-04 | J6: 2010-01-05 | K6: si | L6: 2010-01-11 | M6: 6
F7: 2010-06-01 | G7: 2010-07-06 | J7: 2010-01-06 | K7: si | L7: 2010-01-12 | M7: 6
F8: 2010-07-01 | G8: 2010-08-05 | J8: 2010-01-07 | K8: si | L8: 2010-01-13 | M8: 6
F9: 2010-08-01 | G9: 2010-09-06 | J9: 2010-01-08 | K9: si | L9: 2010-01-14 | M9: 6
F10: 2010-09-01 | G10: 2010-10-06 | J10: 2010-01-09 | K10: no | L10: 2010-01-14 | M10: 5
F11: 2010-10-01 | G11: 2010-11-04 | J11: 2010-01-10 | K11: no | L11: 2010-01-14 | M11: 4
F12: 2010-11-01 | G12: 2010-12-06 | J12: 2010-01-11 | K12: si | L12: 2010-01-15 | M12: 4
F13: 2010-12-01 | G13: 2011-01-06 | J13: 2010-01-12 | K13: si | L13: 2010-01-18 | M13: 6
F14: 2011-01-01 | G14: 2011-02-04 | J14: 2010-01-13 | K14: si | L14: 2010-01-19 | M14: 6
F15: 2011-02-01 | G15: 2011-03-04 | J15: 2010-01-14 | K15: si | L15: 2010-01-20 | M15: 6
F16: 2011-03-01 | G16: 2011-04-06 | J16: 2010-01-15 | K16: si | L16: 2010-01-21 | M16: 6
F17: 2011-04-01 | G17: 2011-05-05 | J17: 2010-01-16 | K17: no | L17: 2010-01-21 | M17: 5
F18: 2011-05-01 | G18: 2011-06-06 | J18: 2010-01-17 | K18: no | L18: 2010-01-21 | M18: 4
F19: 2011-06-01 | G19: 2011-07-06 | J19: 2010-01-18 | K19: si | L19: 2010-01-22 | M19: 4
F20: 2011-07-01 | G20: 2011-08-04 | J20: 2010-01-19 | K20: si | L20: 2010-01-25 | M20: 6
F21: 2011-08-01 | G21: 2011-09-06 | J21: 2010-01-20 | K21: si | L21: 2010-01-26 | M21: 6
F22: 2011-09-01 | G22: 2011-10-06 | J22: 2010-01-21 | K22: si | L22: 2010-01-27 | M22: 6
F23: 2011-10-01 | G23: 2011-11-04 | J23: 2010-01-22 | K23: si | L23: 2010-01-28 | M23: 6
F24: 2011-11-01 | G24: 2011-12-06 | J24: 2010-01-23 | K24: no | L24: 2010-01-28 | M24: 5
F25: 2011-12-01 | G25: 2012-01-05 | J25: 2010-01-24 | K25: no | L25: 2010-01-28 | M25: 4
F26: 2012-01-01 | G26: 2012-02-06 | J26: 2010-01-25 | K26: si | L26: 2010-01-29 | M26: 4
F27: 2012-02-01 | G27: 2012-03-06 | J27: 2010-01-26 | K27: si | L27: 2010-02-01 | M27: 6
F28: 2012-03-01 | G28: 2012-04-09 | J28: 2010-01-27 | K28: si | L28: 2010-02-02 | M28: 6
F29: 2012-04-01 | G29: 2012-05-07 | J29: 2010-01-28 | K29: si | L29: 2010-02-03 | M29: 6
F30: 2012-05-01 | G30: 2012-06-06 | J30: 2010-01-29 | K30: si | L30: 2010-02-04 | M30: 6
F31: 2012-06-01 | G31: 2012-07-05 | J31: 2010-01-30 | K31: no | L31: 2010-02-04 | M31: 5
F32: 2012-07-01 | G32: 2012-08-06 | J32: 2010-01-31 | K32: no | L32: 2010-02-04 | M32: 4
F33: 2012-08-01 | G33: 2012-09-06 | J33: 2010-02-01 | K33: si | L33: 2010-02-05 | M33: 4
F34: 2012-09-01 | G34: 2012-10-04 | J34: 2010-02-02 | K34: si | L34: 2010-02-08 | M34: 6
F35: 2012-10-01 | G35: 2012-11-06 | J35: 2010-02-03 | K35: si | L35: 2010-02-09 | M35: 6
F36: 2012-11-01 | G36: 2012-12-06 | J36: 2010-02-04 | K36: si | L36: 2010-02-10 | M36: 6
F37: 2012-12-01 | G37: 2013-01-07 | J37: 2010-02-05 | K37: si | L37: 2010-02-11 | M37: 6
F38: 2013-01-01 | G38: 2013-02-06 | J38: 2010-02-06 | K38: no | L38: 2010-02-11 | M38: 5
F39: 2013-02-01 | G39: 2013-03-06 | J39: 2010-02-07 | K39: no | L39: 2010-02-11 | M39: 4
F40: 2013-03-01 | G40: 2013-04-08 | J40: 2010-02-08 | K40: si | L40: 2010-02-12 | M40: 4
F41: 2013-04-01 | G41: 2013-05-07 | J41: 2010-02-09 | K41: si | L41: 2010-02-15 | M41: 6
F42: 2013-05-01 | G42: 2013-06-06 | J42: 2010-02-10 | K42: si | L42: 2010-02-16 | M42: 6
F43: 2013-06-01 | G43: 2013-07-04 | J43: 2010-02-11 | K43: si | L43: 2010-02-17 | M43: 6
F44: 2013-07-01 | G44: 2013-08-06 | J44: 2010-02-12 | K44: si | L44: 2010-02-18 | M44: 6
F45: 2013-08-01 | G45: 2013-09-05 | J45: 2010-02-13 | K45: no | L45: 2010-02-18 | M45: 5
F46: 2013-09-01 | G46: 2013-10-04 | J46: 2010-02-14 | K46: no | L46: 2010-02-18 | M46: 4
F47: 2013-10-01 | G47: 2013-11-06 | J47: 2010-02-15 | K47: si | L47: 2010-02-19 | M47: 4
F48: 2013-11-01 | G48: 2013-12-05 | J48: 2010-02-16 | K48: si | L48: 2010-02-22 | M48: 6
F49: 2013-12-01 | G49: 2014-01-07 | J49: 2010-02-17 | K49: si | L49: 2010-02-23 | M49: 6
F50: 2014-01-01 | G50: 2014-02-06 | J50: 2010-02-18 | K50: si | L50: 2010-02-24 | M50: 6
F51: 2014-02-01 | G51: 2014-03-10 | J51: 2010-02-19 | K51: si | L51: 2010-02-25 | M51: 6
F52: 2014-03-01 | G52: 2014-04-07 | J52: 2010-02-20 | K52: no | L52: 2010-02-25 | M52: 5
F53: 2014-04-01 | G53: 2014-05-08 | J53: 2010-02-21 | K53: no | L53: 2010-02-25 | M53: 4
F54: 2014-05-01 | G54: 2014-06-05 | J54: 2010-02-22 | K54: si | L54: 2010-02-26 | M54: 4
F55: 2014-06-01 | G55: 2014-07-04 | J55: 2010-02-23 | K55: si | L55: 2010-03-01 | M55: 6
F56: 2014-07-01 | G56: 2014-08-06 | J56: 2010-02-24 | K56: si | L56: 2010-03-02 | M56: 6
F57: 2014-08-01 | G57: 2014-09-04 | J57: 2010-02-25 | K57: si | L57: 2010-03-03 | M57: 6
F58: 2014-09-01 | G58: 2014-10-06 | J58: 2010-02-26 | K58: si | L58: 2010-03-04 | M58: 6
F59: 2014-10-01 | G59: 2014-11-06 | J59: 2010-02-27 | K59: no | L59: 2010-03-04 | M59: 5
F60: 2014-11-01 | G60: 2014-12-04 | J60: 2010-02-28 | K60: no | L60: 2010-03-04 | M60: 4
F61: 2014-12-01 | G61: 2015-01-07 | J61: 2010-03-01 | K61: si | L61: 2010-03-05 | M61: 4
F62: 2015-01-01 | G62: 2015-02-05 | J62: 2010-03-02 | K62: si | L62: 2010-03-08 | M62: 6
F63: 2015-02-01 | G63: 2015-03-05 | J63: 2010-03-03 | K63: si | L63: 2010-03-09 | M63: 6
F64: 2015-03-01 | G64: 2015-04-08 | J64: 2010-03-04 | K64: si | L64: 2010-03-10 | M64: 6
F65: 2015-04-01 | G65: 2015-05-07 | J65: 2010-03-05 | K65: si | L65: 2010-03-11 | M65: 6
F66: 2015-05-01 | G66: 2015-06-04 | J66: 2010-03-06 | K66: no | L66: 2010-03-11 | M66: 5
F67: 2015-06-01 | G67: 2015-07-06 | J67: 2010-03-07 | K67: no | L67: =IF(COUNTIF(K68:K71,"si")=4,J67+4,IF(COUNTIF(K68:K72,"si")=4,J67+5,IF(COUNTIF(K68:K73,"si")=4,J67+6,IF(COUNTIF(K68:K74,"si")=4,J67+7,IF(COUNTIF(K68:K75,"si")=4,J67+8,IF(COUNTIF(K68:K76,"si")=4,J67+9,IF(COUNTIF(K68:K77,"si")=4,J67+10,IF(COUNTIF(K68:K78,"si")=4,J67+11,"error")))))))) -> 2010-03-11 | M67: =DATEDIF(J67,L67,"D") -> 4
F68: 2015-07-01 | G68: 2015-08-06 | J68: 2010-03-08 | K68: si | L68: 2010-03-12 | M68: 4
F69: 2015-08-01 | G69: 2015-09-04 | J69: 2010-03-09 | K69: si | L69: 2010-03-15 | M69: 6
F70: 2015-09-01 | G70: 2015-10-06 | J70: 2010-03-10 | K70: si | L70: 2010-03-16 | M70: 6
F71: 2015-10-01 | G71: 2015-11-05 | J71: 2010-03-11 | K71: si | L71: 2010-03-17 | M71: 6
F72: 2015-11-01 | G72: 2015-12-04 | J72: 2010-03-12 | K72: si | L72: 2010-03-18 | M72: 6
F73: 2015-12-01 | G73: 2016-01-07 | J73: 2010-03-13 | K73: no | L73: 2010-03-18 | M73: 5
F74: 2016-01-01 | G74: 2016-02-04 | J74: 2010-03-14 | K74: no | L74: 2010-03-18 | M74: 4
F75: 2016-02-01 | G75: 2016-03-04 | J75: 2010-03-15 | K75: si | L75: 2010-03-19 | M75: 4
F76: 2016-03-01 | G76: 2016-04-06 | J76: 2010-03-16 | K76: si | L76: 2010-03-22 | M76: 6
F77: 2016-04-01 | G77: 2016-05-05 | J77: 2010-03-17 | K77: si | L77: 2010-03-23 | M77: 6
F78: 2016-05-01 | G78: 2016-06-06 | J78: 2010-03-18 | K78: si | L78: 2010-03-25 | M78: 7
F79: 2016-06-01 | G79: 2016-07-06 | J79: 2010-03-19 | K79: si | L79: 2010-03-26 | M79: 7
F80: 2016-07-01 | G80: 2016-08-04 | J80: 2010-03-20 | K80: no | L80: 2010-03-26 | M80: 6
F81: 2016-08-01 | G81: 2016-09-06 | J81: 2010-03-21 | K81: no | L81: 2010-03-26 | M81: 5
F82: 2016-09-01 | G82: 2016-10-06 | J82: 2010-03-22 | K82: si | L82: 2010-03-29 | M82: 7
F83: 2016-10-01 | G83: 2016-11-04 | J83: 2010-03-23 | K83: si | L83: 2010-03-30 | M83: 7
F84: 2016-11-01 | G84: 2016-12-06 | J84: 2010-03-24 | K84: no | L84: 2010-03-30 | M84: 6
F85: 2016-12-01 | G85: 2017-01-05 | J85: 2010-03-25 | K85: si | L85: 2010-03-31 | M85: 6
F86: 2017-01-01 | G86: 2017-02-06 | J86: 2010-03-26 | K86: si | L86: 2010-04-01 | M86: 6
F87: 2017-02-01 | G87: 2017-03-06 | J87: 2010-03-27 | K87: no | L87: 2010-04-01 | M87: 5
F88: 2017-03-01 | G88: 2017-04-06 | J88: 2010-03-28 | K88: no | L88: 2010-04-01 | M88: 4
F89: 2017-04-01 | G89: 2017-05-05 | J89: 2010-03-29 | K89: si | L89: 2010-04-05 | M89: 7
F90: 2017-05-01 | G90: 2017-06-06 | J90: 2010-03-30 | K90: si | L90: 2010-04-06 | M90: 7
F91: 2017-06-01 | G91: 2017-07-06 | J91: 2010-03-31 | K91: si | L91: 2010-04-07 | M91: 7
F92: 2017-07-01 | G92: 2017-08-04 | J92: 2010-04-01 | K92: si | L92: 2010-04-08 | M92: 7
F93: 2017-08-01 | G93: 2017-09-06 | J93: 2010-04-02 | K93: no | L93: 2010-04-08 | M93: 6
F94: 2017-09-01 | G94: 2017-10-05 | J94: 2010-04-03 | K94: no | L94: 2010-04-08 | M94: 5
F95: 2017-10-01 | G95: 2017-11-06 | J95: 2010-04-04 | K95: no | L95: 2010-04-08 | M95: 4
F96: 2017-11-01 | G96: 2017-12-06 | J96: 2010-04-05 | K96: si | L96: 2010-04-09 | M96: 4
F97: 2017-12-01 | G97: 2018-01-05 | J97: 2010-04-06 | K97: si | L97: 2010-04-12 | M97: 6
F98: 2018-01-01 | G98: 2018-02-06 | J98: 2010-04-07 | K98: si | L98: 2010-04-13 | M98: 6
F99: 2018-02-01 | G99: 2018-03-06 | J99: 2010-04-08 | K99: si | L99: 2010-04-14 | M99: 6
F100: 2018-03-01 | G100: 2018-04-06 | J100: 2010-04-09 | K100: si | L100: 2010-04-15 | M100: 6
F101: 2018-04-01 | G101: 2018-05-07 | J101: 2010-04-10 | K101: no | L101: 2010-04-15 | M101: 5
F102: 2018-05-01 | G102: 2018-06-06 | J102: 2010-04-11 | K102: no | L102: 2010-04-15 | M102: 4
F103: 2018-06-01 | G103: 2018-07-05 | J103: 2010-04-12 | K103: si | L103: 2010-04-16 | M103: 4
F104: 2018-07-01 | G104: 2018-08-06 | J104: 2010-04-13 | K104: si | L104: 2010-04-19 | M104: 6
F105: 2018-08-01 | G105: 2018-09-06 | J105: 2010-04-14 | K105: si | L105: 2010-04-20 | M105: 6
F106: 2018-09-01 | G106: 2018-10-04 | J106: 2010-04-15 | K106: si | L106: 2010-04-21 | M106: 6
F107: 2018-10-01 | G107: 2018-11-06 | J107: 2010-04-16 | K107: si | L107: 2010-04-22 | M107: 6
F108: 2018-11-01 | G108: 2018-12-06 | J108: 2010-04-17 | K108: no | L108: 2010-04-22 | M108: 5
F109: 2018-12-01 | G109: 2019-01-07 | J109: 2010-04-18 | K109: no | L109: 2010-04-22 | M109: 4
F110: 2019-01-01 | G110: 2019-02-06 | J110: 2010-04-19 | K110: si | L110: 2010-04-23 | M110: 4
F111: 2019-02-01 | G111: 2019-03-08 | J111: 2010-04-20 | K111: si | L111: 2010-04-26 | M111: 6
F112: 2019-03-01 | G112: 2019-04-05 | J112: 2010-04-21 | K112: si | L112: 2010-04-27 | M112: 6
F113: 2019-04-01 | G113: 2019-05-07 | J113: 2010-04-22 | K113: si | L113: 2010-04-28 | M113: 6
F114: 2019-05-01 | G114: 2019-06-06 | J114: 2010-04-23 | K114: si | L114: 2010-04-29 | M114: 6
F115: 2019-06-01 | G115: 2019-07-04 | J115: 2010-04-24 | K115: no | L115: 2010-04-29 | M115: 5
F116: 2019-07-01 | G116: 2019-08-06 | J116: 2010-04-25 | K116: no | L116: 2010-04-29 | M116: 4
F117: 2019-08-01 | G117: 2019-09-05 | J117: 2010-04-26 | K117: si | L117: 2010-04-30 | M117: 4
F118: 2019-09-01 | G118: 2019-10-04 | J118: 2010-04-27 | K118: si | L118: 2010-05-03 | M118: 6
F119: 2019-10-01 | G119: 2019-11-06 | J119: 2010-04-28 | K119: si | L119: 2010-05-04 | M119: 6
F120: 2019-11-01 | G120: 2019-12-05 | J120: 2010-04-29 | K120: si | L120: 2010-05-05 | M120: 6
F121: 2019-12-01 | G121: 2020-01-07 | J121: 2010-04-30 | K121: si | L121: 2010-05-06 | M121: 6
F122: 2020-01-01 | G122: 2020-02-06 | J122: 2010-05-01 | K122: no | L122: 2010-05-06 | M122: 5
F123: 2020-02-01 | G123: 2020-03-05 | J123: 2010-05-02 | K123: no | L123: 2010-05-06 | M123: 4
F124: 2020-03-01 | G124: 2020-04-07 | J124: 2010-05-03 | K124: si | L124: 2010-05-07 | M124: 4
F125: 2020-04-01 | G125: 2020-05-07 | J125: 2010-05-04 | K125: si | L125: 2010-05-10 | M125: 6
F126: 2020-05-01 | G126: 2020-06-04 | J126: 2010-05-05 | K126: si | L126: 2010-05-11 | M126: 6
F127: 2020-06-01 | G127: 2020-07-06 | J127: 2010-05-06 | K127: si | L127: 2010-05-12 | M127: 6
F128: 2020-07-01 | G128: 2020-08-06 | J128: 2010-05-07 | K128: si | L128: 2010-05-13 | M128: 6
F129: 2020-08-01 | G129: 2020-09-04 | J129: 2010-05-08 | K129: no | L129: 2010-05-13 | M129: 5
F130: 2020-09-01 | G130: 2020-10-06 | J130: 2010-05-09 | K130: no | L130: 2010-05-13 | M130: 4
F131: 2020-10-01 | G131: 2020-11-05 | J131: 2010-05-10 | K131: si | L131: =IF(COUNTIF(K132:K135,"si")=4,J131+4,IF(COUNTIF(K132:K136,"si")=4,J131+5,IF(COUNTIF(K132:K137,"si")=4,J131+6,IF(COUNTIF(K132:K138,"si")=4,J131+7,IF(COUNTIF(K132:K139,"si")=4,J131+8,IF(COUNTIF(K132:K140,"si")=4,J131+9,IF(COUNTIF(K132:K141,"si")=4,J131+10,IF(COUNTIF(K132:K142,"si")=4,J131+11,"error")))))))) -> 2010-05-14 | M131: =DATEDIF(J131,L131,"D") -> 4
F132: 2020-11-01 | G132: 2020-12-04 | J132: 2010-05-11 | K132: si | L132: 2010-05-17 | M132: 6
F133: 2020-12-01 | G133: 2021-01-07 | J133: 2010-05-12 | K133: si | L133: 2010-05-18 | M133: 6
F134: 2021-01-01 | G134: 2021-02-04 | J134: 2010-05-13 | K134: si | L134: 2010-05-19 | M134: 6
F135: 2021-02-01 | G135: 2021-03-04 | J135: 2010-05-14 | K135: si | L135: 2010-05-20 | M135: 6
F136: 2021-03-01 | G136: 2021-04-07 | J136: 2010-05-15 | K136: no | L136: 2010-05-20 | M136: 5
F137: 2021-04-01 | G137: 2021-05-06 | J137: 2010-05-16 | K137: no | L137: 2010-05-20 | M137: 4
F138: 2021-05-01 | G138: 2021-06-04 | J138: 2010-05-17 | K138: si | L138: 2010-05-21 | M138: 4
F139: 2021-06-01 | G139: 2021-07-06 | J139: 2010-05-18 | K139: si | L139: 2010-05-26 | M139: 8
F140: 2021-07-01 | G140: 2021-08-05 | J140: 2010-05-19 | K140: si | L140: 2010-05-27 | M140: 8
F141: 2021-08-01 | G141: 2021-09-06 | J141: 2010-05-20 | K141: si | L141: 2010-05-28 | M141: 8
F142: 2021-09-01 | G142: 2021-10-06 | J142: 2010-05-21 | K142: si | L142: 2010-05-31 | M142: 10
F143: 2021-10-01 | G143: 2021-11-04 | J143: 2010-05-22 | K143: no | L143: 2010-05-31 | M143: 9
F144: 2021-11-01 | G144: 2021-12-06 | J144: 2010-05-23 | K144: no | L144: 2010-05-31 | M144: 8
F145: 2021-12-01 | G145: 2022-01-06 | J145: 2010-05-24 | K145: no | L145: 2010-05-31 | M145: 7
F146: 2022-01-01 | G146: 2022-02-04 | J146: 2010-05-25 | K146: no | L146: 2010-05-31 | M146: 6
F147: 2022-02-01 | G147: 2022-03-07 | J147: 2010-05-26 | K147: si | L147: 2010-06-01 | M147: 6
F148: 2022-03-01 | G148: 2022-04-06 | J148: 2010-05-27 | K148: si | L148: 2010-06-02 | M148: 6
F149: 2022-04-01 | G149: 2022-05-05 | J149: 2010-05-28 | K149: si | L149: 2010-06-03 | M149: 6
F150: 2022-05-01 | G150: 2022-06-06 | J150: 2010-05-29 | K150: no | L150: 2010-06-03 | M150: 5
F151: 2022-06-01 | G151: 2022-07-06 | J151: 2010-05-30 | K151: no | L151: 2010-06-03 | M151: 4
F152: 2022-07-01 | G152: 2022-08-04 | J152: 2010-05-31 | K152: si | L152: 2010-06-04 | M152: 4
F153: 2022-08-01 | G153: 2022-09-06 | J153: 2010-06-01 | K153: si | L153: 2010-06-07 | M153: 6
F154: 2022-09-01 | G154: 2022-10-06 | J154: 2010-06-02 | K154: si | L154: 2010-06-08 | M154: 6
F155: 2022-10-01 | G155: 2022-11-04 | J155: 2010-06-03 | K155: si | L155: 2010-06-09 | M155: 6
F156: 2022-11-01 | G156: 2022-12-06 | J156: 2010-06-04 | K156: si | L156: 2010-06-10 | M156: 6
F157: 2022-12-01 | G157: 2023-01-05 | J157: 2010-06-05 | K157: no | L157: 2010-06-10 | M157: 5
F158: 2023-01-01 | G158: 2023-02-06 | J158: 2010-06-06 | K158: no | L158: 2010-06-10 | M158: 4
F159: 2023-02-01 | G159: 2023-03-06 | J159: 2010-06-07 | K159: si | L159: 2010-06-11 | M159: 4
F160: 2023-03-01 | G160: 2023-04-06 | J160: 2010-06-08 | K160: si | L160: 2010-06-14 | M160: 6
F161: 2023-04-01 | G161: 2023-05-05 | J161: 2010-06-09 | K161: si | L161: 2010-06-15 | M161: 6
F162: 2023-05-01 | G162: 2023-06-06 | J162: 2010-06-10 | K162: si | L162: 2010-06-16 | M162: 6
F163: 2023-06-01 | G163: 2023-07-06 | J163: 2010-06-11 | K163: si | L163: 2010-06-17 | M163: 6
F164: 2023-07-01 | G164: 2023-08-04 | J164: 2010-06-12 | K164: no | L164: 2010-06-17 | M164: 5
F165: 2023-08-01 | G165: 2023-09-06 | J165: 2010-06-13 | K165: no | L165: 2010-06-17 | M165: 4
F166: 2023-09-01 | G166: 2023-10-05 | J166: 2010-06-14 | K166: si | L166: 2010-06-18 | M166: 4
F167: 2023-10-01 | G167: 2023-11-06 | J167: 2010-06-15 | K167: si | L167: 2010-06-22 | M167: 7
F168: 2023-11-01 | G168: 2023-12-06 | J168: 2010-06-16 | K168: si | L168: 2010-06-23 | M168: 7
F169: 2023-12-01 | G169: 2024-01-05 | J169: 2010-06-17 | K169: si | L169: 2010-06-24 | M169: 7
F170: 2024-01-01 | G170: 2024-02-06 | J170: 2010-06-18 | K170: si | L170: 2010-06-25 | M170: 7
F171: 2024-02-01 | G171: 2024-03-06 | J171: 2010-06-19 | K171: no | L171: 2010-06-25 | M171: 6
F172: 2024-03-01 | G172: 2024-04-08 | J172: 2010-06-20 | K172: no | L172: 2010-06-25 | M172: 5
F173: 2024-04-01 | G173: 2024-05-07 | J173: 2010-06-21 | K173: no | L173: 2010-06-25 | M173: 4
F174: 2024-05-01 | G174: 2024-06-06 | J174: 2010-06-22 | K174: si | L174: 2010-06-28 | M174: 6
F175: 2024-06-01 | G175: 2024-07-04 | J175: 2010-06-23 | K175: si | L175: 2010-06-29 | M175: 6
F176: 2024-07-01 | G176: 2024-08-06 | J176: 2010-06-24 | K176: si | L176: 2010-06-30 | M176: 6
F177: 2024-08-01 | G177: 2024-09-05 | J177: 2010-06-25 | K177: si | L177: 2010-07-01 | M177: 6
F178: 2024-09-01 | G178: 2024-10-04 | J178: 2010-06-26 | K178: no | L178: 2010-07-01 | M178: 5
F179: 2024-10-01 | G179: 2024-11-06 | J179: 2010-06-27 | K179: no | L179: 2010-07-01 | M179: 4
F180: 2024-11-01 | G180: 2024-12-05 | J180: 2010-06-28 | K180: si | L180: 2010-07-02 | M180: 4
F181: 2024-12-01 | G181: 2025-01-07 | J181: 2010-06-29 | K181: si | L181: 2010-07-05 | M181: 6
F182: 2025-01-01 | G182: 2025-02-06 | J182: 2010-06-30 | K182: si | L182: 2010-07-06 | M182: 6
F183: 2025-02-01 | G183: 2025-03-10 | J183: 2010-07-01 | K183: si | L183: 2010-07-07 | M183: 6
F184: 2025-03-01 | G184: 2025-04-07 | J184: 2010-07-02 | K184: si | L184: 2010-07-08 | M184: 6
F185: 2025-04-01 | G185: 2025-05-08 | J185: 2010-07-03 | K185: no | L185: 2010-07-08 | M185: 5
F186: 2025-05-01 | G186: 2025-06-05 | J186: 2010-07-04 | K186: no | L186: 2010-07-08 | M186: 4
F187: 2025-06-01 | G187: 2025-07-04 | J187: 2010-07-05 | K187: si | L187: 2010-07-12 | M187: 7
F188: 2025-07-01 | G188: 2025-08-06 | J188: 2010-07-06 | K188: si | L188: 2010-07-13 | M188: 7
F189: 2025-08-01 | G189: 2025-09-04 | J189: 2010-07-07 | K189: si | L189: 2010-07-14 | M189: 7
F190: 2025-09-01 | G190: 2025-10-06 | J190: 2010-07-08 | K190: si | L190: 2010-07-15 | M190: 7
F191: 2025-10-01 | G191: 2025-11-06 | J191: 2010-07-09 | K191: no | L191: 2010-07-15 | M191: 6
F192: 2025-11-01 | G192: 2025-12-04 | J192: 2010-07-10 | K192: no | L192: 2010-07-15 | M192: 5
F193: 2025-12-01 | G193: 2026-01-07 | J193: 2010-07-11 | K193: no | L193: 2010-07-15 | M193: 4
J194: 2010-07-12 | K194: si | L194: 2010-07-16 | M194: 4
J195: 2010-07-13 | K195: si | L195: =IF(COUNTIF(K196:K199,"si")=4,J195+4,IF(COUNTIF(K196:K200,"si")=4,J195+5,IF(COUNTIF(K196:K201,"si")=4,J195+6,IF(COUNTIF(K196:K202,"si")=4,J195+7,IF(COUNTIF(K196:K203,"si")=4,J195+8,IF(COUNTIF(K196:K204,"si")=4,J195+9,IF(COUNTIF(K196:K205,"si")=4,J195+10,IF(COUNTIF(K196:K206,"si")=4,J195+11,"error")))))))) -> 2010-07-19 | M195: =DATEDIF(J195,L195,"D") -> 6
J196: 2010-07-14 | K196: si | L196: 2010-07-20 | M196: 6
J197: 2010-07-15 | K197: si | L197: 2010-07-21 | M197: 6
J198: 2010-07-16 | K198: si | L198: 2010-07-22 | M198: 6
J199: 2010-07-17 | K199: no | L199: 2010-07-22 | M199: 5
J200: 2010-07-18 | K200: no | L200: 2010-07-22 | M200: 4
... 5654 more rows
